{"text_format":"1","workbook":"xlsx","n_sheets":16,"sheets":["Trabalhadores VEP","Suplementos VEP","Trabalhadores CIT","Suplementos CIT","VEP (CONFIRMAR)","VEP (CORRIGIR)","CIT (CONFIRMAR)","CIT (CORRIGIR)","Entidades","Carreiras VEP","Carreiras CIT","Vínculos VEP","Vínculos CIT","Suplementos VEP & CIT","Instruções de Preenchimento VEP","Instruções de Preenchimento CIT"],"not_rendered":{"charts":0,"images":4,"macros":1,"external_links":0,"defined_names":11,"comments":0,"pivot_tables":0},"unopened":[],"bounds":{"document_bytes":16777216,"sheet_cells":100000,"rows_first":2000,"rows_last":500,"rows_between":2000,"halvings":0,"cell_chars":16384,"cell_head_chars":4096},"cells_cut":0,"cells_raw":0,"read":"whole","date_system":"1900"}

{"sheet":"Trabalhadores VEP","index":0,"n_rows":3,"n_cols":29,"rows_kept":3,"cut":false,"hidden":false,"merged":[[0,0,0,3],[0,4,0,28],[1,0,1,1],[1,7,1,8],[1,16,1,17],[1,18,1,25],[1,26,1,28],[1,2,1,3],[1,5,1,6],[1,14,1,15],[1,11,1,13]]}
[null,null,null,null,"Informação sobre a remuneração do trabalhador com Vínculo de Emprego Público (VEP) (cada registo corresponde à remuneração mensal de cada trabalhador)"]
[null,null,"Data de Nascimento do Trabalhador",null,"Vínculo","Carreira",null,"Categoria",null,"Exercício de funções em tempo completo ou parcial","Cessação do contrato","Posição Remuneratória/Escalão/Índice",null,null,"Valor da Remuneração Base",null,"Data Previsível da próxima alteração de posicionamento remuneratório",null,"Valor do acréscimo remuneratório (referência à próxima alteração de posicionamento) decorrente de Valorização Remuneratória por motivo:",null,null,null,null,null,null,null,"Avaliação: Pontos e Tempo relevante decorrido desde a última alteração de posicionamento"]
["NIF do Trabalhador ","Código SIOE da Entidade que paga a Remuneração","Mês","Ano","Código do vínculo de emprego público","Código da Carreira detida a 01/05/2020","Designação legal (preencher apenas quando o código de carreira do trabalhador corresponde a “Outros”)","Código da Categoria detida a 01/05/2020","Designação legal (preencher apenas quando o código de categoria do trabalhador corresponde a “Outros”)","_% de tempo de trabalho","Data prevista para a cessação do contrato","Posição Remuneratória","Escalão","Índice","Referência a 01/05/2020","Referência à próxima alteração de posicionamento","Mês","Ano","Alteração Obrigatória de Posicionamento Remuneratório","Nomeação","Promoção","Graduação","Mudança de Nível ou Escalão","Decurso do Tempo na Carreira","Outros Motivos","Especificação de Outros Motivos de Valorização Remuneratória","Pontos detidos a 01/05/2020","Número de Anos Decorridos","Número de Meses Decorridos"]

{"sheet":"Suplementos VEP","index":1,"n_rows":2,"n_cols":8,"rows_kept":2,"cut":false,"hidden":false,"merged":[[0,1,0,6]]}
[null,"Suplementos VEP",null,null,null,null,null,"Validação"]
["NIF do Trabalhador ","Código do Suplemento","Designação Legal do Suplemento (preencher apenas quando o código do suplemento corresponde a “Outros”)","Valor do suplemento (referência a 01/05/2020)","Suporte Legal (Diploma, artigo, número e alínea)","Tipologia do valor (F - Fixo / P - Percentual)","Frequência de pagamento (N.º de vezes por ano)","Resultado da Validação"]

{"sheet":"Trabalhadores CIT","index":2,"n_rows":3,"n_cols":26,"rows_kept":3,"cut":false,"hidden":false,"merged":[[0,2,0,25],[1,0,1,1],[1,2,1,3],[1,5,1,6],[1,7,1,8],[1,17,1,18],[1,19,1,22],[1,23,1,25],[1,15,1,16],[1,11,1,14]]}
[null,null,"Informação sobre a remuneração do trabalhador com Contrato Individual de Trabalho (CIT) (cada registo corresponde à remuneração mensal de cada trabalhador)"]
[null,null,"Data de Nascimento do Trabalhador",null,"Vínculo","Carreira",null,"Categoria",null,"Exercício de funções em tempo completo ou parcial","Cessação do contrato","Posição Remuneratória/Escalão/Índice",null,null,null,"Valor da Remuneração Base",null,"Data Previsível da próxima alteração de posicionamento remuneratório",null,"Valor do acréscimo remuneratório (referência à próxima alteração de posicionamento) decorrente de Valorização Remuneratória por motivo:",null,null,null,"Avaliação: Pontos e Tempo relevante decorrido desde a última alteração de posicionamento"]
["NIF do Trabalhador ","Código SIOE da Entidade que paga a Remuneração","Mês","Ano","Código do vínculo de emprego","Código da Carreira detida a 01/05/2020","Designação legal (preencher apenas quando o código de carreira do trabalhador corresponde a “Outros”)","Código da Categoria detida a 01/05/2020","Designação legal (preencher apenas quando o código de categoria do trabalhador corresponde a “Outros”)","_% de tempo de trabalho","Data prevista para a cessação do contrato","Posição Remuneratória","Escalão","Índice","Outras","Referência a 01/05/2020","Referência à próxima alteração de posicionamento","Mês","Ano","Decurso do Tempo na Carreira","Promoção","Outros Motivos","Especificação de Outros Motivos de Valorização Remuneratória","Pontos detidos a 01/05/2020","Número de Anos Decorridos","Número de Meses Decorridos"]

{"sheet":"Suplementos CIT","index":3,"n_rows":2,"n_cols":8,"rows_kept":2,"cut":false,"hidden":false,"merged":[[0,1,0,6]]}
[null,"Suplementos CIT",null,null,null,null,null,"Validação"]
["NIF do Trabalhador ","Código do Suplemento","Designação Legal do Suplemento (preencher apenas quando o código do suplemento corresponde a “Outros”)","Valor do suplemento (referência a 01/05/2020)","Suporte Legal (Diploma, artigo, número e alínea)","Tipologia do valor (F - Fixo / P - Percentual)","Frequência de pagamento (N.º de vezes por ano)","Resultado da Validação"]

{"sheet":"VEP (CONFIRMAR)","index":4,"n_rows":3,"n_cols":31,"rows_kept":3,"cut":false,"hidden":true,"merged":[[1,28,1,30],[0,0,1,1],[1,2,1,3],[1,4,1,5],[0,2,0,5],[0,6,0,30],[1,7,1,8],[1,9,1,10],[1,16,1,17],[1,18,1,19],[1,20,1,27],[1,12,1,14]]}
["» Por favor verifique se os valores constantes das células a amarelo são corretos.\n» A eventual correção de valores deve ser efetuada na folha \"Trabalhadores VEP\".",null,null,null,null,null,"Informação sobre a remuneração do trabalhador com Vínculo de Emprego Público (VEP) (cada registo corresponde à remuneração mensal de cada trabalhador)"]
[null,null,null,null,"Data de Nascimento do Trabalhador",null,"Vínculo","Carreira",null,"Categoria",null,"Exercício de funções em tempo completo ou parcial","Posição Remuneratória/Escalão/Índice",null,null,"Cessação do contrato","Valor da Remuneração Base",null,"Data Previsível da próxima alteração de posicionamento remuneratório",null,"Valor do acréscimo remuneratório (referência à próxima alteração de posicionamento) decorrente de Valorização Remuneratória por motivo:",null,null,null,null,null,null,null,"Avaliação: Pontos e Tempo relevante decorrido desde a última alteração de posicionamento"]
["N.º Linha Com Erro","Consulte","NIF do Trabalhador ","Código SIOE da Entidade que paga a Remuneração","Mês","Ano","Código do vínculo de emprego público","Código da Carreira detida a 01/05/2020","Designação legal (preencher apenas quando o código de carreira do trabalhador corresponde a “Outros”)","Código da Categoria detida a 01/05/2020","Designação legal (preencher apenas quando o código de categoria do trabalhador corresponde a “Outros”)","_% de tempo de trabalho","Posição Remuneratória","Escalão","Índice","Data prevista para a cessação do contrato","Referência a 01/05/2020","Referência à próxima alteração de posicionamento","Mês","Ano","Alteração Obrigatória de Posicionamento Remuneratório","Nomeação","Promoção","Graduação","Mudança de Nível ou Escalão","Decurso do Tempo na Carreira","Outros Motivos","Especificação de Outros Motivos de Valorização Remuneratória","Pontos detidos a 01/05/2020","Número de Anos Decorridos","Número de Meses Decorridos"]

{"sheet":"VEP (CORRIGIR)","index":5,"n_rows":3,"n_cols":31,"rows_kept":3,"cut":false,"hidden":true,"merged":[[1,28,1,30],[0,0,1,1],[1,2,1,3],[1,4,1,5],[0,2,0,5],[0,6,0,30],[1,7,1,8],[1,9,1,10],[1,16,1,17],[1,18,1,19],[1,20,1,27],[1,13,1,15]]}
["» Por favor corrija os valores constantes das células a vermelho.\n» A correção de valores deve ser efetuada na folha \"Trabalhadores VEP\".",null,null,null,null,null,"Informação sobre a remuneração do trabalhador com Vínculo de Emprego Público (VEP) (cada registo corresponde à remuneração mensal de cada trabalhador)"]
[null,null,null,null,"Data de Nascimento do Trabalhador",null,"Vínculo","Carreira",null,"Categoria",null,"Exercício de funções em tempo completo ou parcial","Cessação do contrato","Posição Remuneratória/Escalão/Índice",null,null,"Valor da Remuneração Base",null,"Data Previsível da próxima alteração de posicionamento remuneratório",null,"Valor do acréscimo remuneratório (referência à próxima alteração de posicionamento) decorrente de Valorização Remuneratória por motivo:",null,null,null,null,null,null,null,"Avaliação: Pontos e Tempo relevante decorrido desde a última alteração de posicionamento"]
["N.º Linha Com Erro","Consulte","NIF do Trabalhador ","Código SIOE da Entidade que paga a Remuneração","Mês","Ano","Código do vínculo de emprego público","Código da Carreira detida a 01/05/2020","Designação legal (preencher apenas quando o código de carreira do trabalhador corresponde a “Outros”)","Código da Categoria detida a 01/05/2020","Designação legal (preencher apenas quando o código de categoria do trabalhador corresponde a “Outros”)","_% de tempo de trabalho","Data prevista para a cessação do contrato","Posição Remuneratória","Escalão","Índice","Referência a 01/05/2020","Referência à próxima alteração de posicionamento","Mês","Ano","Alteração Obrigatória de Posicionamento Remuneratório","Nomeação","Promoção","Graduação","Mudança de Nível ou Escalão","Decurso do Tempo na Carreira","Outros Motivos","Especificação de Outros Motivos de Valorização Remuneratória","Pontos detidos a 01/05/2020","Número de Anos Decorridos","Número de Meses Decorridos"]

{"sheet":"CIT (CONFIRMAR)","index":6,"n_rows":3,"n_cols":28,"rows_kept":3,"cut":false,"hidden":true,"merged":[[0,0,1,1],[1,2,1,3],[0,4,0,27],[1,4,1,5],[1,7,1,8],[1,9,1,10],[1,13,1,16],[1,17,1,18],[1,19,1,20],[1,21,1,24],[1,25,1,27]]}
["» Por favor verifique se os valores constantes das células a amarelo são corretos.\n» A eventual correção de valores deve ser efetuada na folha \"Trabalhadores CIT\".",null,null,null,"Informação sobre a remuneração do trabalhador com Contrato Individual de Trabalho (CIT) (cada registo corresponde à remuneração mensal de cada trabalhador)"]
[null,null,null,null,"Data de Nascimento do Trabalhador",null,"Vínculo","Carreira",null,"Categoria",null,"Exercício de funções em tempo completo ou parcial","Cessação do contrato","Posição Remuneratória/Escalão/Índice",null,null,null,"Valor da Remuneração Base",null,"Data Previsível da próxima alteração de posicionamento remuneratório",null,"Valor do acréscimo remuneratório (referência à próxima alteração de posicionamento) decorrente de Valorização Remuneratória por motivo:",null,null,null,"Avaliação: Pontos e Tempo relevante decorrido desde a última alteração de posicionamento"]
["N.º Linha Com Erro","Consulte","NIF do Trabalhador ","Código SIOE da Entidade que paga a Remuneração","Mês","Ano","Código do vínculo de emprego","Código da Carreira detida a 01/05/2020","Designação legal (preencher apenas quando o código de carreira do trabalhador corresponde a “Outros”)","Código da Categoria detida a 01/05/2020","Designação legal (preencher apenas quando o código de categoria do trabalhador corresponde a “Outros”)","_% de tempo de trabalho","Data prevista para a cessação do contrato","Posição Remuneratória","Escalão","Índice","Outras","Referência a 01/05/2020","Referência à próxima alteração de posicionamento","Mês","Ano","Decurso do Tempo na Carreira","Promoção","Outros Motivos","Especificação de Outros Motivos de Valorização Remuneratória","Pontos detidos a 01/05/2020","Número de Anos Decorridos","Número de Meses Decorridos"]

{"sheet":"CIT (CORRIGIR)","index":7,"n_rows":3,"n_cols":28,"rows_kept":3,"cut":false,"hidden":true,"merged":[[0,0,1,1],[1,2,1,3],[0,4,0,27],[1,4,1,5],[1,7,1,8],[1,9,1,10],[1,13,1,16],[1,17,1,18],[1,19,1,20],[1,21,1,24],[1,25,1,27]]}
["» Por favor corrija os valores constantes das células a vermelho.\n» A correção de valores deve ser efetuada na folha \"Trabalhadores CIT\".",null,null,null,"Informação sobre a remuneração do trabalhador com Contrato Individual de Trabalho (CIT) (cada registo corresponde à remuneração mensal de cada trabalhador)"]
[null,null,null,null,"Data de Nascimento do Trabalhador",null,"Vínculo","Carreira",null,"Categoria",null,"Exercício de funções em tempo completo ou parcial","Cessação do contrato","Posição Remuneratória/Escalão/Índice",null,null,null,"Valor da Remuneração Base",null,"Data Previsível da próxima alteração de posicionamento remuneratório",null,"Valor do acréscimo remuneratório (referência à próxima alteração de posicionamento) decorrente de Valorização Remuneratória por motivo:",null,null,null,"Avaliação: Pontos e Tempo relevante decorrido desde a última alteração de posicionamento"]
["N.º Linha Com Erro","Consulte","NIF do Trabalhador ","Código SIOE da Entidade que paga a Remuneração","Mês","Ano","Código do vínculo de emprego","Código da Carreira detida a 01/05/2020","Designação legal (preencher apenas quando o código de carreira do trabalhador corresponde a “Outros”)","Código da Categoria detida a 01/05/2020","Designação legal (preencher apenas quando o código de categoria do trabalhador corresponde a “Outros”)","_% de tempo de trabalho","Data prevista para a cessação do contrato","Posição Remuneratória","Escalão","Índice","Outras","Referência a 01/05/2020","Referência à próxima alteração de posicionamento","Mês","Ano","Decurso do Tempo na Carreira","Promoção","Outros Motivos","Especificação de Outros Motivos de Valorização Remuneratória","Pontos detidos a 01/05/2020","Número de Anos Decorridos","Número de Meses Decorridos"]

{"sheet":"Entidades","index":8,"n_rows":1681,"n_cols":3,"rows_kept":1681,"cut":false,"hidden":false,"merged":[]}
["Código Entidade SIOE","Designação","Tipo de Administração"]
[9999998,"Secretaria-Geral do MNE - Pessoal dos Serviços Externos","AC"]
[9999999,"Camões, I.P. Rede Externa - EPE e Agentes de Cooperação","AC"]
[10000000,"Gabinete do Primeiro Ministro","AC"]
[12010000,"Direção-Geral do Consumidor","AC"]
[12150000,"Instituto Nacional de Estatística, I.P.","AC"]
[13110000,"Secretaria-Geral da Presidência de Conselho de Ministros","AC"]
[13130000,"Centro de Gestão da Rede Informática do Governo","AC"]
[13230000,"Comissão para a Cidadania e a Igualdade de Género","AC"]
[13250000,"Agência para a Modernização Administrativa, I.P.","AC"]
[20000000,"Gabinete do Ministro da Administração Interna","AC"]
[20020000,"Inspeção-Geral da Administração Interna","AC"]
[20040000,"Polícia de Segurança Pública","AC"]
[20042900,"Serviços Sociais da Polícia de Segurança Pública","AC"]
[20050000,"Guarda Nacional Republicana","AC"]
[20050100,"Serviços Sociais da Guarda Nacional Republicana","AC"]
[20060000,"Serviço de Estrangeiros e Fronteiras","AC"]
[20100000,"Autoridade Nacional de Segurança Rodoviária","AC"]
[21300000,"Autoridade Nacional de Emergência e Proteção Civil ","AC"]
[22100000,"Secretaria-Geral do Ministério da Administração Interna","AC"]
[27590000,"Agrupamento de Escolas da Boa Água, Sesimbra (Escola Básica da Boa Água, Quinta do Conde, Sesimbra - Sede)","AC"]
[30160000,"Instituto de Financiamento da Agricultura e Pescas, I.P.","AC"]
[30200000,"Instituto da Vinha e do Vinho, I.P.","AC"]
[30210000,"Instituto dos Vinhos do Douro e do Porto, I.P.","AC"]
[30260000,"Gabinete de Planeamento, Políticas e Administração Geral","AC"]
[32160000,"Direção-Geral da Agricultura e Desenvolvimento Rural ","AC"]
[32240000,"Direção Regional de Agricultura e Pescas do Alentejo","AC"]
[32250000,"Direção Regional de Agricultura e Pescas do Algarve","AC"]
[32260000,"Direção Regional de Agricultura e Pescas de Lisboa e Vale do Tejo","AC"]
[32270000,"Direção Regional de Agricultura e Pescas do Norte","AC"]
[32400000,"Direção Regional de Agricultura e Pescas do Centro","AC"]
[50200000,"Banco de Portugal","AC"]
[50300000,"Comissão do Mercado de Valores Mobiliários","AC"]
[51100000,"Direção-Geral do Orçamento ","AC"]
[51400000,"Inspeção-Geral de Finanças","AC"]
[51710000,"Serviços Sociais da Administração Pública","AC"]
[51800000,"Caixa Geral de Aposentações, I.P.","AC"]
[52000000,"Gabinete do Secretário de Estado dos Assuntos Fiscais","AC"]
[53200000,"Autoridade de Supervisão de Seguros e Fundos de Pensões","AC"]
[53300000,"Agência de Gestão da Tesouraria e da Dívida Pública - IGCP, E.P.E.","AC"]
[53410000,"Direção-Geral do Tesouro e Finanças ","AC"]
[54100000,"Secretaria-Geral do Ministério das Finanças ","AC"]
[54300000,"Direção-Geral da Administração e do Emprego Público","AC"]
[54800000,"Gabinete de Planeamento, Estratégia, Avaliação e Relações Internacionais ","AC"]
[56000000,"Gabinete do Secretário de Estado do Orçamento","AC"]
[60160000,"Biblioteca Nacional de Portugal","AC"]
[60170000,"Direção-Geral das Artes","AC"]
[60210000,"Inspeção-Geral das Atividades Culturais","AC"]
[60240000,"Gabinete de Estratégia, Planeamento e Avaliação Culturais","AC"]
[60250000,"Direção Regional de Cultura do Norte","AC"]
[60260000,"Direção Regional de Cultura do Centro","AC"]
[60270000,"Direção Regional de Cultura do Alentejo","AC"]
[60280000,"Direção Regional de Cultura do Algarve","AC"]
[60320000,"Instituto do Cinema e do Audiovisual, I.P.","AC"]
[60330000,"Cinemateca Portuguesa - Museu do Cinema, I.P.","AC"]
[60520000,"Teatro Nacional D. Maria II, E.P.E.","AC"]
[60530000,"Teatro Nacional de S. João, E.P.E.","AC"]
[60610000,"Academia Portuguesa de História","AC"]
[60620000,"Academia Nacional de Belas Artes","AC"]
[70010000,"Autoridade da Concorrência","AC"]
[70070000,"Autoridade Nacional de Comunicações","AC"]
[70080000,"Agência para a Competitividade e Inovação, I.P.","AC"]
[70090000,"Agência para o Investimento e Comércio Externo de Portugal, E.P.E.","AC"]
[71200000,"Direção-Geral de Energia e Geologia","AC"]
[71210000,"Direção-Geral das Atividades Económicas","AC"]
[71400000,"Instituto Nacional da Propriedade Industrial, I.P.","AC"]
[71510000,"Laboratório Nacional de Energia e Geologia, I.P.","AC"]
[71600000,"Instituto Português da Qualidade, I.P. ","AC"]
[71960000,"Instituto Português de Acreditação, I.P.","AC"]
[73400000,"Turismo de Portugal, I.P.","AC"]
[74400000,"Gabinete de Estratégia e Estudos","AC"]
[74500000,"Autoridade de Segurança Alimentar e Económica","AC"]
[75000000,"Entidade Reguladora dos Serviços Energéticos","AC"]
[75100000,"Entidade Nacional para o Setor Energético, E.P.E.","AC"]
[77500000,"Gabinete da Secretária de Estado do Turismo","AC"]
[80020000,"Secretaria-Geral da Presidência da República","AC"]
[81190000,"Serviços da Assembleia da República","AC"]
[81200000,"Conselho de Prevenção da Corrupção","AC"]
[82000200,"Gabinete do Representante da República para a Região Autónoma dos Açores","AC"]
[82010100,"Gabinete do Representante da República para a Região Autónoma da Madeira","AC"]
[83060000,"Programa Polis - Programa de Requalificação Urbana e Valorização Ambiental das Cidades","AC"]
[83080000,"Direção-Geral das Autarquias Locais","AC"]
[83140000,"Comissão de Coordenação e Desenvolvimento Regional de Lisboa e Vale do Tejo","AC"]
[83230000,"Conselho Nacional da Água","AC"]
[83250000,"Conselho Nacional do Ambiente e do Desenvolvimento Sustentável","AC"]
[83270000,"Entidade Reguladora dos Serviços de Águas e Resíduos","AC"]
[83360000,"Comissão de Coordenação e Desenvolvimento Regional do Alentejo","AC"]
[83370000,"Comissão de Coordenação e Desenvolvimento Regional do Algarve","AC"]
[83400000,"Comissão de Coordenação e Desenvolvimento Regional do Norte","AC"]
[83410000,"Comissão de Coordenação e Desenvolvimento Regional do Centro","AC"]
[83420000,"Agência Portuguesa do Ambiente, I.P.","AC"]
[85010000,"Secretaria-Geral do Ministério da Defesa Nacional","AC"]
[85040000,"Direção-Geral de Política de Defesa Nacional","AC"]
[85080000,"Estado-Maior-General das Forças Armadas","AC"]
[85090000,"Marinha","AC"]
[85100000,"Força Aérea","AC"]
[85110000,"Exército","AC"]
[85120000,"Inspeção-Geral da Defesa Nacional","AC"]
[85130000,"Instituto da Defesa Nacional","AC"]
[85140000,"Polícia Judiciária Militar","AC"]
[85170000,"Comissão Portuguesa da História Militar","AC"]
[85190000,"Estrutura de Missão para a Extensão da Plataforma Continental","AC"]
[85230000,"Instituto de Ação Social das Forças Armadas, I.P.","AC"]
[85600000,"Gabinete do Ministro da Defesa Nacional","AC"]
[86010000,"Comissão Nacional da Unesco","AC"]
[86040000,"Direção-Geral de Política Externa","AC"]
[86050000,"Direção-Geral dos Assuntos Europeus","AC"]
[86060000,"Direção-Geral dos Assuntos Consulares e das Comunidades Portuguesas","AC"]
[86070000,"Gabinete da Secretária de Estado das Comunidades Portuguesas","AC"]
[86100000,"Gabinete da Secretária de Estado dos Negócios Estrangeiros e da Cooperação","AC"]
[86110000,"Gabinete da Secretária de Estado dos Assuntos Europeus","AC"]
[86120000,"Inspeção-Geral Diplomática e Consular","AC"]
[86160000,"Secretaria-Geral do Ministério dos Negócios Estrangeiros","AC"]
[86170000,"Fundo para as Relações Internacionais, I.P.","AC"]
[86220000,"Comissão Interministerial de Limites e Bacias Hidrográficas Luso-Espanholas","AC"]
[89260000,"Editorial do Ministério da Educação e Ciência","AC"]
[89280000,"Conselho Nacional de Educação","AC"]
[90120000,"Casa Pia de Lisboa, I.P.","AC"]
[90150000,"Comissão para a Igualdade no Trabalho e no Emprego","AC"]
[90170000,"Instituto Nacional para a Reabilitação, I.P.","AC"]
[90220000,"Direção-Geral da Segurança Social","AC"]
[90230000,"Direção-Geral do Emprego e das Relações de Trabalho","AC"]
[90250000,"Inspeção-Geral do Ministério do Trabalho, Solidariedade e Segurança Social","AC"]
[90270000,"Instituto de Gestão de Fundos de Capitalização da Segurança Social, I.P.","AC"]
[90290000,"Instituto de Gestão Financeira da Segurança Social, I.P.","AC"]
[90300000,"Instituto de Informática, I.P.","AC"]
[90310000,"Instituto da Segurança Social, I.P.","AC"]
[90320000,"Instituto do Emprego e Formação Profissional, I.P.","AC"]
[90350000,"Santa Casa da Misericórdia de Lisboa","AC"]
[90370000,"Secretaria-Geral do Ministério do Trabalho, Solidariedade e Segurança Social","AC"]
[90530000,"Gabinete de Estratégia e Planeamento","AC"]
[90540000,"Agência Nacional para a Qualificação e o Ensino Profissional, I.P.","AC"]
[92380000,"Autoridade para as Condições do Trabalho","AC"]
[92410000,"Centro de Formação Profissional para o Artesanato e Património (CEARTE)","AC"]
[100500000,"Academia das Ciências de Lisboa","AC"]
[101990000,"Direção-Geral do Ensino Superior","AC"]
[102010000,"Universidade dos Açores","AC"]
[102010500,"Serviços de Ação Social Escolar da Universidade dos Açores","AC"]
[102040000,"Universidade do Algarve","AC"]
[102041000,"Serviços de Ação Social da Universidade do Algarve","AC"]
[102050000,"Universidade de Aveiro","AC"]
[102050400,"Serviços de Ação Social da Universidade de Aveiro","AC"]
[102060000,"Universidade da Beira Interior","AC"]
[102060100,"Serviços de Ação Social da Universidade da Beira Interior","AC"]
[102070000,"Universidade de Coimbra","AC"]
[102070100,"Faculdade de Farmácia da Universidade de Coimbra","AC"]
[102070200,"Faculdade de Economia da Universidade de Coimbra","AC"]
[102070300,"Faculdade de Ciências e Tecnologia da Universidade de Coimbra","AC"]
[102070400,"Faculdade de Psicologia e de Ciências da Educação da Universidade de Coimbra","AC"]
[102070500,"Faculdade de Letras da Universidade de Coimbra","AC"]
[102070600,"Faculdade de Ciências do Desporto e Educação Física da Universidade de Coimbra","AC"]
[102070700,"Faculdade de Medicina da Universidade de Coimbra","AC"]
[102070800,"Faculdade de Direito da Universidade de Coimbra","AC"]
[102070900,"Serviços de Ação Social da Universidade de Coimbra","AC"]
[102080000,"Universidade de Évora","AC"]
[102080200,"Serviços de Ação Social da Universidade de Évora","AC"]
[102090800,"Faculdade de Medicina da Universidade de Lisboa","AC"]
[102091000,"Faculdade de Medicina Dentária da Universidade de Lisboa","AC"]
[102091100,"Instituto de Ciências Sociais da Universidade de Lisboa","AC"]
[102091200,"Faculdade de Farmácia da Universidade de Lisboa","AC"]
[102091300,"Faculdade de Direito da Universidade de Lisboa","AC"]
[102091400,"Faculdade de Ciências da Universidade de Lisboa","AC"]
[102091500,"Faculdade de Belas-Artes da Universidade de Lisboa","AC"]
[102091600,"Faculdade de Letras da Universidade de Lisboa","AC"]
[102092400,"Instituto de Educação da Universidade de Lisboa","AC"]
[102100100,"Faculdade de Arquitetura da Universidade de Lisboa ","AC"]
[102100200,"Faculdade de Medicina Veterinária da Universidade de Lisboa ","AC"]
[102100300,"Faculdade de Motricidade Humana da Universidade de Lisboa","AC"]
[102100400,"Instituto Superior de Ciências Sociais e Políticas da Universidade de Lisboa ","AC"]
[102100500,"Instituto Superior de Economia e Gestão da Universidade de Lisboa ","AC"]
[102100600,"Instituto Superior Técnico da Universidade de Lisboa ","AC"]
[102100700,"Instituto Superior de Agronomia da Universidade de Lisboa ","AC"]
[102110000,"Universidade Nova de Lisboa","AC"]
[102120000,"Universidade do Minho","AC"]
[102130000,"Universidade do Porto","AC"]
[102131600,"Serviços de Ação Social da Universidade do Porto","AC"]
[102150000,"Universidade de Trás-os-Montes e Alto Douro","AC"]
[102150500,"Serviços de Ação Social da Universidade de Trás-os-Montes e Alto Douro","AC"]
[102170000,"Universidade da Madeira","AC"]
[102170100,"Serviços de Ação Social da Universidade da Madeira","AC"]
[102180000,"Universidade Aberta","AC"]
[102190000,"ISCTE - Instituto Universitário de Lisboa","AC"]
[102310000,"Instituto Politécnico da Guarda","AC"]
[102310700,"Serviços de Ação Social do Instituto Politécnico da Guarda","AC"]
[102320000,"Instituto Politécnico de Beja","AC"]
[102320500,"Serviços de Ação Social do Instituto Politécnico de Beja","AC"]
[102330000,"Instituto Politécnico de Bragança","AC"]
[102330600,"Serviços de Ação Social do Instituto Politécnico de Bragança","AC"]
[102340000,"Instituto Politécnico de Castelo Branco","AC"]
[102340700,"Serviços de Ação Social do Instituto Politécnico de Castelo Branco","AC"]
[102350000,"Instituto Politécnico de Coimbra","AC"]
[102350100,"Instituto Superior de Engenharia de Coimbra","AC"]
[102350200,"Escola Superior Agrária de Coimbra","AC"]
[102350300,"Instituto Superior de Contabilidade e Administração de Coimbra","AC"]
[102350400,"Escola Superior de Tecnologia e Gestão de Oliveira do Hospital","AC"]
[102350500,"Escola Superior de Educação de Coimbra","AC"]
[102350600,"Serviços de Ação Social do Instituto Politécnico de Coimbra","AC"]
[102350700,"Escola Superior de Tecnologia da Saúde de Coimbra","AC"]
[102360000,"Instituto Politécnico de Leiria","AC"]
[102360100,"Escola Superior de Tecnologia e Gestão de Leiria","AC"]
[102360300,"Escola Superior de Saúde de Leiria","AC"]
[102360500,"Escola Superior de Artes e Design das Caldas da Rainha","AC"]
[102360700,"Escola Superior de Turismo e Tecnologia do Mar de Peniche","AC"]
[102360800,"Escola Superior de Educação e Ciências Sociais de Leiria","AC"]
[102360900,"Serviços de Ação Social do Instituto Politécnico de Leiria","AC"]
[102370000,"Instituto Politécnico de Lisboa","AC"]
[102371200,"Instituto Superior de Engenharia de Lisboa","AC"]
[102371300,"Serviços de Ação Social do Instituto Politécnico de Lisboa","AC"]
[102380000,"Instituto Politécnico de Portalegre","AC"]
[102380500,"Serviços de Ação Social do Instituto Politécnico de Portalegre","AC"]
[102390000,"Instituto Politécnico de Santarém","AC"]
[102390100,"Escola Superior de Educação de Santarém","AC"]
[102390200,"Escola Superior de Saúde de Santarém","AC"]
[102390300,"Escola Superior Agrária de Santarém","AC"]
[102390400,"Escola Superior de Gestão e Tecnologia de Santarém","AC"]
[102390500,"Escola Superior de Desporto de Rio Maior","AC"]
[102390600,"Serviços de Ação Social do Instituto Politécnico de Santarém","AC"]
[102410000,"Instituto Politécnico de Setúbal","AC"]
[102410600,"Serviços de Ação Social do Instituto Politécnico de Setúbal","AC"]
[102420000,"Instituto Politécnico de Tomar","AC"]
[102420400,"Serviços de Ação Social do Instituto Politécnico de Tomar","AC"]
[102430000,"Instituto Politécnico de Viana do Castelo","AC"]
[102430600,"Serviços de Ação Social do Instituto Politécnico de Viana do Castelo","AC"]
[102440000,"Instituto Politécnico de Viseu","AC"]
[102440100,"Escola Superior de Educação de Viseu","AC"]
[102440200,"Escola Superior de Tecnologia e Gestão de Viseu","AC"]
[102440400,"Escola Superior Agrária de Viseu","AC"]
[102440500,"Escola Superior de Tecnologia e Gestão de Lamego do Instituto Politécnico de Viseu","AC"]
[102440600,"Escola Superior de Saúde de Viseu","AC"]
[102440700,"Serviços de Ação Social do Instituto Politécnico de Viseu","AC"]
[102450000,"Instituto Politécnico do Cávado e do Ave","AC"]
[102460000,"Instituto Politécnico do Porto","AC"]
[102460100,"Instituto Superior de Engenharia do Porto","AC"]
[102460200,"Escola Superior de Educação do Porto","AC"]
[102460400,"Escola Superior de Música e Artes do Espectáculo","AC"]
[102460600,"Instituto Superior de Contabilidade e Administração do Porto","AC"]
[102460700,"Serviços de Ação Social do Instituto Politécnico do Porto","AC"]
[102461000,"Escola Superior de Tecnologia e Gestão","AC"]
[102461200,"Escola Superior de Saúde ","AC"]
[102500000,"Escola Superior de Hotelaria e Turismo do Estoril","AC"]
[104110000,"Fundação para a Ciência e a Tecnologia, I.P.","AC"]
[104210000,"Centro Científico e Cultural de Macau, I.P.","AC"]
[104960000,"Escola Superior de Enfermagem do Porto","AC"]
[104970000,"Escola Superior de Enfermagem de Coimbra","AC"]
[104980000,"Escola Superior de Enfermagem de Lisboa","AC"]
[110090000,"Instituto da Mobilidade e dos Transportes, I.P.","AC"]
[111300000,"Autoridade Nacional da Aviação Civil","AC"]
[111500000,"Instituto dos Mercados Públicos, do Imobiliário e da Construção, I.P.","AC"]
[112200000,"Instituto da Habitação e da Reabilitação Urbana, I.P.","AC"]
[112400000,"Laboratório Nacional de Engenharia Civil, I.P.","AC"]
[113100000,"Escola Superior Náutica Infante D. Henrique ","AC"]
[140000000,"Gabinete da Ministra da Saúde","AC"]
[141000000,"Gabinete do Secretário de Estado da Saúde","AC"]
[141100000,"Secretaria-Geral do Ministério da Saúde","AC"]
[141200000,"Inspeção-Geral das Atividades em Saúde","AC"]
[141300000,"Direção-Geral da Saúde","AC"]
[142100000,"Instituto Nacional de Saúde Doutor Ricardo Jorge, I.P.","AC"]
[142200000,"Infarmed - Autoridade Nacional do Medicamento e Produtos de Saúde, I.P.","AC"]
[142300000,"Instituto Nacional de Emergência Médica, I.P.","AC"]
[142400000,"Instituto Português do Sangue e da Transplantação, I.P.","AC"]
[142900000,"Entidade Reguladora da Saúde","AC"]
[144000000,"Administração Regional de Saúde do Norte, I.P.","AC"]
[144010000,"Centro Hospitalar Póvoa de Varzim-Vila do Conde, E.P.E.","AC"]
[144060000,"Unidade Local de Saúde de Matosinhos, E.P.E.","AC"]
[144150000,"Hospital Santa Maria Maior, E.P.E.","AC"]
[144230000,"Instituto Português de Oncologia do Porto Francisco Gentil, E.P.E.","AC"]
[144260000,"Unidade Local de Saúde do Alto Minho, E.P.E.","AC"]
[145000000,"Administração Regional de Saúde do Centro, I.P.","AC"]
[145030000,"Centro Hospitalar Universitário Cova da Beira, E.P.E.","AC"]
[145130000,"Centro Hospitalar de Entre o Douro e Vouga, E.P.E.","AC"]
[145160000,"Hospital Distrital Figueira da Foz, E.P.E.","AC"]
[145220000,"Hospital Arcebispo João Crisóstomo - Cantanhede","AC"]
[145230000,"Hospital Dr. Francisco Zagalo - Ovar","AC"]
[145290000,"Unidade Local de Saúde da Guarda, E.P.E.","AC"]
[145310000,"Instituto Português de Oncologia de Coimbra Francisco Gentil, E.P.E.","AC"]
[146000000,"Administração Regional de Saúde de Lisboa e Vale do Tejo, I.P.","AC"]
[146190000,"Hospital Garcia de Orta, E.P.E.","AC"]
[146220000,"Instituto Português de Oncologia de Lisboa Francisco Gentil, E.P.E.","AC"]
[146240000,"Instituto de Oftalmologia Dr. Gama Pinto","AC"]
[146330000,"Centro Hospitalar do Médio Tejo, E.P.E. ","AC"]
[146370000,"Centro Hospitalar Universitário Lisboa Central, E.P.E.","AC"]
[147000000,"Administração Regional de Saúde do Alentejo, I.P.","AC"]
[147030000,"Hospital do Espírito Santo de Évora, E.P.E.","AC"]
[148000000,"Administração Regional de Saúde do Algarve, I.P.","AC"]
[148070000,"Unidade Local de Saúde do Baixo Alentejo, E.P.E.","AC"]
[149000000,"Gabinete da Secretária de Estado Adjunta e da Saúde","AC"]
[149010000,"Centro Hospitalar de Lisboa Ocidental, E.P.E.","AC"]
[149020000,"Centro Hospitalar de Setúbal, E.P.E. ","AC"]
[149030000,"Centro Hospitalar de Trás-os-Montes e Alto Douro, E.P.E.","AC"]
[149040000,"Centro Hospitalar do Médio Ave, E.P.E.","AC"]
[149050000,"Hospital da Senhora da Oliveira Guimarães, E.P.E.","AC"]
[149060000,"Unidade Local de Saúde do Norte Alentejano, E.P.E.","AC"]
[149070000,"Centro Hospitalar Vila Nova de Gaia-Espinho, E.P.E.","AC"]
[149090000,"Centro Hospitalar Universitário do Porto, E.P.E.","AC"]
[149100000,"Centro Hospitalar Tâmega e Sousa, E.P.E.","AC"]
[149110000,"Administração Central do Sistema de Saúde, I.P.","AC"]
[149150000,"Centro Hospitalar Psiquiátrico de Lisboa","AC"]
[149190000,"Centro Hospitalar Barreiro Montijo, E.P.E.","AC"]
[149210000,"Unidade Local de Saúde de Castelo Branco, E.P.E.","AC"]
[150000000,"Gabinete da Ministra da Justiça","AC"]
[151100000,"Secretaria-Geral do Ministério da Justiça","AC"]
[151200000,"Inspeção-Geral dos Serviços de Justiça","AC"]
[151500000,"Direção-Geral da Administração da Justiça","AC"]
[151800000,"Instituto Nacional de Medicina Legal e Ciências Forenses, I.P.","AC"]
[152000000,"Gabinete da Secretária de Estado da Justiça","AC"]
[152600000,"Instituto dos Registos e do Notariado, I.P.","AC"]
[152800000,"Centro de Estudos Judiciários","AC"]
[152810000,"Centro Protocolar de Formação Profissional para o Sector da Justiça","AC"]
[152900000,"Polícia Judiciária","AC"]
[153000000,"Comissão de Proteção às Vítimas de Crimes","AC"]
[156000000,"Tribunal Central Administrativo do Sul - 2ª Instância","AC"]
[156010000,"Tribunal Central Administrativo do Norte","AC"]
[230000000,"Tribunal da Relação de Guimarães","AC"]
[230010000,"Tribunal da Relação do Porto","AC"]
[230020000,"Tribunal da Relação de Coimbra","AC"]
[230030000,"Tribunal da Relação de Évora","AC"]
[230040000,"Tribunal da Relação de Lisboa","AC"]
[233560000,"Tribunal Administrativo e Fiscal do Funchal","AC"]
[233570000,"Tribunal Administrativo e Fiscal de Sintra","AC"]
[233580000,"Tribunal Administrativo e Fiscal de Loulé","AC"]
[233600000,"Tribunal Administrativo e Fiscal de Almada","AC"]
[233610000,"Tribunal Administrativo e Fiscal de Braga","AC"]
[233620000,"Tribunal Administrativo e Fiscal de Beja","AC"]
[233630000,"Tribunal Administrativo e Fiscal de Castelo Branco","AC"]
[233640000,"Tribunal Administrativo e Fiscal de Coimbra","AC"]
[233650000,"Tribunal Administrativo e Fiscal de Leiria","AC"]
[233720000,"Tribunal Administrativo e Fiscal de Mirandela","AC"]
[233730000,"Tribunal Administrativo e Fiscal de Penafiel","AC"]
[233740000,"Tribunal Administrativo e Fiscal de Ponta Delgada","AC"]
[233790000,"Tribunal Administrativo e Fiscal do Porto","AC"]
[233800000,"Tribunal Administrativo e Fiscal de Viseu","AC"]
[250030000,"Escola Secundária Fernão Mendes Pinto","AC"]
[250050000,"Agrupamento de Escolas do Algueirão (Escola Básica e Secundária Mestre Domingos Saraiva - Sede)","AC"]
[250070000,"Escola Profissional Agrícola D. Dinis - Paiã","AC"]
[250090000,"Escola Secundária da Baixa da Banheira, Vale da Amoreira, Moita","AC"]
[250100000,"Agrupamento de Escolas de Valpaços (Escola Secundária de Valpaços - Sede)","AC"]
[250110000,"Agrupamento de Escolas de São João da Talha (Escola Secundária São João da Talha - Sede) ","AC"]
[250120000,"Agrupamento de Escolas de Mafra (Escola Básica de Mafra - Sede)","AC"]
[250130000,"Agrupamento de Escolas Pedro Eanes Lobato, Seixal (Escola Básica Pedro Eanes Lobato, Amora, Seixal - Sede)","AC"]
[250150000,"Agrupamento de Escolas da Moita (Escola Secundária da Moita - Sede)","AC"]
[250160000,"Escola Secundária Infanta D. Maria","AC"]
[250180000,"Agrupamento de Escolas Dr. Ferreira da Silva, Oliveira de Azeméis (Escola Básica e Secundária Dr. Ferreira da Silva, Cucujães - Sede)","AC"]
[250210000,"Escola Profissional de Fermil ","AC"]
[250220000,"Escola Secundária José Falcão, Coimbra","AC"]
[250260000,"Agrupamento de Escolas de Canedo, Santa Maria da Feira (Escola Básica de Canedo, Santa Maria da Feira - Sede)","AC"]
[250270000,"Agrupamento de Escolas de Santa Cruz da Trapa, São Pedro do Sul (Escola Básica de Santa Cruz da Trapa, São Pedro do Sul - Sede)","AC"]
[250280000,"Agrupamento de Escolas Martim de Freitas, Coimbra (Escola Básica Martim de Freitas, Coimbra - Sede)","AC"]
[250370000,"Escola Secundária Camões, Lisboa","AC"]
[250380000,"Agrupamento de Escolas Maria Keil (Escola Básica Integrada da Apelação - Sede)","AC"]
[250400000,"Escola Secundária Inês de Castro ","AC"]
[250430000,"Agrupamento de Escolas Miguel Torga, Amadora (Escola Básica Miguel Torga, São Brás, Amadora - Sede)","AC"]
[250440000,"Escola Secundária da Quinta do Marquês, Oeiras","AC"]
[250450000,"Agrupamento de Escolas de Albergaria-a-Velha (Escola Secundária de Albergaria-a-Velha - Sede)","AC"]
[250500000,"Agrupamento de Escolas de Águeda (Escola Básica Fernando Caldeira, Águeda - Sede)","AC"]
[250540000,"Agrupamento de Escolas de Vila Nova de Poiares (Escola Básica e Secundária Dr. Daniel de Matos, Vila Nova de Poiares - Sede)","AC"]
[250550000,"Agrupamento de Escolas de Fernão do Pó, Bombarral (Escola Básica e Secundária Fernão do Pó, Bombarral - Sede)","AC"]
[250560000,"Agrupamento de Escolas de Anadia (Escola Secundária da Anadia - Sede) ","AC"]
[250570000,"Agrupamento de Escolas de Sertã (Escola Secundária da Sertã - Sede)","AC"]
[250580000,"Agrupamento de Escolas de Mira (Escola Secundária com 3º ciclo Dr.ª Maria Cândida - Sede)","AC"]
[250590000,"Agrupamento de Escolas de Mortágua (Escola Secundária Dr. João Lopes de Morais, Mortágua - Sede)","AC"]
[250600000,"Agrupamento de Escolas D. João I, Moita (Escola Básica D. João I, Baixa da Banheira, Moita - Sede)","AC"]
[250620000,"Agrupamento de Escolas Piscinas - Olivais, Lisboa (Escola Básica de Piscinas, Lisboa - Sede)","AC"]
[250630000,"Agrupamento de Escolas Marquês de Marialva, Cantanhede (Escola Básica Marquês de Marialva, Cantanhede - Sede)","AC"]
[250640000,"Agrupamento de Escolas Conde de Oeiras, Oeiras (Escola Básica Conde de Oeiras, Oeiras - Sede)","AC"]
[250680000,"Agrupamento de Escolas de Real, Braga (Escola Básica de Real, Braga - Sede)","AC"]
[250700000,"Agrupamento de Escolas Professor Ruy Luís Gomes, Almada (Escola Básica e Secundária Professor Ruy Luís Gomes, Laranjeiro, Almada - Sede)","AC"]
[250710000,"Agrupamento de Escolas de Trigal de Santa Maria, Braga (Escola Básica de Trigal de Santa Maria, Braga - Sede)","AC"]
[250720000,"Agrupamento de Escolas Cardoso Lopes, Amadora (Escola Básica Cardoso Lopes, Amadora - Sede)","AC"]
[250730000,"Agrupamento de Escolas de Canelas (Escola Básica e Secundária de Canelas - Sede)","AC"]
[250740000,"Escola Profissional Agrícola Conde de São Bento","AC"]
[250750000,"Escola Secundária de Paços de Ferreira","AC"]
[250760000,"Escola Artística António Arroio, Lisboa","AC"]
[250790000,"Escola Secundária Campos de Melo ","AC"]
[250820000,"Agrupamento de Escolas D. Manuel de Faria e Sousa, Felgueiras (Escola Básica D. Manuel de Faria e Sousa, Margaride, Felgueiras - Sede)","AC"]
[250840000,"Escola Profissional de Agricultura e Desenvolvimento Rural de Marco de Canaveses","AC"]
[250850000,"Agrupamento de Escolas Irmãos Passos, Guifões (Escola Básica Irmãos Passos - Sede) ","AC"]
[250870000,"Agrupamento de Escolas José Cardoso Pires, Amadora (Escola Básica José Cardoso Pires, São Brás, Amadora - Sede)","AC"]
[250880000,"Agrupamento de Escolas de Mogadouro (Escola Básica e Secundária do Mogadouro - Sede)","AC"]
[250900000,"Agrupamento de Escolas de Mondim de Basto (Escola Básica e Secundária de Mondim de Basto - Sede)","AC"]
[250920000,"Agrupamento de Escolas Visconde de Chanceleiros, Alenquer (Escola Básica Visconde de Chanceleiros, Merceana, Alenquer - Sede)","AC"]
[250930000,"Agrupamento de Escolas de Canas de Senhorim, Nelas (Escola Básica e Secundária Eng. Dionísio Augusto Cunha, Canas de Senhorim, Nelas - Sede)","AC"]
[250940000,"Agrupamento de Escolas de Eixo, Aveiro (Escola Básica de Eixo, Aveiro - Sede) ","AC"]
[250960000,"Agrupamento de Escolas de Esgueira, Aveiro (Escola Básica e Secundária Dr. Jaime Magalhães Lima, Esgueira, Aveiro - Sede)","AC"]
[250970000,"Agrupamento de Escolas de Valongo do Vouga, Águeda (Escola Básica n.º 2 de Valongo do Vouga, Águeda - Sede)","AC"]
[250980000,"Agrupamento de Escolas da Senhora da Hora, Matosinhos (Escola Secundária da Senhora da Hora- Sede) ","AC"]
[251030000,"Escola Secundária São Pedro, Vila Real","AC"]
[251040000,"Agrupamento de Escolas Alto dos Moinhos (Escola Básica do Alto dos Moinhos - Sede)","AC"]
[251050000,"Agrupamento de Escolas Manuel da Maia (Escola Básica 2º e 3º ciclos de Manuel da Maia - Sede)","AC"]
[251080000,"Agrupamento de Escolas de Oliveira de Frades (Escola Básica e Secundária de Oliveira de Frades - Sede)","AC"]
[251090000,"Agrupamento de Escolas da Gafanha da Nazaré (Escola Secundária da Gafanha da Nazaré - Sede)","AC"]
[251110000,"Escola Secundária Dr. Augusto César da Silva Ferreira ","AC"]
[251130000,"Agrupamento de Escolas de Casquilhos, Barreiro (Escola Secundária de Casquilhos, Barreiro - Sede) ","AC"]
[251150000,"Agrupamento de Escolas Passos Manuel (Escola Básica e Secundária Passos Manuel, Lisboa - Sede)","AC"]
[251160000,"Agrupamento de Escolas São Martinho do Porto (Escola Básica e Secundária de São Martinho do Porto - Sede)","AC"]
[251170000,"Escola Secundária de Viriato","AC"]
[251180000,"Agrupamento de Escolas João de Meira, Guimarães (Escola Básica Professor João de Meira, Guimarães - Sede)","AC"]
[251190000,"Agrupamento de Escolas André Soares, Braga (Escola Básica André Soares, Braga - Sede)","AC"]
[251200000,"Escola Secundária Alves Martins ","AC"]
[251210000,"Agrupamento de Escolas Álvaro Coutinho, O Magriço, Penedono (Escola Básica Álvaro Coutinho, O Magriço, Penedono - Sede)","AC"]
[251280000,"Escola Secundária de Penafiel","AC"]
[251290000,"Agrupamento de Escolas D. Sancho II, Alijó (Escola Básica e Secundária D. Sancho II, Alijó - Sede)","AC"]
[251320000,"Agrupamento de Escolas de Resende (Escola Secundária D. Egas Moniz, Resende - Sede)","AC"]
[251330000,"Agrupamento de Escolas de Nelas (Escola Secundária de Nelas - Sede)","AC"]
[251340000,"Agrupamento de Escolas de Celorico de Basto (Escola Básica e Secundária de Celorico de Basto - Sede)","AC"]
[251350000,"Agrupamento de Escolas Lousada Oeste (Escola Básica e Secundária de Lousada Oeste - Sede)","AC"]
[251360000,"Escola Secundária Dr. Joaquim de Carvalho ","AC"]
[251370000,"Agrupamento de Escolas António Nobre, Porto (Escola Secundária António Nobre, Porto - Sede) ","AC"]
[251410000,"Escola Secundária Henrique Medina","AC"]
[251430000,"Agrupamento de Escolas do Sardoal (Escola Básica e Secundária Dra. Judite Andrade, Sardoal - Sede)","AC"]
[251460000,"Agrupamento de Escolas de Ílhavo (Escola Secundária Dr. João Carlos Celestino Gomes, Ílhavo - Sede)","AC"]
[251470000,"Agrupamento de Escolas Quinta de Marrocos, Lisboa (Escola Básica da Quinta de Marrocos, Lisboa - Sede)","AC"]
[251490000,"Agrupamento de Escolas do Vale de São Torcato, Guimarães (Escola Básica do Vale de São Torcato, Guimarães - Sede)","AC"]
[251500000,"Agrupamento de Escolas Gomes Monteiro, Boticas (Escola Básica Gomes Monteiro, Boticas - Sede)","AC"]
[251520000,"Agrupamento de Escolas de Vila Verde (Escola Básica de Vila Verde - Sede)","AC"]
[251530000,"Escola Secundária Quinta das Palmeiras, Covilhã","AC"]
[251550000,"Agrupamento de Escolas Dr. Mário Fonseca, Lousada ( Escola Básica e Secundária Dr. Mário Fonseca, Nogueira, Lousada - Sede)","AC"]
[251630000,"Agrupamento de Escolas Escultor António Fernandes de Sá, Vila Nova de Gaia (Escola Básica Escultor António Fernandes Sá, Gervide - Sede)","AC"]
[251670000,"Agrupamento de Escolas Vale do Tamel (Escola Básica e Secundária Vale do Tamel - Sede) ","AC"]
[251680000,"Escola Secundária de Caldas das Taipas","AC"]
[251710000,"Agrupamento de Escolas de Pedrouços, Maia (Escola Básica de Pedrouços, Maia - Sede)","AC"]
[251740000,"Agrupamento de Escolas Dr. Carlos Pinto Ferreira, Vila do Conde (Escola Básica Dr. Carlos Pinto Ferreira, Junqueira, Vila do Conde - Sede) ","AC"]
[251760000,"Escola Secundária Eça de Queirós, Póvoa de Varzim","AC"]
[251790000,"Agrupamento de Escolas de Frazão, Paços de Ferreira (Escola Básica de Frazão, Paços de Ferreira - Sede)","AC"]
[251800000,"Agrupamento de Escolas de Freixo (Escola Básica de Freixo - Sede)","AC"]
[251820000,"Agrupamento de Escolas de Ribeirão, Vila Nova de Famalicão (Escola Básica de Ribeirão, Vila Nova de Famalicão - Sede)","AC"]
[251830000,"Agrupamento de Escolas de Valadares, Vila Nova de Gaia (Escola Básica de Valadares, Vila Nova de Gaia - Sede)","AC"]
[251840000,"Agrupamento de Escolas D. António Ferreira Gomes, Penafiel (Escola Básica D. António Ferreira Gomes, Milhundos, Penafiel - Sede)","AC"]
[251850000,"Agrupamento de Escolas de Vila Nova de Cerveira (Escola Básica e Secundária de Vila Nova de Cerveira - Sede)","AC"]
[251870000,"Escola Secundária João Gonçalves Zarco ","AC"]
[251880000,"Agrupamento de Escolas Professor Óscar Lopes, Matosinhos (Escola Básica Professor Óscar Lopes, Matosinhos - Sede)","AC"]
[251900000,"Escola Secundária de Paredes","AC"]
[251920000,"Agrupamento de Escolas do Monte da Caparica, Almada (Escola Básica de Monte da Caparica, Almada - Sede)","AC"]
[251930000,"Agrupamento de Escolas de Vale D' Este, Barcelos (Escola Básica e Secundária Vale D' Este, Viatodos, Barcelos - Sede)","AC"]
[251940000,"Agrupamento de Escolas Gonçalo Nunes, Barcelos (Escola Básica Gonçalo Nunes, Arcozelo, Barcelos - Sede)","AC"]
[251950000,"Agrupamento de Escolas José Relvas, Alpiarça (Escola Básica e Secundária José Relvas, Alpiarça - Sede)","AC"]
[251960000,"Agrupamento de Escolas de Eiriz, Paços de Ferreira (Escola Básica de Eiriz, Paços de Ferreira - Sede)","AC"]
[252030000,"Agrupamento de Escolas de Penafiel Sudeste (Escola Básica de Penafiel Sudeste - Sede)","AC"]
[252140000,"Agrupamento de Escolas D. Carlos I, Sintra (Escola Básica D. Carlos I, Sintra - Sede)","AC"]
[252310000,"Agrupamento de Escolas de Ferreira do Alentejo (Escola Básica e Secundária José Gomes Ferreira, Ferreira do Alentejo - Sede)","AC"]
[252420000,"Agrupamento de Escolas de Arruda dos Vinhos (Escola Básica nº 1 de Arruda dos Vinhos - Sede)","AC"]
[252530000,"Agrupamento de Escolas Manuel Ferreira Patrício, Évora (Escola Básica Manuel Ferreira Patrício, Évora - Sede)","AC"]
[252750000,"Agrupamento de Escolas José Saramago, Palmela (Escola Básica José Saramago, Poceirão, Palmela - Sede)","AC"]
[252930000,"Agrupamento de Escolas Vila Nova de Milfontes (Escola Básica 1º ciclo de Vila Nova Milfontes - Sede)","AC"]
[252940000,"Agrupamento de Escolas de Alvito (Escola Básica nº 1 de Alvito - Sede)","AC"]
[253510000,"Agrupamento de Escolas da Damaia, Amadora (Escola Básica Prof. Pedro D´Orey da Cunha, Damaia, Amadora - Sede)","AC"]
[253520000,"Agrupamento de Escolas Paulo da Gama, Seixal (Escola Básica Paulo da Gama, Amora, Seixal - Sede)","AC"]
[253540000,"Agrupamento de Escolas Terras de Larus, Seixal (Escola Básica da Cruz de Pau, Seixal - Sede)","AC"]
[253560000,"Agrupamento de Escolas de Almeirim (Escola Secundária da Marquesa de Alorna - Sede)","AC"]
[253580000,"Agrupamento de Escolas Lapiás, Sintra (Escola Básica Dr. Rui Grácio, Montelavar, Sintra - Sede)","AC"]
[253590000,"Agrupamento de Escolas Visconde de Juromenha, Sintra (Escola Básica Visconde de Juromenha, Mem Martins, Sintra - Sede)","AC"]
[253610000,"Agrupamento de Escolas Marcelino Mesquita do Cartaxo (Escola Básica Marcelino Mesquita, Cartaxo - Sede)","AC"]
[253640000,"Agrupamento de Escolas Ruy Belo, Sintra (Escola Básica Ruy Belo, Queluz, Sintra - Sede)","AC"]
[253660000,"Agrupamento de Escolas Fragata do Tejo, Moita (Escola Básica de Fragata do Tejo, Moita - Sede) ","AC"]
[253670000,"Agrupamento de Escolas Ferreira de Castro, Sintra (Escola Básica Ferreira de Castro, Ouressa, Sintra - Sede)","AC"]
[253680000,"Agrupamento de Escolas Professor Agostinho da Silva, Sintra (Escola Básica Professor Agostinho da Silva, Casal de Cambra, Sintra - Sede)","AC"]
[253690000,"Agrupamento de Escolas Alfredo da Silva, Sintra (Escola Básica Alfredo da Silva, Albarraque, Sintra - Sede)","AC"]
[253700000,"Agrupamento de Escolas José Maria dos Santos, Palmela (Escola Básica José Maria dos Santos, Pinhal Novo, Palmela - Sede)","AC"]
[253710000,"Agrupamento de Escolas do Montijo (Escola Básica D. Pedro Varela, Montijo - Sede)","AC"]
[253760000,"Agrupamento de Escolas n.º 2 de Elvas (Escola Básica n.º 1 de Elvas - Sede)","AC"]
[253780000,"Agrupamento de Escolas do Forte da Casa (Escola Secundária do Forte da Casa - Sede)","AC"]
[253810000,"Agrupamento de Escolas D. António de Ataíde, Vila Franca de Xira (Escola Básica D. António de Ataíde, Castanheira do Ribatejo - Sede)","AC"]
[253820000,"Agrupamento de Escolas Barbosa du Bocage, Setúbal (Escola Básica Barbosa du Bocage, Setúbal - Sede)","AC"]
[253830000,"Agrupamento de Escolas Luísa Todi, Setúbal (Escola Básica Luísa Todi, Setúbal - Sede)","AC"]
[253840000,"Agrupamento de Escolas de Sines (Escola Básica Vasco da Gama, Sines - Sede)","AC"]
[253850000,"Agrupamento de Escolas Luís de Sttau Monteiro, Loures (Escola Básica Luis de Sttau Monteiro, Loures - Sede)","AC"]
[253860000,"Agrupamento de Escolas Adelaide Cabette, Odivelas (Escola Secundária de Odivelas - Sede)","AC"]
[253870000,"Agrupamento de Escolas de Albufeira (Escola Básica e Secundária de Albufeira - Sede)","AC"]
[253880000,"Agrupamento de Escolas D. João II, Caldas da Rainha (Escola Básica D. João II, Caldas da Rainha - Sede)","AC"]
[253890000,"Agrupamento de Escolas D. Lourenço Vicente, Lourinhã (Escola Básica Dr. João das Regras, Lourinhã - Sede)","AC"]
[253900000,"Agrupamento de Escolas Eduardo Gageiro, Loures (Escola Secundária de Sacavém - Sede)","AC"]
[253910000,"Agrupamento de Escolas Dr. Alberto Iria, Olhão (Escola Básica Dr. Alberto Iria, Olhão - Sede)","AC"]
[253920000,"Agrupamento de Escolas Vasco Santana, Odivelas (Escola Básica Vasco Santana, Ramada, Odivelas - Sede)","AC"]
[253930000,"Agrupamento de Escolas de Santa Iria de Azóia, Loures (Escola Básica de Santa Iria de Azóia, Loures - Sede)","AC"]
[253940000,"Agrupamento de Escolas a Sudoeste de Odivelas (Escola Básica António Gedeão, Odivelas - Sede)","AC"]
[253960000,"Agrupamento de Escolas João Villaret, Loures (Escola Básica João Villaret, Loures - Sede) ","AC"]
[253980000,"Agrupamento de Escolas Josefa de Óbidos, Óbidos (Escola Básica e Secundária Josefa de Óbidos, Óbidos - Sede)","AC"]
[253990000,"Agrupamento de Escolas de São Bruno, Oeiras (Escola Básica de São Bruno, Caxias, Oeiras - Sede)","AC"]
[254050000,"Agrupamento de Escolas de Estremoz (Escola Básica Sebastião da Gama, Estremoz - Sede)","AC"]
[254070000,"Agrupamento de Escolas Gil Eanes (Escola Secundária Gil Eanes - Sede)","AC"]
[254090000,"Agrupamento de Escolas de Miraflores (Escola Secundária de Miraflores - Sede)","AC"]
[254100000,"Agrupamento de Escolas D. Dinis, Odivelas (Escola Básica D. Dinis, Odivelas - Sede)","AC"]
[254110000,"Agrupamento de Escolas D. Luís de Ataíde, Peniche (Escola Básica D. Luís de Ataíde, Peniche - Sede)","AC"]
[254120000,"Agrupamento de Escolas Padre João Coelho Cabanita (Escola Básica Padre João Coelho Cabanita, Loulé - Sede)","AC"]
[254130000,"Agrupamento de Escolas da Lourinhã (Escola Secundária Dr. João Manuel da Costa Delgado, Lourinhã - Sede)","AC"]
[254140000,"Agrupamento de Escolas D. José I, Vila Real de Santo António (Escola Básica D. José I, Vila Real de Santo António - Sede)","AC"]
[254170000,"Agrupamento de Escolas D. Dinis, Loulé (Escola Básica D. Dinis, Quarteira, Loulé - Sede)","AC"]
[254180000,"Agrupamento de Escolas Eng. Nuno Mergulhão, Portimão (Escola Básica Eng. Nuno Mergulhão, Portimão - Sede)","AC"]
[254210000,"Agrupamento de Escolas Júdice Fialho, Portimão (Escola Básica Júdice Fialho, Portimão - Sede)","AC"]
[254220000,"Agrupamento de Escolas da Bobadela, Loures (Escola Básica da Bobadela, Loures - Sede)","AC"]
[254230000,"Agrupamento de Escolas Nuno Gonçalves, Lisboa (Escola Básica Nuno Gonçalves, Lisboa - Sede)","AC"]
[254240000,"Agrupamento de Escolas Francisco de Arruda, Lisboa (Escola Básica Francisco de Arruda, Lisboa - Sede)","AC"]
[254280000,"Agrupamento de Escolas Marquesa de Alorna, Lisboa (Escola Básica Marquesa de Alorna, Lisboa - Sede) ","AC"]
[254300000,"Agrupamento de Escolas Luís de Camões, Lisboa (Escola Básica Luís de Camões, Lisboa - Sede)","AC"]
[254310000,"Agrupamento de Escolas do Bairro Padre Cruz, Lisboa (Escola Básica do Bairro Padre Cruz, Lisboa - Sede)","AC"]
[254360000,"Agrupamento de Escolas do Alto do Lumiar, Lisboa (Escola Básica do Alto do Lumiar, Lisboa - Sede)","AC"]
[254370000,"Agrupamento de Escolas Pintor Almada Negreiros, Lisboa (Escola Básica Pintor Almada Negreiros, Lisboa - Sede)","AC"]
[254380000,"Agrupamento de Escolas de Santa Maria dos Olivais (Escola Secundária António Damásio - Sede)","AC"]
[254390000,"Agrupamento de Escolas de Portel (Escola Básica D. João de Portel, Portel - Sede)","AC"]
[254410000,"Agrupamento de Escolas Luís António Verney, Lisboa (Escola Básica Luís António Verney, Lisboa - Sede) ","AC"]
[254430000,"Agrupamento de Escolas Moinhos da Arroja (Escola EB2,3 Moinhos da Arroja - Sede)","AC"]
[254450000,"Agrupamento de Escolas General Humberto Delgado (Escola Secundária com 3º ciclo José Cardoso Pires - Sede)","AC"]
[254480000,"Agrupamento de Escolas Carlos Gargaté, Charneca da Caparica, Almada (Escola Básica Carlos Gargaté, Charneca da Caparica, Almada - Sede)","AC"]
[254490000,"Escola Básica da Ponte, Vila das Aves, Santo Tirso ","AC"]
[254500000,"Agrupamento de Escolas de Peniche (Escola Básica Integrada de Peniche - Sede)","AC"]
[254560000,"Agrupamento de Escolas Miradouro de Alfazina (Escola Básica do Miradouro de Alfazina - Sede)","AC"]
[254580000,"Agrupamento de Escolas de Carnaxide - Portela, Oeiras (Escola Básica Sophia de Mello Breyner, Portela, Oeiras - Sede)","AC"]
[254700000,"Escola Secundária de São Lourenço","AC"]
[254710000,"Agrupamento de Escolas Professor Reynaldo dos Santos, Vila Franca de Xira (Escola Básica e Secundária Professor Reynaldo dos Santos - Sede)","AC"]
[254760000,"Escola Secundária Gago Coutinho, Alverca do Ribatejo, Vila Franca de Xira","AC"]
[254810000,"Escola Secundária Emídio Navarro","AC"]
[254820000,"Escola Secundária Dom Manuel Martins","AC"]
[254920000,"Escola Secundária Francisco Rodrigues Lobo, Leiria","AC"]
[254940000,"Escola Secundária de Loulé","AC"]
[254980000,"Escola Secundária José Saramago","AC"]
[255210000,"Agrupamento de Escolas da Batalha (Escola  Básica e Secundária da Batalha - Sede)","AC"]
[255220000,"Agrupamento de Escolas de Campo Maior (Escola Secundária de Campo Maior - Sede)","AC"]
[255230000,"Agrupamento de Escolas Nun'Álvares, Seixal (Escola Básica Nun'Álvares, Arrentela, Seixal - Sede)","AC"]
[255240000,"Agrupamento de Escolas de Moimenta da Beira (Escola Básica e Secundária de Moimenta da Beira - Sede)","AC"]
[255260000,"Agrupamento de Escolas de Figueira de Castelo Rodrigo (Escola Secundária de Figueira de Castelo Rodrigo - Sede)","AC"]
[255270000,"Agrupamento de Escolas de Figueiró dos Vinhos (Escola Secundária com o 3º ciclo de Figueiró dos Vinhos - Sede)","AC"]
[255280000,"Agrupamento de Escolas da Benedita, Alcobaça (Escola Básica da Benedita, Alcobaça - Sede)","AC"]
[255290000,"Agrupamento de Escolas Pêro da Covilhã, Covilhã (Escola Básica Pêro da Covilhã, Covilhã - Sede)","AC"]
[255300000,"Agrupamento de Escolas de Pinhel (Escola Secundária de Pinhel - Sede)","AC"]
[255310000,"Agrupamento de Escolas de Vouzela (Escola Básica de Vouzela - Sede)","AC"]
[255330000,"Agrupamento de Escolas Padre Bartolomeu de Gusmão, Lisboa (Escola Básica e Secundária Josefa de Óbidos, Lisboa - Sede)","AC"]
[255340000,"Agrupamento de Escolas Tenente Coronel Adão Carrapatoso, Vila Nova de Foz Côa (Escola Básica e Secundária Tenente Coronel Adão Carrapatoso - Sede)","AC"]
[255350000,"Agrupamento de Escolas de Porto de Mós (Escola Secundária de Porto de Mós - Sede)","AC"]
[255360000,"Agrupamento de Escolas Ibn Mucana (Escola Secundária Ibn Mucana, Alcabideche, Cascais - Sede) ","AC"]
[255370000,"Agrupamento de Escolas de Miranda do Douro (Escola Básica e Secundária de Miranda do Douro - Sede)","AC"]
[255380000,"Agrupamento de Escolas de Aver-o-Mar, Póvoa de Varzim (Escola Básica de Aver-o-Mar, Póvoa de Varzim - Sede)","AC"]
[255390000,"Agrupamento de Escolas de Fazendas de Almeirim, Almeirim (Escola Básica de Fazendas de Almeirim, Almeirim - Sede)","AC"]
[255410000,"Agrupamento de Escolas de Vale de Milhaços, Seixal (Escola Básica de Vale de Milhaços, Seixal - Sede) ","AC"]
[255420000,"Agrupamento de Escolas de Salvaterra de Magos (Escola Básica e Secundária de Salvaterra de Magos - Sede)","AC"]
[255430000,"Agrupamento de Escolas de Rates, Póvoa de Varzim (Escola Básica de Rates, Póvoa de Varzim - Sede)","AC"]
[255460000,"Agrupamento de Escolas Júlio Dinis, Vila Nova de Gaia (Escola Básica Júlio Dinis, Grijó, Vila Nova de Gaia - Sede)","AC"]
[255470000,"Agrupamento de Escolas D. Pedro I, Vila Nova de Gaia (Escola Básica D. Pedro I, Canidelo, Vila Nova de Gaia - Sede)","AC"]
[255480000,"Agrupamento de Escolas de Marinhais, Salvaterra de Magos (Escola Básica de Marinhais, Salvaterra de Magos - Sede)","AC"]
[255500000,"Agrupamento de Escolas de Alcanena (Escola Secundária de Alcanena - Sede)","AC"]
[255510000,"Agrupamento de Escolas de Idães, Felgueiras (Escola Básica e Secundária de Idães, Felgueiras - Sede)","AC"]
[255520000,"Agrupamento de Escolas Manoel de Oliveira, Porto (Escola Básica Manoel de Oliveira, Porto - Sede)","AC"]
[255540000,"Agrupamento de Escolas Augusto Cabrita, Barreiro (Escola Secundária Augusto Cabrita, Barreiro - Sede)","AC"]
[255550000,"Agrupamento de Escolas de Pinheiro, Penafiel (Escola Básica e Secundária de Pinheiro, Penafiel - Sede)","AC"]
[255560000,"Agrupamento de Escolas Soares dos Reis, Vila Nova de Gaia (Escola Básica Soares dos Reis, Vila Nova de Gaia - Sede)","AC"]
[255570000,"Agrupamento de Escolas Dr. Costa Matos, Vila Nova de Gaia (Escola Básica Dr. Costa Matos, Vila Nova de Gaia - Sede)","AC"]
[255580000,"Agrupamento de Escolas do Viso, Porto (Escola Básica do Viso, Porto - Sede)","AC"]
[255590000,"Agrupamento de Escolas Prof. Arménio Lança, Santiago do Cacém (Escola Básica Prof. Arménio Lança, Alvalade Sado - Sede) ","AC"]
[255600000,"Agrupamento de Escolas Sophia de Mello Breyner, Vila Nova de Gaia (Escola Básica Sophia de Mello Breyner, Corvo, Vila Nova de Gaia - Sede)","AC"]
[255610000,"Agrupamento de Escolas de Valbom (Escola Secundária com 3.º ciclo - Sede) ","AC"]
[255620000,"Agrupamento de Escolas Padre Vítor Melícias, Torres Vedras (Escola Básica Padre Vítor Melícias, Torres Vedras - Sede)","AC"]
[255640000,"Agrupamento de Escolas do Levante da Maia, Maia (Escola Básica e Secundária do Levante da Maia, Nogueira da Maia, Maia - Sede)","AC"]
[255650000,"Agrupamento de Escolas Gonçalo Mendes da Maia, Maia (Escola Básica Gonçalo Mendes da Maia, Vermoim, Maia - Sede)","AC"]
[255660000,"Agrupamento de Escolas À Beira Douro, Gondomar (Escola Básica e Secundária À Beira Douro, Gondomar - Sede)","AC"]
[255680000,"Agrupamento de Escolas Júlio Dinis, Gondomar (Escola Básica Júlio Dinis, Gondomar - Sede) ","AC"]
[255690000,"Agrupamento de Escolas Infante D. Henrique, Porto (Escola Secundária com 3º ciclo Infante D. Henrique - Sede) ","AC"]
[255700000,"Agrupamento de Escolas Santa Bárbara, Gondomar (Escola Básica Santa Bárbara, Fânzeres, Gondomar - Sede)","AC"]
[255710000,"Agrupamento de Escolas Leonardo Coimbra-Filho, Porto (Escola Básica Leonardo Coimbra - Filho, Porto - Sede)","AC"]
[255720000,"Agrupamento de Escolas Dr. Vieira de Carvalho, Maia (Escola Básica e Secundária Dr. Vieira de Carvalho, Moreira da Maia, Maia - Sede)","AC"]
[255730000,"Agrupamento de Escolas Dr. Flávio Gonçalves, Póvoa de Varzim (Escola Básica Dr. Flávio Gonçalves, Póvoa de Varzim - Sede)","AC"]
[255740000,"Agrupamento de Escolas Dr. António Augusto Louro, Seixal (Escola Básica Dr. António Augusto Louro, Arrentela, Seixal - Sede)","AC"]
[255770000,"Agrupamento de Escolas do Viso, Viseu (Escola Básica do Viso, Viseu - Sede) ","AC"]
[255780000,"Agrupamento de Escolas Campo Aberto, Póvoa de Varzim (Escola Básica Campo Aberto, Beiriz, Póvoa de Varzim - Sede)","AC"]
[255790000,"Agrupamento de Escolas do Barreiro (Escola Básica D. Luís de Mendonça Furtado, Barreiro - Sede)","AC"]
[255800000,"Agrupamento de Escolas Cego do Maio, Póvoa de Varzim (Escola Básica Cego do Maio, Póvoa de Varzim - Sede)","AC"]
[255820000,"Agrupamento de Escolas Eugénio de Andrade, Porto (Escola Básica Eugénio de Andrade, Porto - Sede)","AC"]
[255830000,"Agrupamento de Escolas de São Gonçalo, Torres Vedras (Escola Básica São Gonçalo, Torres Vedras - Sede)","AC"]
[255840000,"Agrupamento de Escolas Dr. Machado de Matos, Felgueiras (Escola Básica e Secundária Dr. Machado de Matos, Felgueiras - Sede)","AC"]
[255860000,"Agrupamento de Escolas de Airães, Felgueiras (Escola Básica e Secundária de Airães, Felgueiras - Sede)","AC"]
[255870000,"Agrupamento de Escolas Pinhal de Frades (Escola Básica Carlos Ribeiro - Sede) ","AC"]
[255880000,"Agrupamento de Escolas Vale da Amoreira, Moita (Escola Básica de Vale da Amoreira, Moita - Sede)","AC"]
[255900000,"Agrupamento de Escolas Mouzinho da Silveira, Moita (Escola Básica Mouzinho da Silveira, Baixa da Banheira, Moita - Sede)","AC"]
[255910000,"Agrupamento de Escolas de Álvaro Velho, Barreiro (Escola Básica Álvaro Velho, Lavradio, Barreiro - Sede)","AC"]
[255920000,"Agrupamento de Escolas Castelo da Maia (Escola Secundária do Castelo da Maia - Sede)","AC"]
[255940000,"Agrupamento de Escolas de Cercal do Alentejo, Santiago do Cacém (Escola Básica n.º 1 de Cercal do Alentejo, Santiago do Cacém - Sede)","AC"]
[255950000,"Agrupamento de Escolas Infanta D. Mafalda, Gondomar (Escola Básica Infanta D. Mafalda, Rio Tinto, Gondomar - Sede)","AC"]
[255980000,"Agrupamento de Escolas de Rio Tinto, Gondomar (Escola Básica de Rio Tinto, Gondomar - Sede)","AC"]
[255990000,"Agrupamento de Escolas de Marco de Canaveses (Escola Básica de Marco de Canaveses - Sede)","AC"]
[256040000,"Agrupamento de Escolas de São Pedro da Cova, Gondomar (Escola Básica de São Pedro da Cova, Gondomar - Sede)","AC"]
[256060000,"Agrupamento de Escolas de Lousada Este (Escola Básica de Lousada Este, Lousada - Sede)","AC"]
[256080000,"Agrupamento de Escolas do Sudeste de Baião (Escola Básica do Sudeste de Baião - Sede)","AC"]
[256090000,"Agrupamento de Escolas de Paço de Sousa, Penafiel (Escola Básica de Paço de Sousa, Penafiel - Sede)","AC"]
[256100000,"Agrupamento de Escolas D. Sancho I, Pontével, Cartaxo (Escola Básica D. Sancho I, Pontével, Cartaxo - Sede)","AC"]
[256110000,"Agrupamento de Escolas do Cerco do Porto, Porto ( Escola Básica e Secundária do Cerco do Porto, Porto - Sede) ","AC"]
[256150000,"Agrupamento de Escolas Daniel Faria, Baltar, Paredes (Escola Secundária de Baltar - Sede)","AC"]
[256160000,"Agrupamento de Escolas de Avis (Escola Básica Mestre de Avis, Avis - Sede)","AC"]
[256180000,"Agrupamento de Escolas n.º 1 de Elvas (Escola Básica n.º 2 de Elvas - Sede)","AC"]
[256220000,"Agrupamento de Escolas da Madalena, Vila Nova de Gaia (Escola Básica da Madalena, Vila Nova de Gaia - Sede)","AC"]
[256240000,"Agrupamento de Escolas de Pegões, Canha e Santo Isidro, Montijo (Escola Básica de Pegões, Canha e Santo Isidro, Montijo - Sede)","AC"]
[256250000,"Agrupamento de Escolas de Palmela (Escola Básica Hermenegildo Capelo, Palmela - Sede)","AC"]
[256260000,"Agrupamento de Escolas Dr. José Domingues dos Santos, Matosinhos (Escola Básica Dr. José Domingues dos Santos, Cabanelas, Matosinhos - Sede)","AC"]
[256270000,"Agrupamento de Escolas Pêro Vaz de Caminha, Porto (Escola Básica Pêro Vaz de Caminha, Porto - Sede)","AC"]
[256290000,"Agrupamento de Escolas José Afonso, Moita (Escola Básica José Afonso, Alhos Vedros, Moita - Sede)","AC"]
[256300000,"Agrupamento de Escolas de Samora Correia, Benavente (Escola Básica Professor João Fernandes Pratas, Samora Correia, Benavente - Sede)","AC"]
[256320000,"Agrupamento de Escolas D. Manuel I, Tavira (Escola Básica D. Manuel I, Tavira - Sede)","AC"]
[256350000,"Agrupamento de Escolas de Eiriz, Baião (Escola Básica de Eiriz, Baião - Sede)","AC"]
[256370000,"Agrupamento de Escolas de Arronches (Escola Básica Nossa Senhora da Luz, Arronches - Sede)","AC"]
[256380000,"Agrupamento de Escolas de Romeu Correia (Escola Secundária Romeu Correia - Sede) ","AC"]
[256400000,"Agrupamento de Escolas de Perafita, Matosinhos (Escola Básica de Perafita, Matosinhos - Sede)","AC"]
[256410000,"Agrupamento de Escolas de Torrão, Alcácer do Sal (Escola Básica Bernardim Ribeiro, Alcácer do Sal - Sede)","AC"]
[256420000,"Agrupamento de Escolas Almeida Garrett, Amadora (Escola Básica Almeida Garrett, Alfragide, Amadora - Sede)","AC"]
[256430000,"Agrupamento de Escolas de Amarante (Escola Básica de Amarante - Sede)","AC"]
[256450000,"Agrupamento de Escolas de Coronado e Castro, Trofa (Escola Básica e Secundária de Coronado e Castro, São Romão do Coronado, Trofa - Sede)","AC"]
[256460000,"Agrupamento de Escolas Alexandre Herculano, Santarém (Escola Básica Alexandre Herculano, Santarém - Sede)","AC"]
[256470000,"Agrupamento de Escolas de Alfornelos, Amadora (Escola Básica de Alfornelos, Amadora - Sede)","AC"]
[256480000,"Agrupamento de Escolas D. Afonso Henriques, Santarém (Escola Básica de Alcanede, Santarém - Sede)","AC"]
[256490000,"Agrupamento de Escolas de Sousel (Escola Básica Padre Joaquim Maria Fernandes, Sousel - Sede)","AC"]
[256530000,"Agrupamento de Escolas de Cristelo, Paredes (Escola Básica de Cristelo, Paredes - Sede)","AC"]
[256540000,"Agrupamento de Escolas de Castelo de Vide (Escola Básica Garcia da Orta, Castelo de Vide - Sede)","AC"]
[256550000,"Agrupamento de Escolas de Alfena, Valongo (Escola Secundária de Alfena, Valongo - Sede)","AC"]
[256560000,"Agrupamento de Escolas Gil Paes (Escola Secundária Maria Lamas - Sede) ","AC"]
[256570000,"Agrupamento de Escolas de São Lourenço, Valongo (Escola Básica de São Lourenço, Ermesinde, Valongo - Sede)","AC"]
[256590000,"Agrupamento de Escolas de Campo, Valongo (Escola Básica e Secundária de Campo, Valongo - Sede)","AC"]
[256600000,"Agrupamento de Escolas de Vallis Longus, Valongo (Escola Básica de Vallis Longus, Valongo - Sede)","AC"]
[256610000,"Agrupamento de Escolas de Sobreira, Paredes (Escola Básica de Sobreira, Paredes - Sede)","AC"]
[256620000,"Agrupamento de Escolas José Régio, Portalegre (Escola Básica José Régio, Portalegre - Sede)","AC"]
[256650000,"Agrupamento de Escolas Eng. Fernando Pinto de Oliveira (Escola Básica Eng. Fernando Pinto de Oliveira - Sede)","AC"]
[256680000,"Agrupamento de Escolas de Paredes (Escola Básica de Paredes - Sede)","AC"]
[256690000,"Agrupamento de Escolas de Paços de Ferreira (Escola Básica de Paços de Ferreira - Sede)","AC"]
[256720000,"Agrupamento de Escolas Frei João de Vila do Conde, Vila do Conde (Escola Básica Frei João de Vila do Conde, Vila do Conde - Sede)","AC"]
[256730000,"Agrupamento de Escolas Conde de Ourém, Ourém (Escola Básica 4.º Conde de Ourém, Ourém - Sede)","AC"]
[256780000,"Agrupamento de Escolas de Monforte (Escola Básica n.º 1 de Monforte - Sede)","AC"]
[256790000,"Agrupamento de Escolas do Cónego Dr. Manuel Lopes Perdigão, Ourém (Escola Básica Cónego Dr. Manuel Lopes Perdigão, Caxarias, Ourém - Sede)","AC"]
[256800000,"Agrupamento de Escolas de Freamunde (Escola Básica e Secundária de Freamunde - Sede)","AC"]
[256810000,"Agrupamento de Escolas Alves Redol (Escola Secundária Alves Redol - Sede) ","AC"]
[256820000,"Agrupamento de Escolas de Vila D'Este, Vila Nova de Gaia (Escola Básica de Vila D'Este, Vilar de Andorinho, Vila Nova de Gaia - Sede)","AC"]
[256830000,"Agrupamento de Escolas de Vialonga, Vila Franca de Xira (Escola Básica de Vialonga, Vila Franca de Xira - Sede)","AC"]
[256840000,"Agrupamento de Escolas de Sande, Marco de Canaveses (Escola Básica de Sande, Marco de Canaveses - Sede)","AC"]
[256850000,"Agrupamento de Escolas Póvoa de Santa Iria (Escola Básica e Secundária D. Martinho Vaz de Castelo Branco - Sede)","AC"]
[256870000,"Agrupamento de Escolas de Alhandra, Sobralinho e São João dos Montes, Vila Franca de Xira (Escola Básica Soeiro Pereira Gomes, Alhandra - Sede)","AC"]
[256900000,"Agrupamento de Escolas Pedro Jacques de Magalhães, Vila Franca de Xira (Escola Básica Pedro Jacques de Magalhães, Alverca do Ribatejo - Sede)","AC"]
[256940000,"Agrupamento de Escolas da Trafaria, Almada (Escola Básica da Trafaria, Almada - Sede)","AC"]
[256950000,"Agrupamento de Escolas Dr. Ginestal Machado, Santarém (Escola Secundária Dr. Ginestal Machado , Santarém - Sede)","AC"]
[256980000,"Agrupamento de Escolas Padre João Rodrigues, Sernancelhe (Escola Básica Padre João Rodrigues, Veiga, Sernancelhe - Sede)","AC"]
[257010000,"Agrupamento de Escolas Ordem de Santiago, Setúbal (Escola Básica e Secundária Ordem de Santiago, Setúbal - Sede)","AC"]
[257030000,"Agrupamento de Escolas Infante D. Henrique, Repeses, Viseu (Escola Básica Infante D. Henrique, Repeses, Viseu - Sede) ","AC"]
[257040000,"Agrupamento de Escolas de Sátão (Escola Secundária Frei Rosa Viterbo, Sátão - Sede)","AC"]
[257060000,"Agrupamento de Escolas de Vila Pouca de Aguiar - Sul (Escola Básica e Secundária de Vila Pouca de Aguiar - Sul - Sede)","AC"]
[257070000,"Agrupamento de Escolas de Azeitão, Setúbal (Escola Básica de Azeitão, Vila Nogueira de Azeitão, Setúbal - Sede)","AC"]
[257080000,"Agrupamento de Escolas Viseu Norte (Escola Básica Dr. Azeredo Perdigão, Abraveses, Viseu - Sede)","AC"]
[257090000,"Agrupamento de Escolas General Serpa Pinto, Cinfães (Escola Básica General Serpa Pinto, Cinfães - Sede)","AC"]
[257130000,"Agrupamento de Escolas Navegador Rodrigues Soromenho, Sesimbra (Escola Básica Navegador Rodrigues Soromenho, Sesimbra - Sede)","AC"]
[257150000,"Agrupamento de Escolas de Souselo, Cinfães (Escola Básica de Souselo, Cinfães - Sede)","AC"]
[257160000,"Agrupamento de Escolas de Mundão, Viseu (Escola Básica n.º 3 de Mundão, Viseu - Sede)","AC"]
[257170000,"Agrupamento de Escolas D. Dinis, Leiria (Escola Básica D. Dinis, Leiria - Sede)","AC"]
[257180000,"Agrupamento de Escolas Diogo Cão, Vila Real (Escola Básica Diogo Cão, Vila Real - Sede)","AC"]
[257190000,"Agrupamento de Escolas de Valdevez, Arcos de Valdevez (Escola Básica e Secundária de Valdevez, Arcos de Valdevez - Sede)","AC"]
[257200000,"Agrupamento de Escolas de Muralhas do Minho, Valença (Escola Básica e Secundária de Muralhas do Minho, Valença - Sede)","AC"]
[257210000,"Agrupamento de Escolas Grão Vasco, Viseu (Escola Básica Grão Vasco - Sede)","AC"]
[257240000,"Agrupamento de Escolas António Feijó, Ponte de Lima (Escola Básica António Feijó, Ponte de Lima - Sede)","AC"]
[257260000,"Agrupamento de Escolas da Sé, Lamego (Escola Básica e Secundária da Sé - Sede)","AC"]
[257270000,"Agrupamento de Escolas de Ponte da Barca (Escola Básica Integrada e Secundário Diogo Bernardes - Sede)","AC"]
[257300000,"Agrupamento de Escolas de Carregal do Sal (Escola Secundária de Carregal do Sal - Sede)","AC"]
[257320000,"Agrupamento de Escolas Gomes Teixeira, Armamar (Escola Básica e Secundária Gomes Teixeira, Armamar - Sede)","AC"]
[257340000,"Agrupamento de Escolas Dr. João Araújo Correia (Escola Secundária Dr. João Araújo Correia - Sede)","AC"]
[257370000,"Agrupamento de Escolas de Castro Daire (Escola Secundária de Castro Daire - Sede) ","AC"]
[257380000,"Agrupamento de Escolas de Santa Marta de Penaguião (Escola Básica de Santa Marta de Penaguião - Sede)","AC"]
[257400000,"Agrupamento de Escolas de Tondela Cândido de Figueiredo (Escola Básica de Tondela - Sede)","AC"]
[257450000,"Agrupamento de Escolas de Colos, Odemira (Escola Básica Aviador Brito Paes, Colos, Odemira - Sede)","AC"]
[257460000,"Agrupamento de Escolas de Teixoso, Covilhã (Escola Básica n.º 2 de Teixoso, Covilhã - Sede)","AC"]
[257470000,"Agrupamento de Escolas de Prado, Vila Verde (Escola Básica de Prado, Vila Verde - Sede)","AC"]
[257480000,"Agrupamento de Escolas de Ovar (Escola Secundária Jose Macedo Fragateiro - Sede)","AC"]
[257530000,"Agrupamento de Escolas Arquiteto Fernando Távora, Guimarães (Escola Básica Arquiteto Fernando Távora, Fermentões, Guimarães - Sede)","AC"]
[257540000,"Agrupamento de Escolas de Sabóia, Odemira (Escola Básica n.º 1 de Saboia, Odemira - Sede)","AC"]
[257550000,"Agrupamento de Escolas de Arrifana, Santa Maria da Feira (Escola Básica de Arrifana, Santa Maria da Feira - Sede)","AC"]
[257560000,"Agrupamento de Escolas de Moure e Ribeira de Neiva, Vila Verde (Escola Básica de Moure e Ribeira do Neiva, Ribeira, Vila Verde - Sede)","AC"]
[257570000,"Agrupamento de Escolas de São Teotónio, Odemira (Escola Básica Engenheiro Manuel R. Amaro da Costa, São Teotónio, Odemira - Sede)","AC"]
[257600000,"Agrupamento de Escolas de Celeirós, Braga (Escola Básica de Celeirós, Braga - Sede)","AC"]
[257610000,"Agrupamento de Escolas de Loureiro, Oliveira de Azeméis (Escola Básica de Loureiro, Alumieira, Oliveira de Azeméis - Sede)","AC"]
[257620000,"Agrupamento de Escolas Rosa Ramalho, Barcelinhos (Escola Básica Rosa Ramalho, Barcelinhos, Barcelos - Sede)","AC"]
[257630000,"Agrupamento de Escolas da Murtosa (Escola Básica com Secundário Padre António Morais da Fonseca - Sede)","AC"]
[257640000,"Agrupamento de Escolas António Correia de Oliveira, Esposende (Escola Básica António Correia Oliveira, Esposende - Sede)","AC"]
[257680000,"Agrupamento de Escolas de Mealhada (Escola Secundária de Mealhada - Sede)","AC"]
[257710000,"Agrupamento de Escolas de Paços de Brandão, Santa Maria da Feira (Escola Básica de Paços de Brandão, Santa Maria da Feira - Sede)","AC"]
[257740000,"Agrupamento de Escolas de Freixo de Espada à Cinta (Escola Básica de Freixo de Espada à Cinta - Sede)","AC"]
[257760000,"Agrupamento de Escolas Prof. Carlos Teixeira, Fafe (Escola Básica Prof. Carlos Teixeira, Fafe - Sede)","AC"]
[257780000,"Agrupamento de Escolas n.º 1 de Serpa (Escola Básica de Abade Correia da Serra, Serpa - Sede)","AC"]
[257800000,"Agrupamento de Escolas de Escariz, Arouca (Escola Básica e Secundária de Escariz, Arouca - Sede)","AC"]
[257810000,"Agrupamento de Escolas de Montelongo, Fafe (Escola Básica de Montelongo, Fafe - Sede)","AC"]
[257820000,"Agrupamento de Escolas Coelho e Castro, Fiães (Escola Básica e Secundária Coelho e Castro - Sede)","AC"]
[257840000,"Agrupamento de Escolas Gardunha e Xisto, Fundão (Escola Básica Serra da Gardunha, Fundão - Sede)","AC"]
[257850000,"Agrupamento de Escolas Fernando Pessoa, Santa Maria da Feira (Escola Básica Fernando Pessoa, Santa Maria da Feira - Sede)","AC"]
[257860000,"Agrupamento de Escolas de Argoncilhe, Santa Maria da Feira (Escola Básica de Argoncilhe, Santa Maria da Feira - Sede)","AC"]
[257920000,"Agrupamento de Escolas de Branca, Albergaria-a-Velha (Escola Básica de Branca, Albergaria-a-Velha - Sede)","AC"]
[257950000,"Agrupamento de Escolas de Fajões, Oliveira de Azeméis (Escola Básica e Secundária de Fajões, Oliveira de Azeméis - Sede)","AC"]
[257970000,"Agrupamento de Escolas de Oliveira do Bairro (Escola Básica Dr. Acácio de Azevedo, Oliveira do Bairro - Sede)","AC"]
[257990000,"Agrupamento de Escolas de Oliveirinha, Aveiro (Escola Básica Castro Matoso, Oliveirinha, Aveiro - Sede)","AC"]
[258000000,"Agrupamento de Escolas Sever do Vouga (Escola Básica e Secundária de Sever do Vouga - Sede)","AC"]
[258030000,"Agrupamento de Escolas Rio Novo do Príncipe, Cacia, Aveiro (Escola Básica Rio Novo do Príncipe, Cacia, Aveiro - Sede)","AC"]
[258060000,"Agrupamento de Escolas de Aljustrel (Escola Básica Dr. Manuel Brito Camacho, Aljustrel - Sede)","AC"]
[258070000,"Agrupamento de Escolas de Cuba (Escola Básica Fialho de Almeida, Cuba - Sede)","AC"]
[258080000,"Agrupamento de Escolas Gonçalo Sampaio, Póvoa de Lanhoso (Escola Básica Gonçalo Sampaio, Póvoa de Lanhoso - Sede)","AC"]
[258090000,"Agrupamento de Escolas de Arganil (Escola Secundária de Arganil - Sede)","AC"]
[258110000,"Agrupamento de Escolas Professor Abel Salazar, Guimarães (Escola Básica Professor Abel Salazar, Guimarães - Sede)","AC"]
[258120000,"Agrupamento de Escolas de Castelo de Paiva (Escola Básica e Secundária de Castelo de Paiva - Sede)","AC"]
[258140000,"Agrupamento de Escolas Gil Vicente, Guimarães (Escola Básica Gil Vicente, Urgeses, Guimarães - Sede)","AC"]
[258150000,"Agrupamento de Escolas de Pevidém, Guimarães (Escola Básica de Pevidém, Selho - São Jorge, Guimarães - Sede)","AC"]
[258180000,"Agrupamento de Escolas de Vimioso (Escola Básica de Vimioso - Sede)","AC"]
[258190000,"Agrupamento de Escolas António Alves de Amorim, Santa Maria da Feira (Escola Básica António Alves de Amorim, Lourosa, Santa Maria da Feira - Sede)","AC"]
[258200000,"Agrupamento de Escolas Vieira Araújo, Vieira do Minho (Escola Básica e Secundária Vieira de Araújo, Vieira do Minho - Sede)","AC"]
[258210000,"Agrupamento de Escolas de Vagos (Escola Secundária com 3º ciclo do ensino básico de Vagos - Sede)","AC"]
[258240000,"Agrupamento de Escolas de Braga Oeste (Escola Básica de Braga Oeste, Cabreiros, Braga - Sede)","AC"]
[258260000,"Agrupamento de Escolas de Condeixa-a-Nova (Escola Secundária Fernando Namora - Sede)","AC"]
[258280000,"Agrupamento de Escolas de Briteiros, Guimarães (Escola Básica de Briteiros, Guimarães - Sede)","AC"]
[258290000,"Agrupamento de Escolas de Gafanha da Encarnação, Ílhavo (Escola Básica de Gafanha da Encarnação, Ílhavo - Sede)","AC"]
[258310000,"Agrupamento de Escolas de Corga do Lobão, Santa Maria da Feira (Escola Básica de Corga do Lobão, Santa Maria da Feira - Sede)","AC"]
[258320000,"Agrupamento de Escolas de Maximinos (Escola Secundária de Maximinos - Sede) ","AC"]
[258350000,"Agrupamento de Escolas de Castro Verde (Escola Secundária de Castro Verde - Sede)","AC"]
[258370000,"Agrupamento de Escolas de Couto Mineiro do Pejão (Escola Básica de Couto Mineiro do Pejão, Raiva - Sede) ","AC"]
[258380000,"Agrupamento de Escolas Afonso de Paiva, Castelo Branco (Escola Básica Afonso de Paiva, Castelo Branco - Sede)","AC"]
[258400000,"Agrupamento de Escolas Dr. Francisco Sanches, Braga (Escola Básica Dr. Francisco Sanches, Braga - Sede)","AC"]
[258410000,"Agrupamento de Escolas de Búzio, Vale de Cambra (Escola Básica e Secundária de Búzio, Vale de Cambra - Sede)","AC"]
[258430000,"Agrupamento de Escolas de Aveiro (Escola Secundária Homem Cristo - Sede) ","AC"]
[258440000,"Agrupamento de Escolas de Moura (Escola Secundária de Moura - Sede)","AC"]
[258450000,"Agrupamento de Escolas Virgínia Moura (Escola Básica Virgínia Moura - Sede)","AC"]
[258470000,"Agrupamento de Escolas Dr. Ramiro Salgado, Torre de Moncorvo (Escola Básica e Secundária Dr. Ramiro Salgado, Torre de Moncorvo - Sede)","AC"]
[258490000,"Agrupamento de Escolas D. Maria II, Vila Nova de Famalicão (Escola Básica D. Maria II, Gavião, Vila Nova de Famalicão - Sede)","AC"]
[258510000,"Agrupamento de Escolas D. Afonso Henriques, Guimarães (Escola Básica D. Afonso Henriques, Creixomil, Guimarães - Sede)","AC"]
[258520000,"Agrupamento de Escolas Arqueólogo Mário Cardoso, Guimarães (Escola Básica Arqueólogo Mário Cardoso, Ponte, Guimarães - Sede)","AC"]
[258530000,"Agrupamento de Escolas de Vila Velha de Rodão (Escola Básica de Vila Velha de Ródão - Sede)","AC"]
[258570000,"Agrupamento de Escolas do Cadaval (Escola Básica e Secundária do Cadaval - Sede) ","AC"]
[258590000,"Agrupamento de Escolas de Paião, Figueira da Foz (Escola Básica Dr. Pedrosa Veríssimo, Paião, Figueira da Foz - Sede)","AC"]
[258600000,"Agrupamento de Escolas de Mosteiro e Cávado, Braga (Escola Básica de Mosteiro e Cávado, Panóias, Braga - Sede)","AC"]
[258610000,"Agrupamento de Escolas Dr. Correia Mateus, Leiria (Escola Básica Dr. Correia Mateus, Leiria - Sede)","AC"]
[258630000,"Agrupamento de Escolas de Góis (Escola Básica de Góis - Sede)","AC"]
[258650000,"Agrupamento de Escolas de Gouveia (Escola Secundária de Gouveia - Sede)","AC"]
[258670000,"Agrupamento de Escolas de Marrazes, Leiria (Escola Básica n.º 2 de Marrazes, Leiria - Sede)","AC"]
[258700000,"Agrupamento de Escolas Vale Aveiras (Escola Básica Vale Aveiras - Sede)","AC"]
[258720000,"Agrupamento de Escolas de Portela e Moscavide, Loures (Escola Secundária do Arco-Íris, Portela, Loures - Sede)","AC"]
[258740000,"Agrupamento de Escolas Silves Sul (Escola Básica Dr. António da Costa Contreiras, Armação de Pêra, Silves - Sede) ","AC"]
[258770000,"Agrupamento de Escolas de Ferreiras, Albufeira (Escola Básica de Ferreiras, Albufeira - Sede)","AC"]
[258780000,"Agrupamento de Escolas Matilde Rosa Araújo, Cascais (Escola Básica e Secundária Matilde Rosa Araújo, Matarraque, Cascais - Sede)","AC"]
[258800000,"Agrupamento de Escolas da Zona Urbana Figueira da Foz (Escola Básica João de Barros, Figueira da Foz - Sede)","AC"]
[258810000,"Agrupamento de Escolas João da Rosa, Olhão (Escola Básica João da Rosa, Olhão - Sede)","AC"]
[258820000,"Agrupamento de Escolas Figueira Mar, Figueira da Foz (Escola Secundária Dr. Bernardino Machado, Figueira da Foz - Sede)","AC"]
[258840000,"Agrupamento de Escolas n.º 2 de Évora (Escola Secundária Gabriel Pereira - Sede)","AC"]
[258850000,"Agrupamento de Escolas do Alto da Azambuja (Escola Básica de Manique do Intendente, Azambuja - Sede)","AC"]
[258860000,"Agrupamento de Escolas de Albufeira Poente, Albufeira (Escola Secundária de Albufeira - Sede)","AC"]
[258870000,"Agrupamento de Escolas de Catujal - Unhos, Loures (Escola Básica do Catujal, Loures - Sede)","AC"]
[258900000,"Agrupamento de Escolas Rainha Santa Isabel, Pedrulha, Coimbra (Escola Básica Rainha Santa Isabel, Pedrulha, Coimbra - Sede)","AC"]
[258910000,"Agrupamento de Escolas de Almancil, Loulé (Escola Básica Dr. António de Sousa Agostinho, Almancil, Loulé - Sede)","AC"]
[258920000,"Agrupamento de Escolas de Borba (Escola Básica Padre Bento Pereira, Borba - Sede)","AC"]
[258930000,"Agrupamento de Escolas Rio Arade, Lagoa (Escola Básica Rio Arade, Parchal, Lagoa - Sede)","AC"]
[258950000,"Agrupamento de Escolas Eugénio de Castro, Coimbra (Escola Básica Eugénio de Castro, Coimbra - Sede)","AC"]
[258960000,"Agrupamento de Escolas de Manteigas (Escola Básica e Secundária de Manteigas - Sede)","AC"]
[258980000,"Agrupamento de Escolas António Sérgio, Sintra (Escola Básica António Sérgio, Cacém, Sintra - Sede)","AC"]
[258990000,"Agrupamento de Escolas Eng.º Duarte Pacheco, Loulé (Escola Básica Eng. Duarte Pacheco, Loulé - Sede)","AC"]
[259030000,"Agrupamento de Escolas Dr. Bissaya Barreto, Castanheira de Pêra (Escola Básica Dr. Bissaya Barreto, Castanheira de Pêra - Sede)","AC"]
[259040000,"Agrupamento de Escolas do Sabugal (Escola Secundária com 3º ciclo - Sede)","AC"]
[259050000,"Agrupamento de Escolas da Nazaré (Escola Básica Amadeu Gaudêncio, Nazaré - Sede)","AC"]
[259090000,"Agrupamento de Escolas de Vila do Bispo (Escola Básica São Vicente, Vila do Bispo - Sede)","AC"]
[259100000,"Agrupamento de Escolas D. Afonso III, Faro (Escola Básica D. Afonso III, Faro - Sede)","AC"]
[259110000,"Agrupamento de Escolas de Castro Marim (Escola Básica de Castro Marim - Sede)","AC"]
[259140000,"Agrupamento de Escolas de Atouguia da Baleia, Peniche (Escola Básica de Atouguia da Baleia, Peniche - Sede)","AC"]
[259150000,"Agrupamento de Escolas Coimbra Sul (Escola Básica Dr.ª Maria Alice Gouveia - Sede) ","AC"]
[259160000,"Agrupamento de Escolas de Vila Real de Santo António (Escola Secundária com 3º ciclo de Vila Real de Santo António - Sede)","AC"]
[259170000,"Agrupamento de Escolas de Tábua (Escola Secundária de Tábua - Sede)","AC"]
[259180000,"Agrupamento de Escolas de Montenegro, Faro (Escola Básica de Montenegro, Faro - Sede)","AC"]
[259210000,"Agrupamento de Escolas Guilherme Correia de Carvalho (Escola Básica Dr. Guilherme Correia de Carvalho - Sede) ","AC"]
[259230000,"Agrupamento de Escolas Damião de Goes, Alenquer (Escola Secundária Damião de Goes, Alenquer - Sede)","AC"]
[259260000,"Agrupamento de Escolas Caranguejeira, Santa Catarina da Serra, Leiria (Escola Básica Dr. Correia Alexandre, Caranguejeira, Leiria - Sede)","AC"]
[259270000,"Agrupamento de Escolas da Ericeira, Mafra (Escola Básica António Bento Franco, Ericeira, Mafra - Sede)","AC"]
[259300000,"Agrupamento de Escolas de São João do Estoril (Escola Secundária São João Estoril - Sede)","AC"]
[259310000,"Agrupamento de Escolas Professora Paula Nogueira, Olhão (Escola Básica Professora Paula Nogueira, Olhão - Sede)","AC"]
[259340000,"Agrupamento de Escolas Professor Lindley Cintra - Lumiar, Lisboa (Escola Secundária do Lumiar, Lisboa - Sede)","AC"]
[259350000,"Agrupamento de Escolas Martinho Árias, Soure (Escola Básica e Secundária Martinho Árias, Soure - Sede) ","AC"]
[259380000,"Agrupamento de Escolas Rainha Santa Isabel, Carreira, Leiria (Escola Básica Rainha Santa Isabel, Carreira, Leiria - Sede)","AC"]
[259390000,"Agrupamento de Escolas de Alcabideche, Cascais (Escola Básica de Alcabideche, Cascais - Sede)","AC"]
[259400000,"Agrupamento de Escolas da Alapraia, Cascais (Escola Básica de Alapraia, Cascais - Sede)","AC"]
[259420000,"Agrupamento de Escolas de Cascais (Escola Secundária de Cascais - Sede)","AC"]
[259460000,"Agrupamento de Escolas Fernando Pessoa, Lisboa (Escola Básica Fernando Pessoa, Lisboa - Sede)","AC"]
[259470000,"Agrupamento de Escolas de Camarate - D. Nuno Álvares Pereira, Loures (Escola Básica de Camarate, Loures - Sede)","AC"]
[259480000,"Agrupamento de Escolas Patrício Prazeres, Lisboa (Escola Básica Patrício Prazeres, Lisboa - Sede)","AC"]
[259540000,"Agrupamento de Escolas de Montemor-o-Velho (Escola Secundária de Montemor-o-Velho - Sede)","AC"]
[259550000,"Agrupamento de Escolas das Olaias, Lisboa (Escola Básica das Olaias, Lisboa - Sede)","AC"]
[259560000,"Agrupamento de Escolas do Bom Sucesso, Vila Franca de Xira (Escola Básica do Bom Sucesso, Alverca do Ribatejo, Vila Franca de Xira - Sede) ","AC"]
[259580000,"Agrupamento de Escolas D. João II, Sintra (Escola Básica Integrada Rainha D. Leonor - Sede)","AC"]
[259600000,"Agrupamento de Escolas Marinhas do Sal, Rio Maior (Escola Básica de Marinhas do Sal, Rio Maior - Sede)","AC"]
[259610000,"Agrupamento de Escolas A Lã e a Neve (Escola Básica Integrada de São Domingos - Sede)","AC"]
[259620000,"Agrupamento de Escolas de Abrigada (Escola Básica Integrada de Abrigada - Sede)","AC"]
[259660000,"Agrupamento de Escolas de Penalva do Castelo (Escola Secundária de Penalva do Castelo - Sede)","AC"]
[259670000,"Agrupamento de Escolas de Vila de Rei (Escola Básica e Secundária do Centro de Portugal, Vila de Rei - Sede)","AC"]
[259690000,"Agrupamento de Escolas de Vila Cova (Escola Básica Integrada de Vila Cova - Sede)","AC"]
[259700000,"Agrupamento de Escolas de Fragoso (Escola Básica Integrada de Fragoso - Sede)","AC"]
[259710000,"Agrupamento de Escolas de Barrancos (Escola Básica de Barrancos - Sede)","AC"]
[259730000,"Agrupamento de Escolas de Gondifelos (Escola Básica Integrada de Gondifelos - Sede)","AC"]
[259740000,"Agrupamento de Escolas de Pedome, Vila Nova de Famalicão (Escola Básica de Pedome, Vila Nova de Famalicão - Sede)","AC"]
[259750000,"Agrupamento de Escolas Infante D. Pedro, Penela (Escola Básica Infante D. Pedro, Penela - Sede)","AC"]
[259790000,"Agrupamento de Escolas de Alandroal (Escola Básica Diogo Lopes Sequeira, Alandroal - Sede)","AC"]
[259810000,"Agrupamento de Escolas Gualdim Pais, Pombal (Escola Básica Integrada Gualdim Pais - Sede)","AC"]
[259820000,"Agrupamento de Escolas do Carregado, Alenquer (Escola Básica do Carregado, Alenquer - Sede)","AC"]
[259830000,"Agrupamento de Escolas Escalada, Pampilhosa da Serra (Escola Básica e Secundária Escalada, Pampilhosa da Serra - Sede)","AC"]
[259840000,"Agrupamento de Escolas de Mourão (Escola Básica de Mourão - Sede)","AC"]
[259860000,"Agrupamento de Escolas de Colmeias (Escola Básica Integrada de Colmeias - Sede)","AC"]
[259890000,"Agrupamento de Escolas da Azambuja (Escola Secundária de Azambuja - Sede)","AC"]
[259900000,"Agrupamento de Escolas de Fronteira (Escola Básica Frei Manuel Cardoso, Fronteira - Sede)","AC"]
[259910000,"Agrupamento de Escolas Elias Garcia, Almada (Escola Básica Elias Garcia, Sobreda, Almada - Sede)","AC"]
[259920000,"Agrupamento de Escolas de Marvão (Escola Básica de Ammaia, Portagem, Marvão - Sede)","AC"]
[259940000,"Agrupamento de Escolas de Gavião (Escola Básica de Gavião - Sede)","AC"]
[259950000,"Agrupamento de Escolas de São Martinho, Santo Tirso (Escola Básica de São Martinho, São Martinho do Campo, Santo Tirso - Sede)","AC"]
[259960000,"Agrupamento de Escolas do Crato (Escola Básica Ana Maria Ferreira Gordo, Crato - Sede)","AC"]
[259980000,"Agrupamento de Escolas da Quinta do Conde, Sesimbra (Escola Básica da Quinta do Conde, Sesimbra - Sede)","AC"]
[259990000,"Agrupamento de Escolas de Pardilhó, Estarreja (Escola Básica de Pardilhó, Estarreja - Sede)","AC"]
[260000000,"Agrupamento de Escolas José Silvestre Ribeiro, Idanha-a-Nova (Escola Básica e Secundária José Silvestre Ribeiro - Sede)","AC"]
[260010000,"Agrupamento de Escolas de Monchique (Escola Básica Manuel do Nascimento, Monchique - Sede)","AC"]
[260020000,"Agrupamento de Escolas de Arouca (Escola Secundária de Arouca - Sede)","AC"]
[260030000,"Agrupamento de Escolas de Cabeceiras de Basto (Escola Básica e Secundária de Cabeceiras de Basto - Sede)","AC"]
[260050000,"Agrupamento de Escolas de Matosinhos (Escola Básica de Matosinhos - Sede)","AC"]
[260060000,"Escola Profissional de Desenvolvimento Rural do Rodo, Peso da Régua","AC"]
[260070000,"Escola Profissional de Agricultura e Desenvolvimento Rural de Carvalhais","AC"]
[260080000,"Escola Artística de Música do Conservatório Nacional, Lisboa","AC"]
[260090000,"Escola Artística de Dança do Conservatório Nacional ","AC"]
[265050000,"Escola Secundária Maria Amália Vaz de Carvalho ","AC"]
[265070000,"Agrupamento de Escolas de Seia (Escola Secundária de Seia - Sede)","AC"]
[265110000,"Escola Secundária Avelar Brotero","AC"]
[265130000,"Agrupamento de Escolas José Belchior Viegas (Escola Secundária José Belchior Viegas - Sede)","AC"]
[265300000,"Agrupamento de Escolas de Nisa (Escola Básica e Secundária Prof. Mendes dos Remédios, Nisa - Sede)","AC"]
[265340000,"Agrupamento de Escolas de Almodôvar (Escola Básica e Secundária Dr. João Brito Camacho, Almodôvar - Sede)","AC"]
[265360000,"Agrupamento de Escolas de Mértola (Escola Básica e Secundária de São Sebastião, Mértola - Sede)","AC"]
[265370000,"Agrupamento de Escolas de Arraiolos (Escola Básica e Secundária Cunha Rivara, Arraiolos - Sede)","AC"]
[265380000,"Agrupamento de Escolas de Redondo (Escola Básica e Secundária Dr. Hernâni Cidade, Redondo - Sede)","AC"]
[265410000,"Escola Secundária Alfredo dos Reis Silveira ","AC"]
[265440000,"Escola Secundária Manuel Cargaleiro ","AC"]
[265450000,"Escola Secundária de Amarante ","AC"]
[265470000,"Escola Secundária de Amora ","AC"]
[265580000,"Escola Secundária José Régio ","AC"]
[265670000,"Escola Secundária Ferreira Dias, Agualva, Sintra ","AC"]
[265710000,"Escola Secundária Dr. José Afonso, Arrentela, Seixal","AC"]
[265720000,"Agrupamento de Escolas Clara de Resende, Porto (Escola Básica e Secundária Clara de Resende, Porto - Sede)","AC"]
[265780000,"Escola Secundária Almeida Garrett, Vila Nova de Gaia","AC"]
[265800000,"Agrupamento de Escolas Anselmo de Andrade, Almada (Escola Básica e Secundária Anselmo de Andrade, Almada - Sede)","AC"]
[265810000,"Escola Secundária da Boa Nova, Leça da Palmeira","AC"]
[265820000,"Escola Secundária de São Pedro da Cova","AC"]
[265830000,"Agrupamento de Escolas Mães D'Água, Amadora (Escola Básica e Secundária de Mães D'Água, Falagueira, Amadora - Sede)","AC"]
[265840000,"Agrupamento de Escolas Poeta Joaquim Serra, Montijo (Escola Secundária Poeta Joaquim Serra, Montijo - Sede)","AC"]
[265880000,"Escola Secundária Arquitecto Oliveira Ferreira ","AC"]
[265950000,"Escola Secundária de Pinhal Novo, Palmela","AC"]
[265960000,"Agrupamento de Escolas D. João V, Damaia (Escola Básica e Secundária D. João V, Damaia - Sede)","AC"]
[265970000,"Escola Secundária Jorge Peixinho ","AC"]
[266030000,"Agrupamento de Escolas Dr. Azevedo Neves, Amadora (Escola Básica e Secundária Dr. Azevedo Neves, Damaia, Amadora - Sede)","AC"]
[266040000,"Escola Secundária Rocha Peixoto, Póvoa de Varzim","AC"]
[266050000,"Escola Secundária Dr. Joaquim Gomes Ferreira Alves, Valadares, Vila Nova de Gaia","AC"]
[266060000,"Agrupamento de Escolas Francisco Simões, Almada (Escola Básica e Secundária Francisco Simões, Laranjeiro, Almada - Sede)","AC"]
[266090000,"Escola Secundária de Felgueiras","AC"]
[266170000,"Agrupamento de Escolas de Santiago do Cacém (Escola Secundária Manuel da Fonseca, Santiago do Cacém - Sede)","AC"]
[266180000,"Escola Secundária de Cacilhas-Tejo","AC"]
[266200000,"Escola Secundária Augusto Gomes ","AC"]
[266220000,"Escola Secundária Filipa de Vilhena, Porto","AC"]
[266360000,"Agrupamento de Escolas de Coruche (Escola Secundária de Coruche - Sede)","AC"]
[266370000,"Escola Secundária de Palmela ","AC"]
[266440000,"Escola Secundária D. João II ","AC"]
[266480000,"Agrupamento de Escolas de Mangualde, (Escola Secundária Dr.ª Felismina Alcântara, Mangualde - Sede)","AC"]
[266490000,"Escola Secundária Du Bocage ","AC"]
[266500000,"Agrupamento de Escolas Lima de Freitas, Setúbal (Escola Básica e Secundária Lima de Freitas, Setúbal - Sede)","AC"]
[266570000,"Escola Secundária Poeta Al Berto, Sines","AC"]
[266700000,"Escola Secundária Professor Doutor Flávio F. Pinto Resende, Cinfães","AC"]
[266740000,"Escola Secundária Camilo Castelo Branco","AC"]
[266770000,"Agrupamento de Escolas de Vila Nova de Paiva (Escola Secundária com 3º ciclo do ensino básico de Vila Nova de Paiva - Sede)","AC"]
[266810000,"Agrupamento de Escolas Oliveira Júnior, São João da Madeira (Escola Básica e Secundária Oliveira Júnior, São João da Madeira - Sede)","AC"]
[266820000,"Agrupamento de Escolas Dr. Serafim Leite, São João da Madeira (Escola Básica e Secundária Dr. Serafim Leite, São João da Madeira - Sede)","AC"]
[266930000,"Escola Secundária de Vila Verde","AC"]
[266970000,"Agrupamento de Escolas de Macedo de Cavaleiros (Escola Básica e Secundária de Macedo de Cavaleiros - Sede)","AC"]
[266980000,"Agrupamento de Escolas Miguel Torga, Bragança (Escola Básica e Secundária Miguel Torga, Bragança - Sede)","AC"]
[266990000,"Agrupamento de Escolas Abade de Baçal, Bragança (Escola Secundária Abade de Baçal, Bragança - Sede)","AC"]
[267140000,"Agrupamento de Escolas Santos Simões, Guimarães (Escola Básica e Secundária Santos Simões, Guimarães - Sede)","AC"]
[267150000,"Escola Secundária de Barcelinhos ","AC"]
[267160000,"Escola Secundária Martins Sarmento, Guimarães","AC"]
[267330000,"Agrupamento de Escolas D. Afonso III, Vinhais (Escola Básica e Secundária D. Afonso III, Vinhais - Sede)","AC"]
[267390000,"Escola Secundária Adolfo Portela, Águeda","AC"]
[267460000,"Agrupamento de Escolas D. Filipa de Lencastre, Lisboa (Escola Básica e Secundária D. Filipa de Lencastre, Lisboa - Sede)","AC"]
[267500000,"Agrupamento de Escolas Aquilino Ribeiro, Oeiras (Escola Básica e Secundária Aquilino Ribeiro, Leião, Oeiras - Sede)","AC"]
[267530000,"Escola Secundária Rainha Santa Isabel ","AC"]
[267580000,"Agrupamento de Escolas de Alvide, Cascais (Escola Básica e Secundária de Alvide, Cascais - Sede)","AC"]
[267630000,"Escola Secundária da Ramada ","AC"]
[267660000,"Escola Secundária de Camarate, Loures","AC"]
[267700000,"Agrupamento de Escolas de Penacova (Escola Básica e Secundária de Penacova - Sede)","AC"]
[267830000,"Escola Secundária de Fonseca Benevides","AC"]
[267840000,"Escola Secundária de Peniche ","AC"]
[267850000,"Escola Básica e Secundária Quinta das Flores","AC"]
[267880000,"Escola Secundária Rainha Dona Amélia ","AC"]
[267930000,"Escola Secundária Pedro Nunes ","AC"]
[267990000,"Agrupamento de Escolas Eça de Queirós, Lisboa (Escola Secundária Eça de Queirós, Lisboa - Sede)","AC"]
[268030000,"Agrupamento de Escolas Frei Gonçalo de Azevedo, Cascais (Escola Básica e Secundária Frei Gonçalo de Azevedo, São Domingos de Rana, Cascais - Sede)","AC"]
[268040000,"Agrupamento de Escolas de Trancoso (Escola Secundária Gonçalo Anes Bandarra, Trancoso - Sede) ","AC"]
[268050000,"Escola Secundária Marquês de Pombal, Lisboa","AC"]
[268080000,"Escola Secundária D. Dinis, Coimbra","AC"]
[268140000,"Escola Secundária Afonso Lopes Vieira ","AC"]
[268170000,"Agrupamento de Escolas de Carcavelos, Cascais (Escola Básica e Secundária de Carcavelos, Cascais - Sede)","AC"]
[268180000,"Agrupamento de Escolas Dr.ª Laura Ayres, Loulé (Escola Secundária Dr.ª Laura Ayres, Quarteira, Loulé - Sede)","AC"]
[268230000,"Escola Artística Soares dos Reis","AC"]
[268250000,"Agrupamento de Escolas de Amareleja, Moura (Escola Básica de Amareleja, Moura - Sede)","AC"]
[268270000,"Agrupamento de Escolas de Vidigueira (Escola Básica Frei António Chagas, Vidigueira - Sede)","AC"]
[268310000,"Agrupamento de Escolas de Aljezur (Escola Básica de Aljezur - Sede)","AC"]
[268320000,"Agrupamento de Escolas de Constância (Escola Básica e Secundária Luís de Camões, Constância - Sede) ","AC"]
[268330000,"Agrupamento de Escolas de Alter do Chão (Escola Básica e Secundária Padre José Agostinho Rodrigues, Alter do Chão - Sede)","AC"]
[268350000,"Agrupamento de Escolas de Lordelo, Paredes (Escola Básica e Secundária de Lordelo, Paredes - Sede)","AC"]
[268360000,"Agrupamento de Escolas de Vale de Ovil, Baião (Escola Básica e Secundária do Vale de Ovil, Baião - Sede)","AC"]
[268370000,"Agrupamento de Escolas de Vila Nova da Barquinha (Escola Básica e Secundária D. Maria II, Vila Nova da Barquinha - Sede)","AC"]
[268380000,"Agrupamento de Escolas da Chamusca (Escola Básica e Secundária da Chamusca - Sede)","AC"]
[268390000,"Agrupamento de Escolas da Golegã, Azinhaga e Pombalinho, Golegã (Escola Básica e Secundária Mestre Martins Correia, Golegã - Sede)","AC"]
[268400000,"Agrupamento de Escolas Verde Horizonte, Mação (Escola Básica e Secundária de Mação - Sede)","AC"]
[268410000,"Agrupamento de Escolas de Ferreira do Zêzere (Escola Básica e Secundária Pedro Ferreiro, Ferreira do Zêzere - Sede)","AC"]
[268420000,"Agrupamento de Escolas de Paredes de Coura (Escola Básica e Secundária de Paredes de Coura - Sede)","AC"]
[268430000,"Agrupamento de Escolas de Ribeira de Pena (Escola Básica e Secundária de Ribeira de Pena - Sede)","AC"]
[268440000,"Agrupamento de Escolas Dr. José Leite de Vasconcelos, Tarouca (Escola Básica e Secundária Dr. José Leite de Vasconcelos, Tarouca - Sede)","AC"]
[268450000,"Agrupamento de Escolas Professor António da Natividade, Mesão Frio (Escola Básica e Secundária Professor António da Natividade, Mesão Frio - Sede)","AC"]
[268460000,"Agrupamento de Escolas de Arcozelo, Ponte de Lima (Escola Básica e Secundária de Arcozelo, Ponte de Lima - Sede)","AC"]
[268470000,"Agrupamento de Escolas Abel Botelho, Tabuaço (Escola Básica e Secundária Abel Botelho, Tabuaço - Sede)","AC"]
[268480000,"Agrupamento de Escolas de Barroselas, Viana do Castelo (Escola Básica e Secundária de Barroselas, Viana do Castelo - Sede)","AC"]
[268490000,"Agrupamento de Escolas de São João da Pesqueira (Escola Básica e Secundária de São João da Pesqueira - Sede)","AC"]
[268500000,"Agrupamento de Escolas Michel Giacometti, Sesimbra (Escola Básica e Secundária Michel Giacometti, Quinta do Conde, Sesimbra - Sede)","AC"]
[268510000,"Agrupamento de Escolas de Monte da Ola, Viana do Castelo (Escola Básica e Secundária de Monte da Ola, Viana do Castelo - Sede)","AC"]
[268520000,"Agrupamento de Escolas Pintor José de Brito, Viana do Castelo (Escola Básica e Secundária Pintor José de Brito, Santa Marta de Portuzelo - Sede)","AC"]
[268530000,"Agrupamento de Escolas de Murça (Escola Básica e Secundária de Murça - Sede)","AC"]
[268540000,"Agrupamento de Escolas de Melgaço (Escola Básica e Secundária de Melgaço - Sede)","AC"]
[268560000,"Agrupamento de Escolas de Ourique (Escola Básica e Secundária de Ourique, Ourique - Sede)","AC"]
[268570000,"Agrupamento de Escolas Pedro Álvares Cabral (Escola Básica e Secundário Pedro Álvares Cabral - Belmonte - Sede)","AC"]
[268580000,"Agrupamento de Escolas de Alfândega da Fé (Escola Básica e Secundária de Alfândega da Fé - Sede)","AC"]
[268590000,"Agrupamento de Escolas de Terras de Bouro (Escola Básica e Secundária de Terras de Bouro - Sede)","AC"]
[268610000,"Agrupamento de Escolas Padre António de Andrade, Oleiros (Escola Básica e Secundária Padre António de Andrade, Oleiros - Sede)","AC"]
[268620000,"Agrupamento de Escolas de Proença-a-Nova (Escola Básica e Secundária Pedro da Fonseca, Proença-a-Nova - Sede)","AC"]
[268650000,"Agrupamento de Escolas de Vila Flor (Escola Básica e Secundária de Vila Flor - Sede)","AC"]
[268660000,"Agrupamento de Escolas Carrazeda de Ansiães (Escola Básica e Secundária de Carrazeda de Ansiães - Sede)","AC"]
[268670000,"Agrupamento de Escolas de Miranda do Corvo (Escola Básica e Secundária José Falcão, Miranda do Corvo - Sede)","AC"]
[268680000,"Agrupamento de Escolas de Fornos de Algodres (Escola Básica e Secundária de Fornos de Algodres - Sede)","AC"]
[268700000,"Agrupamento de Escolas de Pedrógão Grande (Escola Básica Miguel Leitão de Andrada, Pedrógão Grande - Sede)","AC"]
[268710000,"Agrupamento de Escolas de Mêda (Escola Básica e Secundária de Mêda - Sede)","AC"]
[268720000,"Agrupamento de Escolas de Guia, Pombal (Escola Básica e Secundária de Guia, Pombal - Sede)","AC"]
[268730000,"Agrupamento de Escolas Padre José Augusto da Fonseca, Aguiar da Beira (Escola Básica e Secundária Padre José Augusto da Fonseca - Sede)","AC"]
[268740000,"Agrupamento de Escolas de Celorico da Beira (Escola Básica e Secundária Sacadura Cabral - Sede) ","AC"]
[268760000,"Agrupamento de Escolas de Alvaiázere (Escola Básica e Secundária Dr. Manuel Ribeiro Ferreira, Alvaiázere - Sede)","AC"]
[268770000,"Agrupamento de Escolas de Ansião (Escola Básica e Secundária Dr. Pascoal José de Mello, Ansião - Sede)","AC"]
[268780000,"Agrupamento de Escolas de Viana do Alentejo (Escola Básica e Secundária Dr. Isidoro Sousa - Sede)","AC"]
[268790000,"Agrupamento de Escolas de Almeida (Escola Básica e Secundária Dr. José Casimiro Matias, Almeida - Sede)","AC"]
[268800000,"Agrupamento de Escolas de Mora (Escola Básica e Secundária de Mora - Sede)","AC"]
[268810000,"Agrupamento de Escolas Henrique Sommer, Maceira (Escola Básica e Secundária de Maceira - Sede) ","AC"]
[268820000,"Agrupamento de Escolas Dr. Bento da Cruz, Montalegre (Escola Básica e Secundária Dr. Bento da Cruz, Montalegre - Sede)","AC"]
[268830000,"Agrupamento de Escolas José Sanches e S. Vicente da Beira (Escola Secundária com 3º ciclo de Alcains - Sede)","AC"]
[268850000,"Agrupamento de Escolas Vieira de Leiria (Escola Secundária com 3º ciclo José Loureiro Botas - Sede) ","AC"]
[268870000,"Agrupamento de Escolas de Arga e Lima, Viana do Castelo (Escola Básica e Secundária de Arga e Lima, Lanheses, Viana do Castelo - Sede)","AC"]
[268890000,"Escola Profissional de Ciências Geográficas","AC"]
[269020000,"Agrupamento de Escolas Escultor Francisco dos Santos, Sintra (Escola Básica Escultor Francisco dos Santos, Fitares, Sintra - Sede)","AC"]
[269030000,"Escola Artística do Conservatório de Música de Coimbra","AC"]
[269060000,"Agrupamento de Escolas Gândara-Mar, Tocha, Cantanhede (Escola Básica e Secundária João Garcia Bacelar, Tocha, Cantanhede - Sede) ","AC"]
[269070000,"Agrupamento de Escolas Miguel Torga, Sabrosa (Escola Básica e Secundária Miguel Torga, Sabrosa - Sede)","AC"]
[269080000,"Agrupamento de Escolas das Taipas, Guimarães (Escola Básica das Taipas, Caldas das Taipas, Guimarães - Sede)","AC"]
[269090000,"Escola Profissional Agrícola Quinta da Lageosa","AC"]
[269110000,"Agrupamento de Escolas Professor Armando de Lucena, Mafra (Escola Básica Professor Armando de Lucena, Malveira, Mafra - Sede)","AC"]
[269120000,"Escola Profissional de Arqueologia do Freixo","AC"]
[269150000,"Escola Artística do Conservatório de Música Calouste Gulbenkian, Braga ","AC"]
[269160000,"Escola Profissional de Desenvolvimento Rural de Serpa","AC"]
[275310000,"Agrupamento de Escolas da Abelheira, Viana do Castelo (Escola Básica da Abelheira, Viana do Castelo - Sede)","AC"]
[275330000,"Agrupamento de Escolas Ribeiro Sanches, Penamacor (Escola Básica e Secundária Ribeiro Sanches, Penamacor - Sede)","AC"]
[275350000,"Escola Profissional de Desenvolvimento Rural de Abrantes","AC"]
[275370000,"Escola Profissional de Agricultura e Desenvolvimento Rural de Ponte de Lima","AC"]
[275380000,"Escola Profissional de Desenvolvimento Rural de Grândola","AC"]
[275390000,"Escola Profissional de Agricultura e Desenvolvimento Rural de Cister","AC"]
[275400000,"Agrupamento de Escolas de Santo António, Barreiro (Escola Básica e Secundária de Santo António, Barreiro - Sede)","AC"]
[275440000,"Agrupamento de Escolas Fernando Casimiro Pereira da Silva, Rio Maior (Escola Básica Fernando Casimiro Pereira da Silva, Rio Maior - Sede)","AC"]
[275460000,"Escola Artística do Instituto Gregoriano de Lisboa","AC"]
[275470000,"Escola Artística do Conservatório de Música do Porto","AC"]
[275480000,"Agrupamento de Escolas da Venda do Pinheiro, Mafra (Escola Básica da Venda do Pinheiro, Mafra - Sede)","AC"]
[275500000,"Agrupamento de Escolas António Rodrigues Sampaio, Esposende (Escola Básica António Rodrigues Sampaio, Esposende - Sede)","AC"]
[275510000,"Escola Profissional de Agricultura e Desenvolvimento Rural de Vagos","AC"]
[275520000,"Escola Artística do Conservatório de Música Calouste Gulbenkian, Aveiro","AC"]
[275530000,"Agrupamento de Escolas de Ínfias, Vizela (Escola Básica e Secundária de Ínfias, Vizela - Sede)","AC"]
[275540000,"Agrupamento de Escolas Amadeo de Souza Cardoso, Amarante (Escola Básica Amadeo de Souza Cardoso, Telões, Amarante - Sede)","AC"]
[275650000,"Agrupamento de Escolas de Ourém (Escola Básica e Secundária de Ourém - Sede)","AC"]
[275690000,"Agrupamento de Escolas de Abação, Guimarães (Escola Básica de Abação, Guimarães - Sede)","AC"]
[300130000,"Conselho das Comunidades Portuguesas","AC"]
[300220000,"Direção-Geral da Política de Justiça","AC"]
[301000000,"Organismo de Produção Artística, E.P.E.","AC"]
[502090600,"Faculdade de Psicologia da Universidade de Lisboa","AC"]
[600000500,"Sistema de Segurança Interna","AC"]
[770000015,"Agência para a Energia","AC"]
[770000035,"Arsenal do Alfeite, S.A.","AC"]
[770000171,"Centro de Educação e Formação Profissional Integrada","AC"]
[770000174,"INOVINTER - Centro de Formação e de Inovação Tecnológica ","AC"]
[770000175,"Centro de Formação Profissional da Indústria da Construção Civil e Obras Públicas do Sul","AC"]
[770000176,"Centro de Formação Profissional da Indústria de Calçado","AC"]
[770000177,"Centro de Formação Profissional da Indústria de Cortiça","AC"]
[770000178,"Centro de Formação Profissional da Indústria de Fundição","AC"]
[770000179,"Centro de Formação Profissional da Indústria de Ourivesaria e Relojoaria","AC"]
[770000180,"Centro de Formação Profissional da Indústria Electrónica, Energia, Telecomunicações e Tecnologias de Informação","AC"]
[770000181,"Centro de Formação Profissional da Indústria Têxtil, Vestuário, Confecção e Lanifícios","AC"]
[770000182,"Centro de Formação Profissional da Reparação Automóvel","AC"]
[770000183,"Centro de Formação Profissional das Indústrias da Madeira e Mobiliário","AC"]
[770000184,"Centro de Formação Profissional das Pescas e do Mar","AC"]
[770000185,"Centro de Formação Profissional dos Trabalhadores de Escritório, Comércio, Serviços e Novas Tecnologias ","AC"]
[770000186,"Centro de Formação Profissional para a Industria da Cerâmica","AC"]
[770000187,"Centro de Formação Profissional para o Comércio e Afins","AC"]
[770000188,"Centro de Formação Profissional para o Sector Alimentar","AC"]
[770000189,"Centro de Formação Profissional para o setor da Construção Civil e Obras Públicas do Norte","AC"]
[770000190,"Centro de Formação Profissional da Indústria Metalúrgica e Metalomecânica","AC"]
[770000191,"Centro de Formação Sindical e Aperfeiçoamento Profissional","AC"]
[770000193,"Centro Protocolar de Formação Profissional para Jornalistas","AC"]
[770000223,"CRPG - Centro de Reabilitação Profissional de Gaia","AC"]
[770000249,"ENATUR - Empresa Nacional de Turismo, S.A.","AC"]
[770000252,"Entidade Regional de Turismo da Região de Lisboa","AC"]
[770000253,"Turismo Centro de Portugal ","AC"]
[770000315,"Defloc - Locação de Equipamentos de Defesa, S.A.","AC"]
[770000329,"Metro do Porto, S.A.","AC"]
[770000330,"Metropolitano de Lisboa, E.P.E.","AC"]
[770000346,"PARUPS, S.A.","AC"]
[770000347,"PARVALOREM, S.A.","AC"]
[770000352,"Polis Litoral Norte, Sociedade para a Requalificação e Valorização do Litoral Norte, S.A. - Em liquidação","AC"]
[770000353,"Polis Litoral Ria de Aveiro - Sociedade para a Requalificação e Valorização da Ria de Aveiro, S.A. - Em liquidação","AC"]
[770000354,"Polis Litoral Sudoeste - Sociedade para a Requalificação e Valorização do Sudoeste Alentejano e Costa Vicentina S.A. - Em liquidação","AC"]
[770000375,"Rádio e Televisão de Portugal, S.A.","AC"]
[770000377,"Infraestruturas de Portugal, S.A.","AC"]
[770000397,"CostaPolis, Sociedade para o Desenvolvimento do Programa Polis na Costa de Caparica, S.A. - Em liquidação","AC"]
[770000399,"Sociedade Polis Litoral Ria Formosa - Sociedade para a Requalificação e Valorização da Ria Formosa, S.A. - Em liquidação","AC"]
[770000404,"Tapada Nacional de Mafra - Centro Turístico, Cinegético e de Educação Ambiental","AC"]
[770000419,"Turismo do Alentejo, E.R.T.","AC"]
[770000420,"Região de Turismo do Algarve","AC"]
[770000422,"Turismo do Porto e Norte de Portugal, E.R.","AC"]
[770000429,"VianaPolis, Sociedade para o Desenvolvimento do Programa Polis em Viana do Castelo S.A.","AC"]
[770000439,"Conselho Superior dos Tribunais Administrativos e Fiscais","AC"]
[800002001,"Escola Profissional Infante D. Henrique","AC"]
[800002002,"Comissão Nacional de Proteção de Dados","AC"]
[800002003,"Entidade Reguladora para a Comunicação Social","AC"]
[800003021,"Supremo Tribunal Administrativo","AC"]
[800003022,"Supremo Tribunal de Justiça","AC"]
[800003028,"Tribunal Administrativo de Círculo de Lisboa","AC"]
[800003044,"Tribunal Constitucional","AC"]
[800003052,"Tribunal de Contas","AC"]
[800003053,"Tribunal de Contas - Secção Regional da Madeira","AC"]
[800003054,"Tribunal de Contas - Secção Regional dos Açores","AC"]
[800003294,"Escola do Serviço de Saúde Militar","AC"]
[800003295,"Faculdade de Ciências da Universidade da Beira Interior","AC"]
[800003296,"Faculdade de Engenharia da Universidade da Beira Interior","AC"]
[800003297,"Faculdade de Ciências Sociais e Humanas da Universidade da Beira Interior","AC"]
[800003298,"Faculdade de Artes e Letras da Universidade da Beira Interior","AC"]
[800003299,"Faculdade de Ciências da Saúde da Universidade da Beira Interior","AC"]
[800003365,"Procuradoria Geral da República","AC"]
[800003366,"Provedoria de Justiça","AC"]
[800003367,"Conselho Económico e Social","AC"]
[800004000,"Conselho Superior da Magistratura","AC"]
[800007182,"Hospital de Magalhães Lemos, E.P.E.","AC"]
[800007396,"Centro Medicina de Reabilitação da Região Centro Rovisco Pais","AC"]
[800007400,"Hospital Distrital de Santarém, E.P.E.","AC"]
[800007405,"Hospital Professor Doutor Fernando Fonseca, E.P.E.","AC"]
[800007772,"Gabinete Nacional de Segurança","AC"]
[800008010,"Quadro de Excedentes da Industrias e Participações da Defesa, S.A","AC"]
[800008011,"SGMDN - Quadro Residual da Cruz Vermelha","AC"]
[800008888,"Centro Hospitalar Universitário de Lisboa Norte, E.P.E.","AC"]
[800030000,"Agrupamento de Escolas Joaquim Inácio da Cruz Sobral, Sobral de Monte Agraço (Escola Básica e Secundária Joaquim Inácio da Cruz Sobral - Sede)","AC"]
[800030004,"Agrupamento de Centros de Saúde do Algarve I - Central","AC"]
[800030005,"Agrupamento de Centros de Saúde do Algarve II - Barlavento","AC"]
[800030006,"Agrupamento de Centros de Saúde do Algarve III - Sotavento","AC"]
[800030007,"Agrupamento de Centros de Saúde da Beira Interior Sul","AC"]
[800030008,"Agrupamento de Centros de Saúde da Cova da Beira","AC"]
[800030017,"Agrupamento de Centros de Saúde do Pinhal Interior Sul","AC"]
[800030031,"Agrupamento de Centros de Saúde da Amadora","AC"]
[800030034,"Agrupamento de Centros de Saúde de Cascais","AC"]
[800030039,"Agrupamento de Centros de Saúde Arco Ribeirinho","AC"]
[800030043,"Agrupamento de Centros de Saúde Oeste Norte","AC"]
[800030046,"Agrupamento de Centros de Saúde de Trás-os-Montes - Alto Tâmega e Barroso","AC"]
[800030047,"Agrupamento de Centros de Saúde do Douro I - Marão e Douro Norte","AC"]
[800030048,"Agrupamento de Centros de Saúde do Douro II - Douro Sul","AC"]
[800030051,"Agrupamento de Centros de Saúde do Cávado I - Braga","AC"]
[800030052,"Agrupamento de Centros de Saúde do Cávado II - Gerês-Cabreira","AC"]
[800030053,"Agrupamento de Centros de Saúde do Cávado III - Barcelos-Esposende","AC"]
[800030054,"Agrupamento de Centros de Saúde do Ave - Famalicão","AC"]
[800030055,"Agrupamento de Centros de Saúde do Grande Porto I - Santo Tirso-Trofa","AC"]
[800030056,"Agrupamento de Centros de Saúde do Tâmega I - Baixo Tâmega","AC"]
[800030057,"Agrupamento de Centros de Saúde do Tâmega III - Vale do Sousa Norte","AC"]
[800030058,"Agrupamento de Centros de Saúde do Tâmega II - Vale do Sousa Sul","AC"]
[800030059,"Agrupamento de Centros de Saúde do Grande Porto II - Gondomar","AC"]
[800030062,"Agrupamento de Centros de Saúde do Grande Porto IV - Póvoa de Varzim - Vila do Conde","AC"]
[800030063,"Agrupamento de Centros de Saúde do Grande Porto V - Porto Ocidental","AC"]
[800030064,"Agrupamento de Centros de Saúde do Grande Porto VI - Porto Oriental","AC"]
[800030065,"Agrupamento de Centros de Saúde do Grande Porto VII - Gaia","AC"]
[800030066,"Agrupamento de Centros de Saúde do Grande Porto VIII - Espinho-Gaia","AC"]
[800030067,"Agrupamento de Centros de Saúde de Entre o Douro e Vouga I - Feira - Arouca","AC"]
[800030068,"Agrupamento de Centros de Saúde de Entre o Douro e Vouga II - Aveiro Norte","AC"]
[800040000,"Parque Escolar, E.P.E.","AC"]
[865590000,"Agrupamento de Escolas Alfredo da Silva, Barreiro (Escola Básica e Secundária Alfredo da Silva, Barreiro - Sede)","AC"]
[865640000,"Agrupamento de Escolas Artur Gonçalves (Escola Básica e Secundária Artur Gonçalves, Torres Novas - Sede)","AC"]
[866110000,"Agrupamento de Escolas Rodrigues de Freitas, Porto (Escola Básica e Secundária Rodrigues de Freitas, Porto - Sede)","AC"]
[866310000,"Agrupamento de Escolas de Águas Santas, Maia (Escola Básica e Secundária de Águas Santas, Maia - Sede)","AC"]
[868200000,"Agrupamento de Escolas Gil Vicente, Lisboa (Escola Básica e Secundária Gil Vicente, Lisboa - Sede)","AC"]
[868200013,"Colégio das Artes da Universidade de Coimbra ","AC"]
[868200041,"Instituto de Investigação Interdisciplinar da Universidade de Coimbra ","AC"]
[875780002,"Tribunal Tributário de Lisboa","AC"]
[875780003,"Tribunal Administrativo e Fiscal de Aveiro","AC"]
[875780006,"Agrupamento de Escolas de Alcoutim (Escola Básica Prof. Joaquim Moreira, Martinlongo, Alcoutim - Sede)","AC"]
[875780008,"Agrupamento de Escolas de Bemposta, Portimão (Escola Básica e Secundária da Bemposta, Portimão - Sede)","AC"]
[875780245,"Instituto de Geografia e Ordenamento do Território da Universidade de Lisboa ","AC"]
[875780246,"Agrupamento de Escolas de Santa Comba Dão (Escola Secundária de Santa Comba Dão - Sede)","AC"]
[875780247,"Agrupamento de Escolas de Alpendorada, Marco de Canaveses, (Escola Secundária de Alpendorada, Marco de Canaveses - Sede)","AC"]
[875780255,"Serviços Partilhados do Ministério da Saúde, E.P.E.","AC"]
[875780257,"Comissão Nacional de Eleições","AC"]
[875780258,"Comissão de Acesso aos Documentos Administrativos","AC"]
[875780260,"Centro Hospitalar Universitário de São João, E.P.E.","AC"]
[875780261,"Centro Hospitalar e Universitário de Coimbra, E.P.E.","AC"]
[875780262,"Centro Hospitalar do Baixo Vouga, E.P.E. ","AC"]
[875780263,"Centro Hospitalar Tondela-Viseu, E.P.E.","AC"]
[875780264,"Centro Hospitalar de Leiria, E.P.E.","AC"]
[875780265,"Agrupamento de Escolas Padre António Martins de Oliveira, Lagoa (Escola Secundária Padre António Martins de Oliveira, Lagoa - Sede)","AC"]
[875780285,"Gabinete do Secretário de Estado da Segurança Social","AC"]
[875780304,"Conselho Nacional de Ética para as Ciências da Vida","AC"]
[875780306,"Assembleia da República","AC"]
[875780309,"Serviços de apoio direto ao Presidente da República","AC"]
[875780312,"Autoridade Tributária e Aduaneira","AC"]
[875780313,"Instituto Português do Desporto e Juventude, I.P.","AC"]
[875780315,"Cooperativa António Sérgio para a Economia Social - CIPRL","AC"]
[875780318,"Direção-Geral da Educação","AC"]
[875780319,"Direção-Geral de Estatísticas da Educação e Ciência","AC"]
[875780320,"Serviço de Intervenção nos Comportamentos Aditivos e nas Dependências","AC"]
[875780321,"Inspeção-Geral da Educação e Ciência","AC"]
[875780322,"Camões - Instituto da Cooperação e da Língua, I.P.","AC"]
[875780323,"Direção-Geral de Política do Mar","AC"]
[875780324,"Secretaria-Geral da Educação e Ciência ","AC"]
[875780328,"Unidade Local de Saúde do Nordeste, E.P.E.","AC"]
[875780329,"Direção-Geral da Administração Escolar","AC"]
[875780330,"Inspeção-Geral da Agricultura, do Mar, do Ambiente e do Ordenamento do Território","AC"]
[875780331,"Direção-Geral da Qualificação dos Trabalhadores em Funções Públicas","AC"]
[875780332,"Direção-Geral de Recursos Naturais, Segurança e Serviços Marítimos ","AC"]
[875780352,"Direção-Geral do Território","AC"]
[875780353,"Direção-Geral de Alimentação e Veterinária","AC"]
[875780355,"Instituto Português do Mar e da Atmosfera, I.P.","AC"]
[875780356,"Instituto Nacional de Investigação Agrária e Veterinária, I.P.","AC"]
[875780365,"Instituto da Conservação da Natureza e das Florestas, I.P.","AC"]
[875780376,"Secretaria-Geral do Ministério da Economia ","AC"]
[875780377,"Centro de Relações Laborais","AC"]
[875780379,"Entidade de Serviços Partilhados da Administração Pública, I.P.","AC"]
[875780381,"Direção-Geral de Reinserção e Serviços Prisionais","AC"]
[875780382,"Instituto de Gestão Financeira e Equipamentos da Justiça, I.P.","AC"]
[875780384,"Direção-Geral do Livro, dos Arquivos e das Bibliotecas","AC"]
[875780385,"Direção-Geral do Património Cultural","AC"]
[875780387,"Côa Parque - Fundação para a Salvaguarda e Valorização do Vale do Côa","AC"]
[875780388,"Comissão Interministerial para os Assuntos Europeus","AC"]
[875780390,"Autoridade Aeronáutica Nacional","AC"]
[875780391,"Comissão de Recrutamento e Seleção para a Administração Pública","AC"]
[875780405,"Entidade Nacional da Reserva Agrícola Nacional","AC"]
[875780406,"Entidade Regional da Reserva Agrícola Nacional de Lisboa e Vale do Tejo","AC"]
[875780407,"Entidade Regional da Reserva Agrícola Nacional do Alentejo","AC"]
[875780408,"Entidade Regional da Reserva Agrícola Nacional do Algarve","AC"]
[875780409,"Entidade Regional da Reserva Agrícola Nacional do Centro","AC"]
[875780414,"Conselho Coordenador Político-Diplomático","AC"]
[875780415,"Comissão Interministerial de Política Externa","AC"]
[875780416,"Autoridade Nacional para a Convenção sobre a Proibição do Desenvolvimento, Produção, Armazenamento e Utilização de Armas Químicas","AC"]
[875780417,"Autoridade Nacional para efeitos do Tratado de Proibição Total de Ensaios Nucleares","AC"]
[875780418,"Comissão Luso-Espanhola para a Cooperação Transfronteiriça","AC"]
[875780419,"Comissão Interministerial para as Comunidades Portuguesas","AC"]
[875780420,"Comissão Organizadora do Recenseamento Eleitoral dos Portugueses no Estrangeiro","AC"]
[875780422,"Comissão de Normalização Contabilística","AC"]
[875780432,"Fundo da Língua Portuguesa","AC"]
[875780433,"IMAR - Instituto do Mar","AC"]
[875780437,"Fundação Económicas - Fundação para o Desenvolvimento das Ciências Económicas, Financeiras e Empresariais","AC"]
[875780443,"Autoridade Antidopagem de Portugal","AC"]
[875780484,"Unidade Técnica de Acompanhamento de Projetos","AC"]
[875780485,"Agrupamento de Centros de Saúde de Matosinhos","AC"]
[875780490,"Entidade das Contas e Financiamentos Políticos","AC"]
[875780493,"Conselho das Finanças Públicas","AC"]
[875790002,"Gabinete de Investigação de Acidentes Marítimos e da Autoridade para a Meteorologia Aeronáutica","AC"]
[875790007,"Escola Profissional de Desenvolvimento Rural de Alter do Chão","AC"]
[875790008,"Agrupamento de Escolas da Trofa (Escola Secundária da Trofa - Sede)","AC"]
[875790009,"Agrupamento de Escolas Diogo de Macedo (Escola Secundária Diogo de Macedo - Sede)","AC"]
[875790010,"Agrupamento de Escolas Aurélia de Sousa (Escola Secundária de Aurélia de Sousa - Sede)","AC"]
[875790011,"Agrupamento de Escolas Alcaides de Faria, Barcelos (Escola Secundária Alcaides de Faria, Barcelos - Sede)","AC"]
[875790012,"Agrupamento de Escolas Nuno de Santa Maria, Tomar (Escola Secundária de Santa Maria do Olival, Tomar - Sede)","AC"]
[875790013,"Agrupamento de Escolas de Esmoriz, Ovar Norte (Escola Secundária de Esmoriz, Ovar - Sede)","AC"]
[875790014,"Agrupamento de Escolas de Vendas Novas (Escola Secundária de Vendas Novas - Sede)","AC"]
[875790015,"Agrupamento de Escolas de Alvalade, Lisboa (Escola Secundária Padre António Vieira, Lisboa - Sede)","AC"]
[875790016,"Agrupamento de Escolas Carolina Michaelis, Porto (Escola Secundária Carolina Michaelis, Porto - Sede)","AC"]
[875790017,"Agrupamento de Escolas n.º 1 de Gondomar (Escola Secundária de Gondomar - Sede)","AC"]
[875790018,"Agrupamento de Escolas Morgado de Mateus (Escola Secundária do Morgado de Mateus - Sede)","AC"]
[875790019,"Agrupamento de Escolas da Cidadela (Escola Secundária da Cidadela - Sede)","AC"]
[875790020,"Agrupamento de Escolas D. Dinis, Lisboa (Escola Secundária D. Dinis, Lisboa - Sede)","AC"]
[875790021,"Agrupamento de Escolas de Cister de Alcobaça (Escola Secundária de D. Inês de Castro, Alcobaça - Sede)","AC"]
[875790022,"Agrupamento de Escolas de Benfica, Lisboa (Escola Secundária José Gomes Ferreira, Lisboa - Sede)","AC"]
[875790023,"Agrupamento de Escolas Raul Proença (Escola Secundária Raul Proença - Sede)","AC"]
[875790024,"Agrupamento de Escolas Vergílio Ferreira (Escola Secundária de Vergílio Ferreira - Sede)","AC"]
[875790025,"Agrupamento de Escolas Alexandre Herculano, Porto (Escola Secundária Alexandre Herculano, Porto - Sede)","AC"]
[875790026,"Agrupamento de Escolas António Sérgio, Vila Nova de Gaia (Escola Secundária António Sérgio, Vila Nova de Gaia - Sede)","AC"]
[875790027,"Agrupamento de Escolas da Maia (Escola Secundária da Maia - Sede)","AC"]
[875790028,"Agrupamento de Escolas Abel Salazar, Matosinhos (Escola Secundária Abel Salazar, São Mamede de Infesta, Matosinhos - Sede)","AC"]
[875790029,"Agrupamento de Escolas de Amares (Escola Secundária de Amares - Sede)","AC"]
[875790030,"Agrupamento de Escolas de Barcelos (Escola Secundária de Barcelos - Sede)","AC"]
[875790031,"Agrupamento de Escolas de Caldas de Vizela, Vizela (Escola Secundária de Caldas de Vizela, Vizela - Sede)","AC"]
[875790032,"Agrupamento de Escolas Camilo Castelo Branco - Vila Nova de Famalicão (Escola Secundária de Camilo Castelo Branco de Vila Nova de Famalicão - Sede)","AC"]
[875790033,"Agrupamento de Escolas de Carvalhos, Vila Nova de Gaia (Escola Secundária de Carvalhos, Vila Nova de Gaia - Sede)","AC"]
[875790034,"Agrupamento de Escolas Figueira Norte (Escola Secundária com 3º ciclo do Ensino Básico de Cristina Torres, Figueira da Foz - Sede) ","AC"]
[875790035,"Agrupamento de Escolas Cidade do Entroncamento (Escola Secundária do Entroncamento - Sede) ","AC"]
[875790036,"Agrupamento de Escolas de Fafe (Escola Secundária de Fafe - Sede)","AC"]
[875790037,"Agrupamento de Escolas D. Maria II (Escola Básica e Secundária de Gama Barros - Sede)","AC"]
[875790038,"Agrupamento de Escolas de Ovar Sul (Escola Secundária de Júlio Dinis, Ovar - Sede)","AC"]
[875790039,"Agrupamento de Escolas Madeira Torres, Torres Vedras (Escola Secundária Madeira Torres, Torres Vedras - Sede)","AC"]
[875790040,"Agrupamento de Escolas Sampaio (Escola Secundária de Sampaio - Sede)","AC"]
[875790041,"Agrupamento de Escolas n.º 2 de Serpa (Escola Secundária de Serpa - Sede)","AC"]
[875790042,"Agrupamento de Escolas de Massamá (Escola Secundária de Stuart Carvalhais - Sede) ","AC"]
[875790043,"Agrupamento de Escolas de Tondela Tomaz Ribeiro (Escola Secundária com 3º ciclo do Ensino Básico de Tondela - Sede)","AC"]
[875790044,"Agrupamento de Escolas de Valongo (Escola Secundária de Valongo - Sede)","AC"]
[875790045,"Agrupamento de Escolas de Vilela, Paredes (Escola Básica e Secundária de Vilela, Paredes - Sede)","AC"]
[875790046,"Agrupamento de Escolas Dr. Manuel Gomes Almeida (Escola Secundária do Dr. Manuel Gomes de Almeida - Sede)","AC"]
[875790047,"Agrupamento de Escolas Dr. Manuel Laranjeira (Escola Secundária do Dr. Manuel Laranjeira - Sede)","AC"]
[875790048,"Agrupamento de Escolas Emídio Garcia, Bragança (Escola Secundária Emídio Garcia, Bragança - Sede)","AC"]
[875790049,"Agrupamento de Escolas de Parede, Cascais (Escola Secundária Fernando Lopes Graça, Parede, Cascais - Sede)","AC"]
[875790050,"Agrupamento de Escolas Ferreira de Castro, Oliveira de Azeméis (Escola Básica e Secundária Ferreira de Castro, Oliveira de Azeméis - Sede)","AC"]
[875790051,"Agrupamento de Escolas Garcia de Orta, Porto (Escola Secundária Garcia de Orta, Porto - Sede)","AC"]
[875790052,"Agrupamento de Escolas Joaquim de Araújo (Escola Secundária com 3º ciclo do Ensino Básico Joaquim de Araújo, Penafiel - Sede)","AC"]
[875790053,"Agrupamento de Escolas Latino Coelho, Lamego (Escola Secundária Latino Coelho, Lamego - Sede)","AC"]
[875790054,"Agrupamento de Escolas de Lousada (Escola Secundária de Lousada - Sede)","AC"]
[875790055,"Agrupamento de Escolas de Paço de Arcos (Escola Secundária Luís de Freitas Branco - Sede)","AC"]
[875790056,"Agrupamento de Escolas Miguel Torga, Sintra (Escola Secundária Miguel Torga, Monte Abraão, Sintra - Sede)","AC"]
[875790057,"Agrupamento de Escolas de Mirandela (Escola Secundária de Mirandela - Sede)","AC"]
[875790058,"Agrupamento de Escolas de Monção (Escola Secundária de Monção - Sede)","AC"]
[875790059,"Agrupamento de Escolas do Bonfim, Portalegre (Escola Secundária Mouzinho da Silveira, Portalegre - Sede)","AC"]
[875790060,"Agrupamento de Escolas Padre Benjamim Salgado, Vila Nova de Famalicão (Escola Secundária Padre Benjamim Salgado, Vila Nova de Famalicão - Sede)","AC"]
[875790061,"Agrupamento de Escolas de Póvoa de Lanhoso (Escola Secundária da Póvoa de Lanhoso - Sede)","AC"]
[875790062,"Agrupamento de Escolas n.º 3 de Rio Tinto, Gondomar (Escola Secundária de Rio Tinto, Gondomar - Sede)","AC"]
[875790063,"Agrupamento de Escolas Sá da Bandeira, Santarém (Escola Secundária Sá da Bandeira, Santarém - Sede)","AC"]
[875790064,"Agrupamento de Escolas Soares Basto (Escola Secundária Soares Basto, Oliveira de Azeméis - Sede)","AC"]
[875790065,"Agrupamento de Escolas Fernão de Magalhães, Chaves (Escola Básica e Secundária Fernão de Magalhães, Chaves - Sede)","AC"]
[875790066,"Agrupamento de Escolas do Fundão (Escola Secundária com 3º ciclo do Ensino Básico do Fundão - Sede)","AC"]
[875790067,"Agrupamento de Escolas 4 de Outubro, Loures (Escola Secundária Dr. António Carvalho Figueiredo, Loures - Sede)","AC"]
[875790068,"Agrupamento de Escolas das Laranjeiras (Escola Secundária de D. Pedro V - Sede)","AC"]
[875790069,"Agrupamento de Escolas D. Sancho I, Vila Nova de Famalicão (Escola Secundária de D. Sancho I, Vila Nova de Famalicão - Sede)","AC"]
[875790070,"Agrupamento de Escolas de Benavente (Escola Secundária de Benavente - Sede)","AC"]
[875790071,"Agrupamento de Escolas Lima-de-Faria, Cantanhede (Escola Secundária Lima-de-Faria - Sede)","AC"]
[875790072,"Agrupamento de Escolas Coimbra Oeste (Escola Secundária D. Duarte - Sede)","AC"]
[875790073,"Agrupamento de Escolas de Ermesinde, Valongo (Escola Básica e Secundária de Ermesinde, Valongo - Sede)","AC"]
[875790074,"Agrupamento de Escolas Templários, Tomar (Escola Secundária de Jácome Ratton, Tomar - Sede) ","AC"]
[875790075,"Agrupamento de Escolas Coimbra Centro (Escola Secundária de Jaime Cortesão - Sede) ","AC"]
[875790076,"Agrupamento de Escolas João de Deus, Faro (Escola Secundária João de Deus - Sede)","AC"]
[875790077,"Agrupamento de Escolas Júlio Dantas, Lagos (Escola Secundária Júlio Dantas, Lagos - Sede)","AC"]
[875790078,"Agrupamento de Escolas n.º 1 de Marco de Canaveses (Escola Secundária Marco de Canaveses - Sede) ","AC"]
[875790079,"Agrupamento de Escolas de Mem Martins (Escola Secundária de Mem Martins - Sede)","AC"]
[875790080,"Agrupamento de Escolas de Silves (Escola Secundária de Silves - Sede)","AC"]
[875790081,"Agrupamento de Escolas da Lixa, Felgueiras (Escola Secundária da Lixa, Felgueiras - Sede)","AC"]
[875790082,"Agrupamento de Escolas Dr. Francisco Fernandes Lopes, Olhão (Escola Secundária Dr. Francisco Fernandes Lopes, Olhão - Sede)","AC"]
[875790083,"Agrupamento de Escolas de Padrão da Légua, Matosinhos (Escola Básica e Secundária de Padrão da Légua, Matosinhos - Sede)","AC"]
[875790084,"Agrupamento de Escolas Dr. António Granjo (Escola Secundária Doutor António Granjo - Sede)","AC"]
[875790085,"Agrupamento de Escolas Dr. Júlio Martins, Chaves (Escola Secundária Dr. Júlio Martins de Chaves - Sede)","AC"]
[875790086,"Agrupamento de Escolas Fontes Pereira de Melo, Porto (Escola Básica e Secundária Fontes Pereira de Melo, Porto - Sede)","AC"]
[875790087,"Agrupamento de Escolas João Silva Correia (Escola Secundária de João Silva Correia, S. João da Madeira - Sede)","AC"]
[875790088,"Agrupamento de Escolas Leal da Câmara, Sintra (Escola Secundária Leal da Câmara, Rio de Mouro, Sintra - Sede)","AC"]
[875790089,"Agrupamento de Escolas de Águeda Sul (Escola Secundária Marques de Castilho - Sede) ","AC"]
[875790090,"Agrupamento de Escolas de Queluz-Belas (Escola Secundária Padre Alberto Neto - Sede)","AC"]
[875790091,"Agrupamento de Escolas de Alcochete (Escola Secundária de Alcochete - Sede)","AC"]
[875790092,"Agrupamento de Escolas Poeta António Aleixo (Escola Secundária do Poeta António Aleixo - Sede)","AC"]
[875790093,"Agrupamento de Escolas Linda-a-Velha e Queijas (Escola Secundária Professor José Augusto Lucas - Sede)","AC"]
[875790094,"Agrupamento de Escolas de Vila Viçosa (Escola Secundária Públia Hortênsia de Castro - Sede)","AC"]
[875790095,"Agrupamento de Escolas Monte da Lua (Escola Secundária de Santa Maria - Sede) ","AC"]
[875790096,"Agrupamento de Escolas de São Julião da Barra (Escola Secundária de Sebastião e Silva - Sede) ","AC"]
[875790097,"Agrupamento de Escolas Gaia Nascente (Escola Secundária Gaia Nascente, Vila Nova de Gaia - Sede)","AC"]
[875790098,"Conselho Superior do Ministério Público","AC"]
[875790220,"Agrupamento de Escolas de Carnaxide (Escola Secundária Camilo Castelo Branco - Sede)","AC"]
[875790221,"Agrupamento de Escolas de Santa Catarina (Escola Básica e Secundária Amélia Rey Colaço - Sede)","AC"]
[875790222,"Unidade Nacional de Gestão do Mecanismo Financeiro do Espaço Económico Europeu 2014-2021","AC"]
[875790237,"Agrupamento de Centros de Saúde do Alto Ave - Guimarães-Vizela-Terras de Basto","AC"]
[875790238,"Agrupamento de Centros de Saúde do Grande Porto III - Maia/Valongo","AC"]
[875790239,"Agrupamento de Centros de Saúde do Alentejo Central","AC"]
[875790240,"Unidade Local de Saúde do Litoral Alentejano, E.P.E.","AC"]
[875790241,"Agrupamento de Centros de Saúde do Baixo Vouga","AC"]
[875790242,"Agrupamento de Centros de Saúde do Baixo Mondego","AC"]
[875790243,"Agrupamento de Centros de Saúde do Pinhal Litoral","AC"]
[875790244,"Agrupamento de Centros de Saúde Sintra","AC"]
[875790245,"Agrupamento de Centros de Saúde Loures-Odivelas","AC"]
[875790246,"Agrupamento de Centros de Saúde Estuário do Tejo","AC"]
[875790247,"Agrupamento de Centros de Saúde Almada-Seixal","AC"]
[875790248,"Agrupamento de Centros de Saúde Arrábida","AC"]
[875790249,"Agrupamento de Centros de Saúde Oeste Sul","AC"]
[875790250,"Agrupamento de Centros de Saúde Médio Tejo","AC"]
[875790251,"Agrupamento de Centros de Saúde Lezíria","AC"]
[875790256,"Agrupamento de Centros de Saúde do Dão-Lafões","AC"]
[875790257,"Agrupamento de Centros de Saúde do Pinhal Interior Norte","AC"]
[875790258,"Agrupamento de Centros de Saúde Lisboa Norte","AC"]
[875790259,"Agrupamento de Centros de Saúde Lisboa Central","AC"]
[875790260,"Agrupamento de Centros de Saúde Lisboa Ocidental e Oeiras","AC"]
[875790295,"OTLIS - Operadores de Transporte da Região de Lisboa, ACE","AC"]
[875790296,"Caixa Capital, Sociedade de Capital de Risco, S.A.","AC"]
[875790297,"Caixa-Participações, SGPS, S.A.","AC"]
[875790300,"Parbanca, SGPS, S.A.","AC"]
[875790302,"Parpública - Participações Públicas, SGPS, S.A.","AC"]
[875790303,"Partang, SGPS, S.A. - Em liquidação","AC"]
[875790304,"SOFID - Sociedade para o Financiamento do Desenvolvimento, Instituição Financeira de Crédito, S.A.","AC"]
[875790306,"Portugal Capital Ventures - Sociedade de Capital de Risco, S.A.","AC"]
[875790307,"SAROS - Sociedade de Mediação de Seguros, Lda.","AC"]
[875790308,"Administração do Porto da Figueira da Foz, S.A.","AC"]
[875790309,"AdRA - Águas da Região de Aveiro, S.A.","AC"]
[875790310,"Águas de Santo André, S.A.","AC"]
[875790312,"Águas do Algarve, S.A.","AC"]
[875790318,"APA - Administração do Porto de Aveiro, S.A.","AC"]
[875790319,"Administração dos Portos do Douro, Leixões e Viana do Castelo, S.A. ","AC"]
[875790320,"APL - Administração do Porto de Lisboa, S.A.","AC"]
[875790321,"APS - Administração dos Portos de Sines e do Algarve, S.A.","AC"]
[875790323,"Baía do Tejo, S.A.","AC"]
[875790326,"CE - Circuito do Estoril, S.A.","AC"]
[875790327,"Comboios de Portugal, E.P.E.","AC"]
[875790329,"EMEF - Empresa de Manutenção de Equipamento Ferroviário, S.A.","AC"]
[875790330,"EPAL - Empresa Pública das Águas Livres, S.A.","AC"]
[875790334,"Sociedade Florestgal - Empresa de Gestão e Desenvolvimento Florestal, S.A. ","AC"]
[875790335,"Loja da Universidade do Porto, Lda.","AC"]
[875790336,"Lusa - Agência de Notícias de Portugal, S.A.","AC"]
[875790337,"MARÉ - Mercado Abastecedor da Região de Évora, S.A.","AC"]
[875790338,"MARF - Mercado Abastecedor da Região de Faro, S.A.","AC"]
[875790339,"MARL - Mercado Abastecedor da Região de Lisboa, S.A.","AC"]
[875790340,"Navegação Aérea de Portugal, E.P.E.","AC"]
[875790341,"EMPORDEF Engenharia Naval, S.A.","AC"]
[875790342,"Parques de Sintra - Monte da Lua, S.A.","AC"]
[875790345,"IP Engenharia, S.A.","AC"]
[875790346,"IP Património - Administração e Gestão Imobiliária, S.A.","AC"]
[875790349,"SIMAB - Sociedade Instaladora de Mercados Abastecedores, S.A.","AC"]
[875790350,"SOFLUSA - Sociedade Fluvial de Transportes, S.A.","AC"]
[875790351,"TRANSTEJO - Transportes Tejo, S.A.","AC"]
[875790361,"Silopor - Empresa de Silos Portuários, S.A. - Em liquidação","AC"]
[875790367,"Fernave - Formação Técnica, Psicologia Aplicada e Consultoria em Transportes e Portos, S.A.","AC"]
[875790368,"EDM - Empresa de Desenvolvimento Mineiro, S.A.","AC"]
[875790369,"EDMI - Empresa de Projectos Imobiliários, S.A.","AC"]
[875790371,"Docapesca - Portos e Lotas, S.A.","AC"]
[875790374,"Fundação Centro Cultural de Belém","AC"]
[875790375,"Companhia das Lezírias, S.A.","AC"]
[875790386,"Ferconsult - Consultoria, Estudos e Projectos de Engenharia de Transportes, S.A.","AC"]
[875790387,"APSS-Administração dos Portos de Setúbal e Sesimbra, S.A.","AC"]
[875790390,"Marina Parque das Nações - Sociedade Concessionária da Marina do Parque das Nações, S.A.","AC"]
[875790392,"EMPORDEF - Empresa Portuguesa de Defesa, SGPS, S.A. - Em liquidação","AC"]
[875790411,"AdP - Águas de Portugal, SGPS, S.A.","AC"]
[875790412,"AdP - Águas de Portugal Serviços Ambientais, S.A.","AC"]
[875790415,"AdP - Águas de Portugal Internacional Serviços Ambientais, S.A.","AC"]
[875790416,"AdP Energias - Energias Renováveis e Serviços Ambientais, S.A.","AC"]
[875790417,"EDIA - Empresa de Desenvolvimento e Infraestruturas do Alqueva, S.A.","AC"]
[875790419,"METROCOM - Exploração de Espaços Comerciais, S.A.","AC"]
[875790423,"idD - Plataforma das Indústrias de Defesa Nacionais, S.A.","AC"]
[875790429,"Sociedade de Transportes Colectivos do Porto, S.A.","AC"]
[875790430,"SUCH - Serviço Utilização Comum dos Hospitais","AC"]
[875790431,"Instituto de Gestão e Administração Pública","AC"]
[875790432,"ANI - Agência Nacional de Inovação, S.A.","AC"]
[875790434,"Geral Lazarim - Compra, Venda e Exploração de Imóveis, S.A.","AC"]
[875790435,"Laborimóveis - Compra, Venda e Exploração de Imóveis, S.A.","AC"]
[875790436,"MARB - Mercado Abastecedor da Região de Braga, S.A.","AC"]
[875790437,"aicep Global Parques","AC"]
[875790439,"ECOSAÚDE - Educação, Investigação e Consultoria em Trabalho, Saúde e Ambiente, S.A.","AC"]
[875790441,"Imprensa Nacional-Casa da Moeda, S.A.","AC"]
[875790443,"Laboratório Militar de Produtos Químicos e Farmacêuticos","AC"]
[875790445,"Direção-Geral dos Estabelecimentos Escolares","AC"]
[875790448,"Centro de Serviços do Ambiente - CESAB","AC"]
[875790450,"Fundação Luis de Molina FP  - em liquidação","AC"]
[875790452,"Banco Efisa, S.A.","AC"]
[875790453,"Caixa - Banco de Investimento, S.A.","AC"]
[875790460,"Parparticipadas, SGPS S.A.","AC"]
[875790461,"SPGM - Sociedade de Investimento, S.A.","AC"]
[875790463,"Grupunave - Inovação e Serviços, Lda.","AC"]
[875790468,"AgdA - Águas Públicas do Alentejo, S.A.","AC"]
[875790469,"SAGESECUR - Sociedade de Estudos, Desenvolvimento e Participação em Projetos, S.A.","AC"]
[875790471,"Metro-Mondego, S.A.","AC"]
[875790474,"Empordef - Tecnologias de Informação, S.A.","AC"]
[875790478,"TIP - Transportes Intermodais do Porto, A.C.E.","AC"]
[875790481,"PME Investimentos - Sociedade de Investimento, S.A.","AC"]
[875790487,"IP Telecom, S.A.","AC"]
[875790490,"Caixa Geral de Depósitos, S.A.","AC"]
[875790491,"Caixa - Serviços Partilhados, A.C.E. ","AC"]
[875790497,"Caixa Imobiliário, S.A.","AC"]
[875790500,"Culturgest - Fundação Caixa Geral de Depósitos","AC"]
[875790501,"Caixa Leasing e Factoring - Instituição Financeira de Crédito, S.A.","AC"]
[875790503,"CGD Pensões - Sociedade Gestora de Fundos de Pensões, S.A.","AC"]
[875790504,"Caixa Gestão de Ativos Sociedade Gestora de Fundos de Investimento, S.A.","AC"]
[875790505,"Fundger, Sociedade Gestora de Fundos de Investimento Imobiliário, S.A.","AC"]
[875790508,"CONSEST - Promoção Imobiliária, S.A.","AC"]
[875790511,"EMEF-SIEMENS A.C.E. - Serviços Integrados de Manutenção e Engenharia Ferroviária, A.C.E.","AC"]
[875790512,"ESTAMO - Participações Imobiliárias, S.A.","AC"]
[875790517,"Fundação INATEL","AC"]
[875790529,"VALORA - Serviços de Apoio à Emissão Monetária, S.A.","AC"]
[875790532,"FUNDIESTAMO - Sociedade Gestora de Organismo de Investimento Coletivo, S.A.","AC"]
[875790534,"Sistema de Indemnização aos Investidores","AC"]
[875790595,"Comando da Zona Aérea dos Açores","AC"]
[875790596,"Comando da Zona Aérea da Madeira","AC"]
[875790606,"Instituto Hidrográfico","AC"]
[875790607,"Santa Casa da Misericórdia de Lisboa - Departamento de Jogos","AC"]
[875790608,"Comando da Zona Militar dos Açores","AC"]
[875790609,"Comando da Zona Militar da Madeira","AC"]
[875790610,"Academia Militar","AC"]
[875790611,"Colégio Militar","AC"]
[875790612,"Instituto Militar dos Pupilos do Exército","AC"]
[875790616,"Academia da Força Aérea","AC"]
[875790617,"Comando Operacional dos Açores","AC"]
[875790618,"Comando Operacional da Madeira","AC"]
[875790619,"Exército - Portugal Continental","AC"]
[875790628,"Comissão para a Dissuasão da Toxicodependência de Aveiro","AC"]
[875790629,"Comissão para a Dissuasão da Toxicodependência de Beja","AC"]
[875790630,"Comissão para a Dissuasão da Toxicodependência de Braga","AC"]
[875790631,"Comissão para a Dissuasão da Toxicodependência de Bragança","AC"]
[875790633,"Comissão para a Dissuasão da Toxicodependência de Castelo Branco","AC"]
[875790634,"Comissão para a Dissuasão da Toxicodependência de Coimbra","AC"]
[875790635,"Comissão para a Dissuasão da Toxicodependência de Évora","AC"]
[875790636,"Comissão para a Dissuasão da Toxicodependência de Faro","AC"]
[875790637,"Comissão para a Dissuasão da Toxicodependência da Guarda","AC"]
[875790638,"Comissão para a Dissuasão da Toxicodependência de Leiria","AC"]
[875790639,"Comissão para a Dissuasão da Toxicodependência de Lisboa","AC"]
[875790640,"Comissão para a Dissuasão da Toxicodependência de Portalegre","AC"]
[875790641,"Comissão para a Dissuasão da Toxicodependência do Porto","AC"]
[875790642,"Comissão para a Dissuasão da Toxicodependência de Santarém","AC"]
[875790643,"Comissão para a Dissuasão da Toxicodependência de Setúbal","AC"]
[875790644,"Comissão para a Dissuasão da Toxicodependência de Viana do Castelo","AC"]
[875790645,"Comissão para a Dissuasão da Toxicodependência de Vila Real","AC"]
[875790646,"Comissão para a Dissuasão da Toxicodependência de Viseu","AC"]
[875790932,"Centro Hospitalar Universitário do Algarve, E.P.E.","AC"]
[875790935,"STCP SERVIÇOS - Transportes Urbanos, Consultoria e Participações, Unipessoal, Lda.","AC"]
[875790986,"Agrupamento de Escolas n.º 2 de Abrantes (Escola Básica e Secundária Dr. Manuel Fernandes, Abrantes - Sede) ","AC"]
[875790987,"Agrupamento de Escolas de Santo André (Escola Secundária de Santo André - Sede)","AC"]
[875790988,"Agrupamento de Escolas José Estêvão (Escola Secundária José Estêvão - Sede)","AC"]
[875790989,"Agrupamento de Escolas Carlos Amarante, Braga (Escola Secundária Carlos Amarante, Braga - Sede)","AC"]
[875790990,"Agrupamento de Escolas de Alberto Sampaio (Escola Secundária de Alberto Sampaio - Sede)","AC"]
[875790991,"Agrupamento de Escolas António Gedeão, Almada (Escola Secundária António Gedeão, Cova da Piedade, Almada - Sede)","AC"]
[875790992,"Agrupamento de Escolas n.º 4 de Évora (Escola Secundária André de Gouveia - Sede)","AC"]
[875790993,"Agrupamento de Escolas Henriques Nogueira (Escola Secundária Henriques Nogueira - Sede)","AC"]
[875790994,"Agrupamento de Escolas do Restelo (Escola Secundária do Restelo - Sede) ","AC"]
[875790999,"Agrupamento de Escolas n.º 1 de Beja (Escola Secundária Diogo de Gouveia, Beja - Sede)","AC"]
[875791000,"Agrupamento de Escolas Severim de Faria, Évora (Escola Secundária Severim de Faria - Sede) ","AC"]
[875791001,"Agrupamento de Escolas D. Dinis, Santo Tirso (Escola Secundária D. Dinis, Santo Tirso - Sede)","AC"]
[875791002,"Agrupamento de Escolas D. Pedro IV, Vila do Conde (Escola Básica D. Pedro IV, Mindelo, Vila do Conde - Sede)","AC"]
[875791003,"Agrupamento de Escolas de Grândola (Escola Secundária de António Inácio da Cruz - Sede) ","AC"]
[875791004,"Agrupamento de Escolas da Sé, Guarda (Escola Secundária da Sé - Sede)","AC"]
[875791005,"Agrupamento de Escolas Marinha Grande Nascente (Escola Básica Prof. Alberto Nery Capucho, Marinha Grande - Sede) ","AC"]
[875791007,"Agrupamento de Escolas de Odemira (Escola Secundária Dr. Manuel Candeias Gonçalves - Sede) ","AC"]
[875791008,"Agrupamento de Escolas Domingos Sequeira (Escola Secundária de Domingos Sequeira - Sede)","AC"]
[875791009,"Agrupamento de Escolas D. Afonso Sanches (Escola Secundária D. Afonso Sanches - Sede)","AC"]
[875791010,"Agrupamento de Escolas Braamcamp Freire - Pontinha, Odivelas (Escola Secundária Braamcamp Freire, Pontinha, Odivelas - Sede)","AC"]
[875791011,"Agrupamento de Escolas Pedro Alexandrino (Escola Secundária Pedro Alexandrino, Póvoa de Santo Adrião, Odivelas - Sede)","AC"]
[875791012,"Agrupamento de Escolas Afonso de Albuquerque (Escola Secundária de Afonso de Albuquerque - Sede)","AC"]
[875791013,"Agrupamento de Escolas de Ponte de Sor (Escola Secundária de Ponte de Sor - Sede)","AC"]
[875791014,"Agrupamento de Escolas de Vouzela e Campia (Escola Secundária de Vouzela - Sede)","AC"]
[875791015,"Agrupamento de Escolas Rainha D. Leonor (Escola Secundária Rainha D. Leonor - Sede)","AC"]
[875791016,"Agrupamento de Escolas Dr. Mário Sacramento (Escola Secundária Dr. Mário Sacramento - Sede)","AC"]
[875791017,"Agrupamento de Escolas Amadora Oeste, Amadora (Escola Secundária Seomara da Costa Primo, Amadora - Sede)","AC"]
[875791018,"Agrupamento de Escolas n.º 2 de Beja (Escola Secundária D. Manuel I, Beja - Sede)","AC"]
[875791019,"Agrupamento de Escolas de Alcácer do Sal (Escola Secundária de Alcácer do Sal - Sede) ","AC"]
[875791020,"Agrupamento de Escolas de Santa Maria Maior (Escola Secundária de Santa Maria Maior - Sede)","AC"]
[875791021,"Agrupamento de Escolas Marinha Grande Poente (Escola Secundária Engenheiro Acácio Calazans Duarte - Sede)","AC"]
[875791022,"Agrupamento de Escolas de Santo André, Santiago do Cacém (Escola Secundária Padre António Macedo - Sede)","AC"]
[875791023,"Agrupamento de Escolas Rafael Bordalo Pinheiro (Escola Secundária Rafael Bordalo Pinheiro - Sede)","AC"]
[875791024,"Fundação Gaspar Frutuoso","AC"]
[875791025,"Agrupamento de Escolas Daniel Sampaio (Escola Secundária Daniel Sampaio - Sede)","AC"]
[875791026,"Agrupamento de Escolas Francisco de Holanda, Guimarães (Escola Secundária Francisco de Holanda - Sede)","AC"]
[875791027,"Agrupamento de Escolas Pinheiro e Rosa (Escola Secundária Pinheiro e Rosa - Sede)","AC"]
[875791028,"Agrupamento de Escolas Manuel Teixeira Gomes (Escola Secundária Manuel Teixeira Gomes - Sede)","AC"]
[875791029,"Agrupamento de Escolas Sebastião da Gama (Escola Secundária de Sebastião da Gama - Sede)","AC"]
[875791030,"Agrupamento de Escolas de Pombal (Escola Secundária de Pombal - Sede)","AC"]
[875791031,"Agrupamento de Escolas de São Pedro do Sul (Escola Secundária de São Pedro do Sul - Sede)","AC"]
[875791032,"Agrupamento de Escolas Tomás Cabreira (Escola Secundária de Tomás Cabreira - Sede)","AC"]
[875791033,"Agrupamento de Escolas Pioneiros da Aviação Portuguesa (Escola Secundária da Amadora - Sede)","AC"]
[875791034,"Agrupamento de Escolas D. Maria II, Braga (Escola Secundária D. Maria II, Braga - Sede)","AC"]
[875791035,"Agrupamento de Escolas de Oliveira do Hospital (Escola Secundária de Oliveira do Hospital - Sede)","AC"]
[875791036,"Agrupamento de Escolas de Caneças (Escola Secundária de Caneças - Sede)","AC"]
[875791037,"Agrupamento de Escolas Sidónio Pais, Vilarelho, Caminha (Escola Básica e Secundária Sidónio Pais, Vilarelho, Caminha - Sede)","AC"]
[875791038,"Agrupamento de Escolas n.º 3 de Elvas (Escola Secundária D. Sancho II - Sede)","AC"]
[875791039,"Agrupamento de Escolas de Estarreja (Escola Secundária de Estarreja - Sede)","AC"]
[875791040,"Agrupamento de Escolas de Santa Maria da Feira (Escola Básica e Secundária de Santa Maria da Feira - Sede)","AC"]
[875791041,"Agrupamento de Escolas de Montemor-o-Novo (Escola Secundária de Montemor-o-Novo - Sede)","AC"]
[875791042,"Agrupamento de Escolas Nuno Álvares, Castelo Branco (Escola Secundária Nuno Álvares, Castelo Branco - Sede)","AC"]
[875791043,"Agrupamento de Escolas João de Barros (Escola Secundária João de Barros - Sede)","AC"]
[875791044,"Agrupamento de Escolas José Afonso, Loures, (Escola Secundária José Afonso, Loures - Sede)","AC"]
[875791045,"Agrupamento de Escolas Tomaz Pelayo, Santo Tirso (Escola Secundária de Tomaz Pelayo - Sede)","AC"]
[875791046,"Agrupamento de Escolas Frei Heitor Pinto, Covilhã (Escola Secundária Frei Heitor Pinto - Sede)","AC"]
[875791048,"Gabinete da Secretária de Estado do Ambiente","AC"]
[875791051,"Gabinete da Ministra do Trabalho, Solidariedade e Segurança Social","AC"]
[875791055,"Agrupamento de Escolas de Agualva Mira Sintra (Escola Secundária Matias Aires - Sede)","AC"]
[875791056,"Agrupamento de Escolas n.º 1 de Abrantes (Escola Secundária Doutor Solano de Abreu - Sede)","AC"]
[875791058,"Agrupamento de Escolas de Monserrate (Escola Secundária de Monserrate - Sede)","AC"]
[875791059,"Fundação Museu Nacional Ferroviário Armando Ginestal Machado","AC"]
[875791062,"Agrupamento de Escolas Fernando Namora (Escola Secundária Fernando Namora - Sede) ","AC"]
[875791063,"Universidade de Lisboa","AC"]
[875791064,"Agrupamento de Escolas da Lousã (Escola Secundária da Lousã - Sede)","AC"]
[875791065,"Turismo Fundos - SGFII, S.A.","AC"]
[875791068,"Serviços de Ação Social da Universidade de Lisboa","AC"]
[875791076,"Agrupamento de Escolas Sá de Miranda (Escola Secundária Sá de Miranda - Sede)","AC"]
[875791078,"Comissão Cultural de Marinha","AC"]
[875791079,"Marinha - Escola Naval","AC"]
[875791080,"Agrupamento de Escolas Dr. Jorge Augusto Correia, Tavira (Escola Secundária Dr. Jorge Augusto Correia, Tavira - Sede)","AC"]
[875791081,"Superintendência do Pessoal","AC"]
[875791082,"Direção-Geral da Autoridade Marítima","AC"]
[875791084,"Centro de Recursos e Serviços Comuns da Universidade do Porto","AC"]
[875791091,"IMOFUNDOS - Sociedade Gestora de Fundos de Investimento Imobiliário, S.A.","AC"]
[875791092,"Comando-Geral da Polícia Marítima","AC"]
[875791093,"Agrupamento de Escolas Emídio Navarro (Escola Secundária Emídio Navarro - Sede)","AC"]
[875791094,"Agrupamento de Escolas Amato Lusitano (Escola Secundária Amato Lusitano - Sede)","AC"]
[875791095,"Agrupamento de Escolas de Ponte de Lima (Escola Secundária de Ponte de Lima - Sede)","AC"]
[875791096,"Agrupamento de Escolas da Caparica (Escola Secundária Monte da Caparica - Sede)","AC"]
[875791097,"Agrupamento de Escolas de Reguengos de Monsaraz","AC"]
[875791098,"Agrupamento de Escolas D. Afonso Henriques, Ave (Escola Secundária D. Afonso Henriques - Sede)","AC"]
[875791103,"Fundação para a Computação Científica Nacional","AC"]
[875791104,"Protocolo do Estado","AC"]
[875791105,"Departamento Geral de Administração","AC"]
[875791106,"Departamento de Assuntos Jurídicos","AC"]
[875791107,"Instituto Diplomático","AC"]
[875791975,"Agência para o Desenvolvimento e Coesão, I.P.","AC"]
[875791977,"Instituto de Avaliação Educativa, I.P.","AC"]
[875791979,"Unidade Técnica de Acompanhamento e Monitorização do Setor Público Empresarial ","AC"]
[875791982,"Cofre Privativo do Tribunal de Contas - Sede","AC"]
[875791984,"Cofre Privativo do Tribunal de Contas - Secção Regional dos Açores","AC"]
[875791985,"Cofre Privativo do Tribunal de Contas - Secção Regional da Madeira","AC"]
[875791988,"Agência Nacional para a Gestão do Programa Erasmus + Educação e Formação","AC"]
[875791993,"Alto Comissariado para as Migrações, I.P.","AC"]
[875791997,"Centro de Medicina Física e de Reabilitação do Sul","AC"]
[875792002,"Agência Nacional para a Gestão do Programa Erasmus + Juventude em Ação","AC"]
[875792006,"Secretaria-Geral do Ministério do Ambiente ","AC"]
[875792012,"Conselho Coordenador dos Institutos Superiores Politécnicos","AC"]
[875792021,"Fundação Carlos Lloyd Braga","AC"]
[875792032,"Hospital das Forças Armadas","AC"]
[875792035,"Centro Operativo e de Tecnologia de Regadio","AC"]
[875792036,"Comissão para o Acompanhamento dos Auxiliares da Justiça","AC"]
[875792053,"Fundação Luso-Americana para o Desenvolvimento","AC"]
[875792060,"Autoridade de Gestão do Programa de Desenvolvimento Rural do Continente 2020","AC"]
[875792061,"Tribunal Judicial da Comarca dos Açores","AC"]
[875792062,"Tribunal Judicial da Comarca de Aveiro","AC"]
[875792063,"Tribunal Judicial da Comarca de Beja","AC"]
[875792064,"Tribunal Judicial da Comarca de Braga","AC"]
[875792065,"Tribunal Judicial da Comarca de Bragança","AC"]
[875792066,"Tribunal Judicial da Comarca de Castelo Branco","AC"]
[875792067,"Tribunal Judicial da Comarca de Coimbra","AC"]
[875792068,"Tribunal Judicial da Comarca de Évora","AC"]
[875792069,"Tribunal Judicial da Comarca de Faro","AC"]
[875792070,"Tribunal Judicial da Comarca da Guarda","AC"]
[875792071,"Tribunal Judicial da Comarca de Leiria","AC"]
[875792072,"Tribunal Judicial da Comarca de Lisboa","AC"]
[875792073,"Tribunal Judicial da Comarca de Lisboa Norte","AC"]
[875792074,"Tribunal Judicial da Comarca de Lisboa Oeste","AC"]
[875792075,"Tribunal Judicial da Comarca da Madeira","AC"]
[875792076,"Tribunal Judicial da Comarca de Portalegre","AC"]
[875792077,"Tribunal Judicial da Comarca do Porto","AC"]
[875792078,"Tribunal Judicial da Comarca de Porto Este","AC"]
[875792079,"Tribunal Judicial da Comarca de Santarém","AC"]
[875792080,"Tribunal Judicial da Comarca de Setúbal","AC"]
[875792081,"Tribunal Judicial da Comarca de Viana Castelo","AC"]
[875792082,"Tribunal Judicial da Comarca de Vila Real","AC"]
[875792083,"Tribunal Judicial da Comarca de Viseu","AC"]
[875792084,"Tribunal de Execução das Penas de Coimbra","AC"]
[875792085,"Tribunal de Execução das Penas de Évora","AC"]
[875792086,"Tribunal Central de Instrução Criminal","AC"]
[875792087,"Tribunal da Propriedade Intelectual","AC"]
[875792088,"Tribunal de Execução das Penas de Lisboa","AC"]
[875792089,"Tribunal Marítimo","AC"]
[875792090,"Tribunal de Execução das Penas do Porto","AC"]
[875792091,"Tribunal da Concorrência, Regulação e Supervisão","AC"]
[875792092,"Fundo de Apoio Municipal","AC"]
[875792094,"Estrutura de Missão Portugal Inovação Social","AC"]
[875792095,"Direção-Geral de Recursos da Defesa Nacional","AC"]
[875792097,"Instituição Financeira de Desenvolvimento, S.A.","AC"]
[875792100,"Autoridade de Gestão do Programa Operacional Temático Competitividade e Internacionalização","AC"]
[875792868,"Autoridade de Gestão do Programa Operacional Temático Capital Humano","AC"]
[875792876,"Autoridade de Gestão do Programa Operacional de Assistência Técnica","AC"]
[875792877,"Autoridade de Gestão do Programa Operacional Temático Sustentabilidade e Eficiência no Uso de Recursos","AC"]
[875792878,"Autoridade de Gestão do Programa Operacional Inclusão Social e Emprego","AC"]
[875792879,"Autoridade de Gestão do Programa Operacional Mar 2020","AC"]
[875792880,"Estrutura de Missão de Apoio ao Curador do Beneficiário dos Fundos Estruturais e de Investimento","AC"]
[875792881,"Estrutura de Missão para a Igualdade de Género","AC"]
[875792882,"Instituto de Gestão Financeira da Educação, I.P.","AC"]
[875792895,"Águas do Vale do Tejo, S.A.","AC"]
[875792896,"Águas do Norte, S.A.","AC"]
[875792897,"Águas do Centro Litoral, S.A.","AC"]
[875792907,"MOVIJOVEM - Mobilidade Juvenil - C.I.P.R.L.","AC"]
[875792910,"Taguspark - Sociedade de Promoção e Desenvolvimento do Parque de Ciência e Tecnologia da Área de Lisboa, S.A.","AC"]
[875792912,"Entidade Fiscalizadora do Segredo de Estado","AC"]
[875792914,"Estrutura de Gestão do IFRRU 2020","AC"]
[875792925,"Autoridade da Mobilidade e dos Transportes","AC"]
[875792945,"Gabinete do Secretário de Estado Adjunto e da Administração Interna","AC"]
[875792951,"LOCARENT - Companhia Portuguesa de Aluguer de Viaturas, S.A.","AC"]
[875792960,"Gabinete do Secretário de Estado Adjunto e da Justiça","AC"]
[875792961,"Gabinete da Secretária de Estado da Inclusão de Pessoas com Deficiência","AC"]
[875792962,"Instituto Universitário Militar","AC"]
[875792963,"Gabinete do Secretário de Estado da Internacionalização ","AC"]
[875792975,"Gabinete da Ministra da Cultura","AC"]
[875792978,"Gabinete do Ministro do Mar","AC"]
[875792981,"Gabinete do Ministro da Educação ","AC"]
[875792983,"Gabinete da Secretária de Estado da Educação","AC"]
[875792984,"Gabinete do Secretário de Estado da Juventude e do Desporto","AC"]
[875792985,"Gabinete do Ministro da Ciência, Tecnologia e Ensino Superior","AC"]
[875792986,"Gabinete do Secretário de Estado da Ciência, Tecnologia e Ensino Superior","AC"]
[875792989,"Gabinete do Secretário de Estado da Presidência do Conselho de Ministros","AC"]
[875792994,"Gabinete da Secretária de Estado para a Cidadania e a Igualdade","AC"]
[875792998,"Gabinete do Secretário de Estado das Pescas","AC"]
[875793000,"Gabinete do Secretário de Estado das Infraestruturas","AC"]
[875793015,"Estrutura de Missão para a Promoção do Sucesso Escolar","AC"]
[875793017,"Gabinete Coordenador da Rede de Bibliotecas Escolares ","AC"]
[875793018,"Plano Nacional de Leitura ","AC"]
[875793019,"Comissão Nacional de Promoção dos Direitos e Proteção das Crianças e Jovens","AC"]
[875793020,"Fundo Ambiental ","AC"]
[875793021,"Escola Superior de Media Artes e Design do Porto","AC"]
[875793022,"Escola Superior de Hotelaria e Turismo do Porto","AC"]
[875793026,"Comissão Interministerial de Coordenação da Água","AC"]
[875793027,"Banif - Imobiliária, S.A.","AC"]
[875793028,"W.I.L. - Projectos Turísticos, S.A.","AC"]
[875793029,"Oitante, S.A.","AC"]
[875793039,"PROFILE - Sociedade Gestora de Fundos de Investimento Mobiliário, S.A.","AC"]
[875793040,"Banif - Banco Internacional do Funchal, S.A. - Em liquidação","AC"]
[875793041,"Instituto de Proteção e Assistência na Doença, I.P.","AC"]
[875793046,"Fundação do Desporto","AC"]
[875793051,"AveiroPolis - Sociedade para o Desenvolvimento do Programa Polis em Aveiro, S.A. - Em liquidação","AC"]
[875793053,"Estrutura de Missão para as Comemorações do V Centenário da Circum-Navegação comandada pelo navegador português Fernão de Magalhães (2019-2022)","AC"]
[875793054,"Águas do Douro e Paiva, S.A.","AC"]
[875793055,"SIMDOURO - Saneamento do Grande Porto, S.A.","AC"]
[875793056,"Gabinete do Secretário de Estado Adjunto e das Finanças","AC"]
[875793057,"Gabinete do Secretário de Estado do Tesouro","AC"]
[875793111,"Unidade de Implementação da Lei de Enquadramento Orçamental","AC"]
[875793113,"Faculdade de Ciências Sociais e Humanas da Universidade NOVA de Lisboa - NOVA School of Social Sciences and Humanities","AC"]
[875793114,"Serviços de Ação Social da Universidade Nova de Lisboa","AC"]
[875793115,"Faculdade de Ciências e Tecnologia da Universidade Nova de Lisboa -  NOVA School of Science and Technology","AC"]
[875793116,"Faculdade de Direito da Universidade Nova de Lisboa - NOVA School of Law","AC"]
[875793117,"Faculdade de Ciências Médicas da Universidade Nova de Lisboa - NOVA Medical School","AC"]
[875793118,"Escola Nacional de Saúde Pública da Universidade Nova de Lisboa - NOVA National School of Public Health","AC"]
[875793119,"Faculdade de Economia da Universidade Nova de Lisboa - Nova School of Business and Economics","AC"]
[875793120,"Instituto de Higiene e Medicina Tropical da Universidade Nova de Lisboa - NOVA Institute of Hygiene and Tropical Medicine","AC"]
[875793121,"Instituto Superior de Estatística e Gestão de Informação da Universidade Nova de Lisboa - Nova Information Management School","AC"]
[875793122,"Instituto de Tecnologia Química e Biológica António Xavier - ITQB NOVA - Institute of Chemical and Biological Technology António Xavier","AC"]
[875793140,"Águas do Tejo Atlântico, S.A.","AC"]
[875793141,"SIMARSUL - Saneamento da Península de Setúbal, S.A.","AC"]
[875793150,"Serviços de Ação Social da Universidade do Minho","AC"]
[875793151,"Gabinete de Prevenção e Investigação de Acidentes com Aeronaves e de Acidentes Ferroviários","AC"]
[875793158,"ESEGUR - Empresa de Trabalho Temporário, Lda.","AC"]
[875793159,"ESEGUR - Soluções Backoffice, S.A.","AC"]
[875793160,"ESEGUR - Empresa de Segurança, S.A.","AC"]
[875793167,"Estrutura de Missão Portugal In","AC"]
[875793178,"MOBI.E, S.A.","AC"]
[875793242,"Gabinete da Secretária de Estado da Habitação","AC"]
[875793246,"LISPOLIS - Associação para o Pólo Tecnológico de Lisboa","AC"]
[875793266,"Floresta Atlântica - Sociedade Gestora de Fundos de Investimento Imobiliário, S.A.","AC"]
[875793268,"Associação das Universidades Portuguesas","AC"]
[875793274,"Centro Nacional de Cibersegurança","AC"]
[875793280,"Agência para a Gestão Integrada de Fogos Rurais, I.P.","AC"]
[875793281,"Centro de Competências Jurídicas do Estado","AC"]
[875793288,"Estrutura de Missão para a Sustentabilidade do Programa Orçamental da Saúde ","AC"]
[875793299,"Observatório do Turismo dos Açores","AC"]
[875793312,"SAS Apostas Sociais, Jogos e Apostas Online, S.A.","AC"]
[875793326,"Instituto de Ciências Nucleares Aplicadas à Saúde ","AC"]
[875793327,"Estrutura de Missão para o Projeto Meridiano","AC"]
[875793338,"Centro Hospitalar do Oeste, E.P.E.","AC"]
[875793341,"Comissão Independente para a Descentralização","AC"]
[875793342,"Observatório Técnico Independente para Análise, Acompanhamento e Avaliação dos Incêndios Florestais e Rurais","AC"]
[875793347,"Serviços de Ação Social do Instituto Politécnico do Cávado e do Ave","AC"]
[875793353,"Conselho Superior de Obras Públicas","AC"]
[875793356,"UNINOVA - Instituto de Desenvolvimento de Novas Tecnologias","AC"]
[875793362,"Conservatório de Música de Loulé - Francisco Rosado","AC"]
[875793364,"Autoridade para a Prevenção e o Combate à Violência no Desporto","AC"]
[875793366,"Equipa de instalação do Arquivo Nacional do Som","AC"]
[875793368,"Gabinete do Secretário de Estado Adjunto e das Comunicações","AC"]
[875793369,"Gabinete do Ministro do Planeamento","AC"]
[875793370,"Gabinete do Ministro das Infraestruturas e da Habitação","AC"]
[875793371,"Estrutura de Missão para a Presidência Portuguesa do Conselho da União Europeia em 2021","AC"]
[875793372,"Grupo de Projeto para os «Museus no Futuro»","AC"]
[875793373,"Grupo de Projeto do Programa Internacional para a Avaliação das Competências dos Adultos","AC"]
[875793374,"Unidade de Execução para o Programa Nacional de Regadios","AC"]
[875793380,"TDC - The Discoveries Centre For Regenerative And Precision Medicine - Associação","AC"]
[875793386,"Z.E.A. - Sociedade Agrícola, Unipessoal Lda.","AC"]
[875793392,"Agência Espacial Portuguesa - Portugal Space","AC"]
[875793393,"Portugal Film Commission","AC"]
[875793396,"Águas do Alto Minho, S.A.","AC"]
[875793398,"Hospital de Braga, E.P.E.","AC"]
[875793402,"Escola Nacional de Bombeiros","AC"]
[875793412,"Gabinete da Secretária de Estado da Administração Interna","AC"]
[875793413,"Gabinete da Ministra da Agricultura","AC"]
[875793414,"Gabinete do Secretário de Estado da Agricultura e do Desenvolvimento Rural","AC"]
[875793415,"Gabinete da Ministra da Coesão Territorial","AC"]
[875793416,"Gabinete do Secretário de Estado Adjunto e do Desenvolvimento Regional","AC"]
[875793417,"Gabinete da Secretária de Estado da Valorização do Interior","AC"]
[875793418,"Gabinete da Secretária de Estado Adjunta e do Património Cultural","AC"]
[875793419,"Gabinete do Secretário de Estado do Cinema, Audiovisual e Media","AC"]
[875793420,"Gabinete do Secretário de Estado Adjunto e da Defesa Nacional","AC"]
[875793421,"Gabinete da Secretária de Estado de Recursos Humanos e Antigos Combatentes","AC"]
[875793422,"Gabinete do Ministro de Estado, da Economia e da Transição Digital","AC"]
[875793423,"Gabinete do Secretário de Estado Adjunto e da Economia","AC"]
[875793424,"Gabinete do Secretário de Estado do Comércio, Serviços e Defesa do Consumidor","AC"]
[875793425,"Gabinete do Secretário de Estado para a Transição Digital","AC"]
[875793426,"Gabinete do Secretário de Estado Adjunto e da Educação","AC"]
[875793427,"Gabinete da Secretária de Estado da Inovação e da Modernização Administrativa","AC"]
[875793428,"Gabinete do Secretário de Estado da Administração Pública","AC"]
[875793429,"Gabinete do Secretário de Estado da Descentralização e da Administração Local","AC"]
[875793430,"Gabinete da Ministra da Modernização do Estado e da Administração Pública","AC"]
[875793431,"Gabinete do Secretário de Estado Adjunto e da Energia","AC"]
[875793432,"Gabinete do Ministro do Ambiente e da Ação Climática","AC"]
[875793433,"Gabinete do Secretário de Estado da Conservação da Natureza, das Florestas e do Ordenamento do Território","AC"]
[875793434,"Gabinete do Secretário de Estado da Mobilidade","AC"]
[875793435,"Gabinete do Secretário de Estado do Planeamento","AC"]
[875793436,"Gabinete do Secretário de Estado Adjunto, do Trabalho e da Formação Profissional","AC"]
[875793437,"Gabinete da Secretária de Estado da Ação Social","AC"]
[875793438,"Gabinete da Ministra de Estado e da Presidência","AC"]
[875793439,"Gabinete do Secretário de Estado dos Assuntos Parlamentares","AC"]
[875793440,"Gabinete do Secretário de Estado Adjunto do Primeiro-Ministro","AC"]
[875793441,"Gabinete da Secretária de Estado para a Integração e as Migrações","AC"]
[875793442,"Gabinete do Ministro de Estado e das Finanças","AC"]
[875793443,"Gabinete do Ministro de Estado e dos Negócios Estrangeiros","AC"]
[875793450,"Estrutura de Missão para Promoção das Acessibilidades","AC"]

{"sheet":"Carreiras VEP","index":9,"n_rows":635,"n_cols":26,"rows_kept":635,"cut":false,"hidden":false,"merged":[[0,5,0,6]]}
["Código Carreira VEP","Designação da Carreira","Código da Categoria","Designação da Categoria",null,"Preenchimento da Posição, Escalão/Índice por Tipo de Carreira VEP",null,null,null,null,null,null,null,null,null,null,null,null,null,null,null,null,null,null,"CodCarrUnico","CodCarr&CodCat"]
[1001,"Dirigente superior de 1º grau",101,"Não aplicável",null,"Tipologia das Carreiras","Preenchimentos dos campos Posição, Escalão/Índice",null,null,null,null,null,null,null,null,null,null,null,null,null,null,null,null,null,1001,{"$f":"A2&C2","v":"1001101"}]
[1002,"Dirigente superior de 2º grau",101,"Não aplicável",null,"Cargos","Não obrigatório",null,null,null,null,null,null,null,null,null,null,null,null,null,null,null,null,null,1002,{"$f":"A3&C3","v":"1002101"}]
[1003,"Dirigente intermédio de 1º grau",101,"Não aplicável",null,"Carreiras gerais","Preencher apenas a Posição",null,null,null,null,null,null,null,null,null,null,null,null,null,null,null,null,null,1003,"1003101"]
[1004,"Dirigente intermédio de 2º grau",101,"Não aplicável",null,"Carreiras especiais (revistas)","Preencher apenas a Posição ou os campos Escalão e Índice",null,null,null,null,null,null,null,null,null,null,null,null,null,null,null,null,null,1004,"1004101"]
[1005,"Dirigente intermédio de 3º grau e seguintes",101,"Não aplicável",null,"Carreiras não revistas","Preencher apenas os campos Escalão e Índice",null,null,null,null,null,null,null,null,null,null,null,null,null,null,null,null,null,1005,"1005101"]
[1006,"2.º Comandante Operacional Distrital",101,"Não aplicável",null,"Carreiras subsistentes","Preencher apenas os campos Escalão e Índice",null,null,null,null,null,null,null,null,null,null,null,null,null,null,null,null,null,1006,"1006101"]
[1007,"2.º Comandante Operacional Nacional",101,"Não aplicável",null,"Outros","Não obrigatório",null,null,null,null,null,null,null,null,null,null,null,null,null,null,null,null,null,1007,"1007101"]
[1008,"Adjunto",101,"Não aplicável",null,null,null,null,null,null,null,null,null,null,null,null,null,null,null,null,null,null,null,null,1008,"1008101"]
[1009,"Adjunto do diretor ",101,"Não aplicável",null,null,null,null,null,null,null,null,null,null,null,null,null,null,null,null,null,null,null,null,1009,"1009101"]
[1010,"Adjunto do diretor de estabelecimento prisional",101,"Não aplicável",null,null,null,null,null,null,null,null,null,null,null,null,null,null,null,null,null,null,null,null,1010,"1010101"]
[1011,"Adjunto do Secretário-Geral",101,"Não aplicável",null,null,null,null,null,null,null,null,null,null,null,null,null,null,null,null,null,null,null,null,1011,"1011101"]
[1012,"Administrador",101,"Não aplicável",null,null,null,null,null,null,null,null,null,null,null,null,null,null,null,null,null,null,null,null,1012,"1012101"]
[1013,"Administrador Executivo",101,"Não aplicável",null,null,null,null,null,null,null,null,null,null,null,null,null,null,null,null,null,null,null,null,1013,"1013101"]
[1014,"Administrador Não Executivo ",101,"Não aplicável",null,null,null,null,null,null,null,null,null,null,null,null,null,null,null,null,null,null,null,null,1014,"1014101"]
[1015,"Administrador-Delegado",101,"Não aplicável",null,null,null,null,null,null,null,null,null,null,null,null,null,null,null,null,null,null,null,null,1015,"1015101"]
[1016,"Alto Comissário",101,"Não aplicável",null,null,null,null,null,null,null,null,null,null,null,null,null,null,null,null,null,null,null,null,1016,"1016101"]
[1017,"Auditor jurídico",101,"Não aplicável",null,null,null,null,null,null,null,null,null,null,null,null,null,null,null,null,null,null,null,null,1017,"1017101"]
[1018,"Chefe de Delegação",101,"Não aplicável",null,null,null,null,null,null,null,null,null,null,null,null,null,null,null,null,null,null,null,null,1018,"1018101"]
[1019,"Chefe de Equipa Multidisciplinar",101,"Não aplicável",null,null,null,null,null,null,null,null,null,null,null,null,null,null,null,null,null,null,null,null,1019,"1019101"]
[1020,"Chefe de Gabinete",101,"Não aplicável",null,null,null,null,null,null,null,null,null,null,null,null,null,null,null,null,null,null,null,null,1020,"1020101"]
[1021,"Chefe do Estado-Maior do Exército",101,"Não aplicável",null,null,null,null,null,null,null,null,null,null,null,null,null,null,null,null,null,null,null,null,1021,"1021101"]
[1022,"Chefe do Estado-Maior da Armada ",101,"Não aplicável",null,null,null,null,null,null,null,null,null,null,null,null,null,null,null,null,null,null,null,null,1022,"1022101"]
[1023,"Chefe do Estado-Maior da Força Aérea",101,"Não aplicável",null,null,null,null,null,null,null,null,null,null,null,null,null,null,null,null,null,null,null,null,1023,"1023101"]
[1024,"Chefe do Estado-Maior-General das Forças Armadas",101,"Não aplicável",null,null,null,null,null,null,null,null,null,null,null,null,null,null,null,null,null,null,null,null,1024,"1024101"]
[1025,"Chefe do Protocolo do Estado",101,"Não aplicável",null,null,null,null,null,null,null,null,null,null,null,null,null,null,null,null,null,null,null,null,1025,"1025101"]
[1026,"Comandante",101,"Não aplicável",null,null,null,null,null,null,null,null,null,null,null,null,null,null,null,null,null,null,null,null,1026,"1026101"]
[1027,"Comandante Operacional Distrital",101,"Não aplicável",null,null,null,null,null,null,null,null,null,null,null,null,null,null,null,null,null,null,null,null,1027,"1027101"]
[1028,"Comandante Operacional Nacional",101,"Não aplicável",null,null,null,null,null,null,null,null,null,null,null,null,null,null,null,null,null,null,null,null,1028,"1028101"]
[1029,"Comandante-Geral",101,"Não aplicável",null,null,null,null,null,null,null,null,null,null,null,null,null,null,null,null,null,null,null,null,1029,"1029101"]
[1030,"Coordenador",101,"Não aplicável",null,null,null,null,null,null,null,null,null,null,null,null,null,null,null,null,null,null,null,null,1030,"1030101"]
[1031,"Coordenador de estabelecimento",101,"Não aplicável",null,null,null,null,null,null,null,null,null,null,null,null,null,null,null,null,null,null,null,null,1031,"1031101"]
[1032,"Coordenador Nacional",101,"Não aplicável",null,null,null,null,null,null,null,null,null,null,null,null,null,null,null,null,null,null,null,null,1032,"1032101"]
[1033,"Coordenador-adjunto",101,"Não aplicável",null,null,null,null,null,null,null,null,null,null,null,null,null,null,null,null,null,null,null,null,1033,"1033101"]
[1034,"Curador ",101,"Não aplicável",null,null,null,null,null,null,null,null,null,null,null,null,null,null,null,null,null,null,null,null,1034,"1034101"]
[1035,"Delegado",101,"Não aplicável",null,null,null,null,null,null,null,null,null,null,null,null,null,null,null,null,null,null,null,null,1035,"1035101"]
[1036,"Delegado escolar",101,"Não aplicável",null,null,null,null,null,null,null,null,null,null,null,null,null,null,null,null,null,null,null,null,1036,"1036101"]
[1037,"Delegado Regional de Educação",101,"Não aplicável",null,null,null,null,null,null,null,null,null,null,null,null,null,null,null,null,null,null,null,null,1037,"1037101"]
[1038,"Diretor",101,"Não aplicável",null,null,null,null,null,null,null,null,null,null,null,null,null,null,null,null,null,null,null,null,1038,"1038101"]
[1039,"Diretor de Alfândega",101,"Não aplicável",null,null,null,null,null,null,null,null,null,null,null,null,null,null,null,null,null,null,null,null,1039,"1039101"]
[1040,"Diretor de Alfândega Adjunto",101,"Não aplicável",null,null,null,null,null,null,null,null,null,null,null,null,null,null,null,null,null,null,null,null,1040,"1040101"]
[1041,"Diretor de Departamento",101,"Não aplicável",null,null,null,null,null,null,null,null,null,null,null,null,null,null,null,null,null,null,null,null,1041,"1041101"]
[1042,"Diretor de estabelecimento prisional",101,"Não aplicável",null,null,null,null,null,null,null,null,null,null,null,null,null,null,null,null,null,null,null,null,1042,"1042101"]
[1043,"Diretor de Finanças",101,"Não aplicável",null,null,null,null,null,null,null,null,null,null,null,null,null,null,null,null,null,null,null,null,1043,"1043101"]
[1044,"Diretor de Finanças adjunto",101,"Não aplicável",null,null,null,null,null,null,null,null,null,null,null,null,null,null,null,null,null,null,null,null,1044,"1044101"]
[1045,"Diretor de Finanças de Lisboa",101,"Não aplicável",null,null,null,null,null,null,null,null,null,null,null,null,null,null,null,null,null,null,null,null,1045,"1045101"]
[1046,"Diretor de Finanças do Porto",101,"Não aplicável",null,null,null,null,null,null,null,null,null,null,null,null,null,null,null,null,null,null,null,null,1046,"1046101"]
[1047,"Diretor Nacional",101,"Não aplicável",null,null,null,null,null,null,null,null,null,null,null,null,null,null,null,null,null,null,null,null,1047,"1047101"]
[1048,"Diretor Nacional Adjunto ",101,"Não aplicável",null,null,null,null,null,null,null,null,null,null,null,null,null,null,null,null,null,null,null,null,1048,"1048101"]
[1049,"Diretor Pedagógico",101,"Não aplicável",null,null,null,null,null,null,null,null,null,null,null,null,null,null,null,null,null,null,null,null,1049,"1049101"]
[1050,"Diretor Regional",101,"Não aplicável",null,null,null,null,null,null,null,null,null,null,null,null,null,null,null,null,null,null,null,null,1050,"1050101"]
[1051,"Diretor Regional Adjunto",101,"Não aplicável",null,null,null,null,null,null,null,null,null,null,null,null,null,null,null,null,null,null,null,null,1051,"1051101"]
[1052,"Diretor Técnico",101,"Não aplicável",null,null,null,null,null,null,null,null,null,null,null,null,null,null,null,null,null,null,null,null,1052,"1052101"]
[1053,"Diretor-Adjunto",101,"Não aplicável",null,null,null,null,null,null,null,null,null,null,null,null,null,null,null,null,null,null,null,null,1053,"1053101"]
[1054,"Diretor-Delegado",101,"Não aplicável",null,null,null,null,null,null,null,null,null,null,null,null,null,null,null,null,null,null,null,null,1054,"1054101"]
[1055,"Diretor-Executivo",101,"Não aplicável",null,null,null,null,null,null,null,null,null,null,null,null,null,null,null,null,null,null,null,null,1055,"1055101"]
[1056,"Encarregado de Missão",101,"Não aplicável",null,null,null,null,null,null,null,null,null,null,null,null,null,null,null,null,null,null,null,null,1056,"1056101"]
[1057,"Gerente ",101,"Não aplicável",null,null,null,null,null,null,null,null,null,null,null,null,null,null,null,null,null,null,null,null,1057,"1057101"]
[1058,"Gestor",101,"Não aplicável",null,null,null,null,null,null,null,null,null,null,null,null,null,null,null,null,null,null,null,null,1058,"1058101"]
[1059,"Governador",101,"Não aplicável",null,null,null,null,null,null,null,null,null,null,null,null,null,null,null,null,null,null,null,null,1059,"1059101"]
[1060,"Inspetor Regional",101,"Não aplicável",null,null,null,null,null,null,null,null,null,null,null,null,null,null,null,null,null,null,null,null,1060,"1060101"]
[1061,"Inspetor-Geral",101,"Não aplicável",null,null,null,null,null,null,null,null,null,null,null,null,null,null,null,null,null,null,null,null,1061,"1061101"]
[1062,"Juíz Presidente",101,"Não aplicável",null,null,null,null,null,null,null,null,null,null,null,null,null,null,null,null,null,null,null,null,1062,"1062101"]
[1063,"Liquidatário",101,"Não aplicável",null,null,null,null,null,null,null,null,null,null,null,null,null,null,null,null,null,null,null,null,1063,"1063101"]
[1064,"Presidente",101,"Não aplicável",null,null,null,null,null,null,null,null,null,null,null,null,null,null,null,null,null,null,null,null,1064,"1064101"]
[1065,"Presidente da Mesa",101,"Não aplicável",null,null,null,null,null,null,null,null,null,null,null,null,null,null,null,null,null,null,null,null,1065,"1065101"]
[1066,"Presidente Executivo",101,"Não aplicável",null,null,null,null,null,null,null,null,null,null,null,null,null,null,null,null,null,null,null,null,1066,{"$f":"A67&C67","v":"1066101"}]
[1067,"Presidente Não Executivo",101,"Não aplicável",null,null,null,null,null,null,null,null,null,null,null,null,null,null,null,null,null,null,null,null,1067,"1067101"]
[1068,"Procurador-Geral da República",101,"Não aplicável",null,null,null,null,null,null,null,null,null,null,null,null,null,null,null,null,null,null,null,null,1068,"1068101"]
[1069,"Provedor",101,"Não aplicável",null,null,null,null,null,null,null,null,null,null,null,null,null,null,null,null,null,null,null,null,1069,"1069101"]
[1070,"Provedor de Justiça",101,"Não aplicável",null,null,null,null,null,null,null,null,null,null,null,null,null,null,null,null,null,null,null,null,1070,"1070101"]
[1071,"Reitor",101,"Não aplicável",null,null,null,null,null,null,null,null,null,null,null,null,null,null,null,null,null,null,null,null,1071,"1071101"]
[1072,"Responsável",101,"Não aplicável",null,null,null,null,null,null,null,null,null,null,null,null,null,null,null,null,null,null,null,null,1072,"1072101"]
[1073,"Secretário",101,"Não aplicável",null,null,null,null,null,null,null,null,null,null,null,null,null,null,null,null,null,null,null,null,1073,"1073101"]
[1074,"Fiscal Único",101,"Não aplicável",null,null,null,null,null,null,null,null,null,null,null,null,null,null,null,null,null,null,null,null,1074,"1074101"]
[1075,"Secretário-Geral",101,"Não aplicável",null,null,null,null,null,null,null,null,null,null,null,null,null,null,null,null,null,null,null,null,1075,"1075101"]
[1076,"Secretário-Geral Adjunto",101,"Não aplicável",null,null,null,null,null,null,null,null,null,null,null,null,null,null,null,null,null,null,null,null,1076,"1076101"]
[1077,"Subchefe do Protocolo do Estado",101,"Não aplicável",null,null,null,null,null,null,null,null,null,null,null,null,null,null,null,null,null,null,null,null,1077,"1077101"]
[1078,"Subcoordenador",101,"Não aplicável",null,null,null,null,null,null,null,null,null,null,null,null,null,null,null,null,null,null,null,null,1078,"1078101"]
[1079,"Subdelegado",101,"Não aplicável",null,null,null,null,null,null,null,null,null,null,null,null,null,null,null,null,null,null,null,null,1079,"1079101"]
[1080,"Subdiretor",101,"Não aplicável",null,null,null,null,null,null,null,null,null,null,null,null,null,null,null,null,null,null,null,null,1080,"1080101"]
[1081,"Subdiretor Adjunto",101,"Não aplicável",null,null,null,null,null,null,null,null,null,null,null,null,null,null,null,null,null,null,null,null,1081,"1081101"]
[1082,"Subdiretor Regional",101,"Não aplicável",null,null,null,null,null,null,null,null,null,null,null,null,null,null,null,null,null,null,null,null,1082,"1082101"]
[1083,"Subinspector-Geral",101,"Não aplicável",null,null,null,null,null,null,null,null,null,null,null,null,null,null,null,null,null,null,null,null,1083,"1083101"]
[1084,"Superintendente",101,"Não aplicável",null,null,null,null,null,null,null,null,null,null,null,null,null,null,null,null,null,null,null,null,1084,"1084101"]
[1085,"Vice-Chefe do Estado-Maior da Armada",101,"Não aplicável",null,null,null,null,null,null,null,null,null,null,null,null,null,null,null,null,null,null,null,null,1085,"1085101"]
[1086,"Vice-Chefe do Estado-Maior da Força Aérea",101,"Não aplicável",null,null,null,null,null,null,null,null,null,null,null,null,null,null,null,null,null,null,null,null,1086,"1086101"]
[1087,"Vice-Governador ",101,"Não aplicável",null,null,null,null,null,null,null,null,null,null,null,null,null,null,null,null,null,null,null,null,1087,"1087101"]
[1088,"Vice-Presidente",101,"Não aplicável",null,null,null,null,null,null,null,null,null,null,null,null,null,null,null,null,null,null,null,null,1088,"1088101"]
[1089,"Vice-Provedor",101,"Não aplicável",null,null,null,null,null,null,null,null,null,null,null,null,null,null,null,null,null,null,null,null,1089,"1089101"]
[1090,"Vice-Reitor ",101,"Não aplicável",null,null,null,null,null,null,null,null,null,null,null,null,null,null,null,null,null,null,null,null,1090,"1090101"]
[1091,"Vogal ",101,"Não aplicável",null,null,null,null,null,null,null,null,null,null,null,null,null,null,null,null,null,null,null,null,1091,"1091101"]
[1092,"Vogal Executivo",101,"Não aplicável",null,null,null,null,null,null,null,null,null,null,null,null,null,null,null,null,null,null,null,null,1092,"1092101"]
[1093,"Vogal não Executivo",101,"Não aplicável",null,null,null,null,null,null,null,null,null,null,null,null,null,null,null,null,null,null,null,null,1093,"1093101"]
[1094,"Vogal Permanente",101,"Não aplicável",null,null,null,null,null,null,null,null,null,null,null,null,null,null,null,null,null,null,null,null,1094,"1094101"]
[1095,"Vice-Presidente da Assembleia da República",101,"Não aplicável",null,null,null,null,null,null,null,null,null,null,null,null,null,null,null,null,null,null,null,null,1095,"1095101"]
[1096,"Presidente da Assembleia da República",101,"Não aplicável",null,null,null,null,null,null,null,null,null,null,null,null,null,null,null,null,null,null,null,null,1096,"1096101"]
[1097,"Secretário-Geral da Assembleia da República",101,"Não aplicável",null,null,null,null,null,null,null,null,null,null,null,null,null,null,null,null,null,null,null,null,1097,"1097101"]
[1098,"Consultor (JurisAPP)",101,"Não aplicável",null,null,null,null,null,null,null,null,null,null,null,null,null,null,null,null,null,null,null,null,1098,"1098101"]
[1099,"Conselheiro técnico principal",101,"Não aplicável",null,null,null,null,null,null,null,null,null,null,null,null,null,null,null,null,null,null,null,null,1099,"1099101"]
[1100,"Conselheiro técnico",101,"Não aplicável",null,null,null,null,null,null,null,null,null,null,null,null,null,null,null,null,null,null,null,null,1100,"1100101"]
[1101,"Adido técnico principal",101,"Não aplicável",null,null,null,null,null,null,null,null,null,null,null,null,null,null,null,null,null,null,null,null,1101,"1101101"]
[1102,"Tradutor/intérprete",101,"Não aplicável",null,null,null,null,null,null,null,null,null,null,null,null,null,null,null,null,null,null,null,null,1102,"1102101"]
[1103,"Consultor (UTAP)",101,"Não aplicável",null,null,null,null,null,null,null,null,null,null,null,null,null,null,null,null,null,null,null,null,1103,"1103101"]
[1104,"Consultor (UTAM)",101,"Não aplicável",null,null,null,null,null,null,null,null,null,null,null,null,null,null,null,null,null,null,null,null,1104,"1104101"]
[1105,"Inspetor-Geral de Finanças",101,"Não aplicável",null,null,null,null,null,null,null,null,null,null,null,null,null,null,null,null,null,null,null,null,1105,"1105101"]
[1106,"Subinspetor-Geral de Finanças",101,"Não aplicável",null,null,null,null,null,null,null,null,null,null,null,null,null,null,null,null,null,null,null,null,1106,"1106101"]
[1107,"Inspetor de Finanças Diretor",101,"Não aplicável",null,null,null,null,null,null,null,null,null,null,null,null,null,null,null,null,null,null,null,null,1107,"1107101"]
[1108,"Inspetor de Finanças Chefe",101,"Não aplicável",null,null,null,null,null,null,null,null,null,null,null,null,null,null,null,null,null,null,null,null,1108,"1108101"]
[1109,"Chefe de serviço de finanças de nível I",101,"Não aplicável",null,null,null,null,null,null,null,null,null,null,null,null,null,null,null,null,null,null,null,null,1109,"1109101"]
[1110,"Chefe de serviço de finanças de nível II",101,"Não aplicável",null,null,null,null,null,null,null,null,null,null,null,null,null,null,null,null,null,null,null,null,1110,"1110101"]
[1111,"Chefe de serviço de finanças adjunto de nível I",101,"Não aplicável",null,null,null,null,null,null,null,null,null,null,null,null,null,null,null,null,null,null,null,null,1111,"1111101"]
[1112,"Chefe de serviço de finanças adjunto de nível II",101,"Não aplicável",null,null,null,null,null,null,null,null,null,null,null,null,null,null,null,null,null,null,null,null,1112,"1112101"]
[1113,"Chefe de delegação aduaneira de nível I",101,"Não aplicável",null,null,null,null,null,null,null,null,null,null,null,null,null,null,null,null,null,null,null,null,1113,"1113101"]
[1114,"Chefe de delegação aduaneira de nível II",101,"Não aplicável",null,null,null,null,null,null,null,null,null,null,null,null,null,null,null,null,null,null,null,null,1114,"1114101"]
[2001,"Assistente operacional",101,"Encarregado geral operacional",null,null,null,null,null,null,null,null,null,null,null,null,null,null,null,null,null,null,null,null,2001,"2001101"]
[2001,"Assistente operacional",102,"Encarregado operacional",null,null,null,null,null,null,null,null,null,null,null,null,null,null,null,null,null,null,null,null,2002,"2001102"]
[2001,"Assistente operacional",103,"Assistente operacional",null,null,null,null,null,null,null,null,null,null,null,null,null,null,null,null,null,null,null,null,2003,"2001103"]
[2002,"Assistente técnico",101,"Coordenador técnico",null,null,null,null,null,null,null,null,null,null,null,null,null,null,null,null,null,null,null,null,3101,"2002101"]
[2002,"Assistente técnico",102,"Assistente técnico",null,null,null,null,null,null,null,null,null,null,null,null,null,null,null,null,null,null,null,null,3102,"2002102"]
[2003,"Técnico Superior",101,"Técnico Superior",null,null,null,null,null,null,null,null,null,null,null,null,null,null,null,null,null,null,null,null,3103,"2003101"]
[3101,"Médica",101,"Assistente graduado sénior",null,null,null,null,null,null,null,null,null,null,null,null,null,null,null,null,null,null,null,null,3104,"3101101"]
[3101,"Médica",102,"Assistente graduado",null,null,null,null,null,null,null,null,null,null,null,null,null,null,null,null,null,null,null,null,3105,"3101102"]
[3101,"Médica",103,"Assistente",null,null,null,null,null,null,null,null,null,null,null,null,null,null,null,null,null,null,null,null,3106,"3101103"]
[3101,"Médica",104,"Interno",null,null,null,null,null,null,null,null,null,null,null,null,null,null,null,null,null,null,null,null,3107,"3101104"]
[3102,"Enfermagem",101,"Enfermeiro gestor",null,null,null,null,null,null,null,null,null,null,null,null,null,null,null,null,null,null,null,null,3108,"3102101"]
[3102,"Enfermagem",102,"Enfermeiro especialista",null,null,null,null,null,null,null,null,null,null,null,null,null,null,null,null,null,null,null,null,3109,"3102102"]
[3102,"Enfermagem",103,"Enfermeiro",null,null,null,null,null,null,null,null,null,null,null,null,null,null,null,null,null,null,null,null,3110,"3102103"]
[3103,"Técnico de Emergência Pré-hospitalar ",101,"Coordenador geral",null,null,null,null,null,null,null,null,null,null,null,null,null,null,null,null,null,null,null,null,3111,"3103101"]
[3103,"Técnico de Emergência Pré-hospitalar ",102,"Coordenador operacional",null,null,null,null,null,null,null,null,null,null,null,null,null,null,null,null,null,null,null,null,3112,"3103102"]
[3103,"Técnico de Emergência Pré-hospitalar ",103,"Técnico de Emergência Pré-hospitalar",null,null,null,null,null,null,null,null,null,null,null,null,null,null,null,null,null,null,null,null,3113,{"$f":"A131&C131","v":"3103103"}]
[3104,"Farmacêutica",101,"Farmacêutico assessor sénior",null,null,null,null,null,null,null,null,null,null,null,null,null,null,null,null,null,null,null,null,3114,"3104101"]
[3104,"Farmacêutica",102,"Farmacêutico assessor",null,null,null,null,null,null,null,null,null,null,null,null,null,null,null,null,null,null,null,null,3115,"3104102"]
[3104,"Farmacêutica",103,"Farmacêutico assistente",null,null,null,null,null,null,null,null,null,null,null,null,null,null,null,null,null,null,null,null,3116,"3104103"]
[3105,"Técnico Superior das áreas de Diagnóstico e Terapêutica",101,"Técnico superior das áreas de Diagnóstico e Terapêutica especialista principal",null,null,null,null,null,null,null,null,null,null,null,null,null,null,null,null,null,null,null,null,3117,"3105101"]
[3105,"Técnico Superior das áreas de Diagnóstico e Terapêutica",102,"Técnico superior das áreas de Diagnóstico e Terapêutica especialista",null,null,null,null,null,null,null,null,null,null,null,null,null,null,null,null,null,null,null,null,3118,"3105102"]
[3105,"Técnico Superior das áreas de Diagnóstico e Terapêutica",103,"Técnico superior das áreas de Diagnóstico e Terapêutica",null,null,null,null,null,null,null,null,null,null,null,null,null,null,null,null,null,null,null,null,3119,"3105103"]
[3106,"Docente universitária",101,"Professor catedrático",null,null,null,null,null,null,null,null,null,null,null,null,null,null,null,null,null,null,null,null,3120,"3106101"]
[3106,"Docente universitária",102,"Professor associado",null,null,null,null,null,null,null,null,null,null,null,null,null,null,null,null,null,null,null,null,3121,"3106102"]
[3106,"Docente universitária",103,"Professor auxiliar",null,null,null,null,null,null,null,null,null,null,null,null,null,null,null,null,null,null,null,null,3122,"3106103"]
[3106,"Docente universitária",104,"Professor convidado",null,null,null,null,null,null,null,null,null,null,null,null,null,null,null,null,null,null,null,null,3123,"3106104"]
[3106,"Docente universitária",105,"Assistente convidado",null,null,null,null,null,null,null,null,null,null,null,null,null,null,null,null,null,null,null,null,3124,"3106105"]
[3106,"Docente universitária",106,"Leitor",null,null,null,null,null,null,null,null,null,null,null,null,null,null,null,null,null,null,null,null,3125,"3106106"]
[3106,"Docente universitária",107,"Monitor",null,null,null,null,null,null,null,null,null,null,null,null,null,null,null,null,null,null,null,null,3126,"3106107"]
[3107,"Docente do ensino superior politécnico",101,"Professor coordenador principal",null,null,null,null,null,null,null,null,null,null,null,null,null,null,null,null,null,null,null,null,3127,"3107101"]
[3107,"Docente do ensino superior politécnico",102,"Professor coordenador",null,null,null,null,null,null,null,null,null,null,null,null,null,null,null,null,null,null,null,null,3128,"3107102"]
[3107,"Docente do ensino superior politécnico",103,"Professor adjunto",null,null,null,null,null,null,null,null,null,null,null,null,null,null,null,null,null,null,null,null,3129,"3107103"]
[3107,"Docente do ensino superior politécnico",104,"Professor coordenador convidado",null,null,null,null,null,null,null,null,null,null,null,null,null,null,null,null,null,null,null,null,3130,"3107104"]
[3107,"Docente do ensino superior politécnico",105,"Professor adjunto convidado",null,null,null,null,null,null,null,null,null,null,null,null,null,null,null,null,null,null,null,null,3131,"3107105"]
[3107,"Docente do ensino superior politécnico",106,"Professor visitante",null,null,null,null,null,null,null,null,null,null,null,null,null,null,null,null,null,null,null,null,3132,"3107106"]
[3107,"Docente do ensino superior politécnico",107,"Assistente convidado",null,null,null,null,null,null,null,null,null,null,null,null,null,null,null,null,null,null,null,null,3133,"3107107"]
[3107,"Docente do ensino superior politécnico",108,"Monitor",null,null,null,null,null,null,null,null,null,null,null,null,null,null,null,null,null,null,null,null,3134,"3107108"]
[3108,"Educadores de Infância e Professores dos Ensinos Básico e Secundário",101,"Professor",null,null,null,null,null,null,null,null,null,null,null,null,null,null,null,null,null,null,null,null,3135,"3108101"]
[3109,"Inspeção",101,"Inspetor",null,null,null,null,null,null,null,null,null,null,null,null,null,null,null,null,null,null,null,null,3136,"3109101"]
[3110,"Assistente de residência",101,"Assistente de residência",null,null,null,null,null,null,null,null,null,null,null,null,null,null,null,null,null,null,null,null,3137,"3110101"]
[3111,"Técnico Superior Especialista em Orçamento e Finanças Públicas",101,"Técnico Superior Especialista em Orçamento e Finanças Públicas",null,null,null,null,null,null,null,null,null,null,null,null,null,null,null,null,null,null,null,null,3138,"3111101"]
[3112,"Técnico Superior Especialista em Estatística do INE, IP",101,"Técnico Superior Especialista em Estatística do INE, IP",null,null,null,null,null,null,null,null,null,null,null,null,null,null,null,null,null,null,null,null,3139,"3112101"]
[3113,"PSP - Oficial de polícia ",101,"Superintendente-chefe ",null,null,null,null,null,null,null,null,null,null,null,null,null,null,null,null,null,null,null,null,3140,"3113101"]
[3113,"PSP - Oficial de polícia ",102,"Superintendente ",null,null,null,null,null,null,null,null,null,null,null,null,null,null,null,null,null,null,null,null,3141,"3113102"]
[3113,"PSP - Oficial de polícia ",103,"Intendente ",null,null,null,null,null,null,null,null,null,null,null,null,null,null,null,null,null,null,null,null,4001,"3113103"]
[3113,"PSP - Oficial de polícia ",104,"Subintendente ",null,null,null,null,null,null,null,null,null,null,null,null,null,null,null,null,null,null,null,null,4002,"3113104"]
[3113,"PSP - Oficial de polícia ",105,"Comissário ",null,null,null,null,null,null,null,null,null,null,null,null,null,null,null,null,null,null,null,null,4003,"3113105"]
[3113,"PSP - Oficial de polícia ",106,"Subcomissário ",null,null,null,null,null,null,null,null,null,null,null,null,null,null,null,null,null,null,null,null,4004,"3113106"]
[3113,"PSP - Oficial de polícia ",107,"Aspirante",null,null,null,null,null,null,null,null,null,null,null,null,null,null,null,null,null,null,null,null,4005,"3113107"]
[3113,"PSP - Oficial de polícia ",108,"Cadete-aluno ",null,null,null,null,null,null,null,null,null,null,null,null,null,null,null,null,null,null,null,null,4006,"3113108"]
[3114,"PSP - Chefe de polícia",101,"Chefe Coordenador",null,null,null,null,null,null,null,null,null,null,null,null,null,null,null,null,null,null,null,null,4007,"3114101"]
[3114,"PSP - Chefe de polícia",102,"Chefe Principal",null,null,null,null,null,null,null,null,null,null,null,null,null,null,null,null,null,null,null,null,4008,"3114102"]
[3114,"PSP - Chefe de polícia",103,"Chefe",null,null,null,null,null,null,null,null,null,null,null,null,null,null,null,null,null,null,null,null,4009,"3114103"]
[3115,"PSP - Agente de polícia",101,"Agente Coordenador",null,null,null,null,null,null,null,null,null,null,null,null,null,null,null,null,null,null,null,null,4010,"3115101"]
[3115,"PSP - Agente de polícia",102,"Agente Principal ",null,null,null,null,null,null,null,null,null,null,null,null,null,null,null,null,null,null,null,null,4011,"3115102"]
[3115,"PSP - Agente de polícia",103,"Agente ",null,null,null,null,null,null,null,null,null,null,null,null,null,null,null,null,null,null,null,null,4012,"3115103"]
[3115,"PSP - Agente de polícia",104,"Agente provisório ",null,null,null,null,null,null,null,null,null,null,null,null,null,null,null,null,null,null,null,null,4013,"3115104"]
[3116,"GNR - Militares",101,"Oficial",null,null,null,null,null,null,null,null,null,null,null,null,null,null,null,null,null,null,null,null,4014,"3116101"]
[3116,"GNR - Militares",102,"Sargento",null,null,null,null,null,null,null,null,null,null,null,null,null,null,null,null,null,null,null,null,4015,"3116102"]
[3116,"GNR - Militares",103,"Guarda",null,null,null,null,null,null,null,null,null,null,null,null,null,null,null,null,null,null,null,null,4016,"3116103"]
[3117,"Guarda Florestal",101,"Mestre Florestal principal",null,null,null,null,null,null,null,null,null,null,null,null,null,null,null,null,null,null,null,null,4017,"3117101"]
[3117,"Guarda Florestal",102,"Mestre Florestal",null,null,null,null,null,null,null,null,null,null,null,null,null,null,null,null,null,null,null,null,4018,"3117102"]
[3117,"Guarda Florestal",103,"Guarda Florestal",null,null,null,null,null,null,null,null,null,null,null,null,null,null,null,null,null,null,null,null,4019,"3117103"]
[3118,"Guarda Florestal (RAM)",101,"Mestre florestal",null,null,null,null,null,null,null,null,null,null,null,null,null,null,null,null,null,null,null,null,4020,"3118101"]
[3118,"Guarda Florestal (RAM)",102,"Guarda florestal",null,null,null,null,null,null,null,null,null,null,null,null,null,null,null,null,null,null,null,null,4021,"3118102"]
[3119,"CGP - Chefe da Guarda Prisional",101,"Comissário Prisional ",null,null,null,null,null,null,null,null,null,null,null,null,null,null,null,null,null,null,null,null,4022,"3119101"]
[3119,"CGP - Chefe da Guarda Prisional",102,"Chefe Principal ",null,null,null,null,null,null,null,null,null,null,null,null,null,null,null,null,null,null,null,null,4023,"3119102"]
[3119,"CGP - Chefe da Guarda Prisional",103,"Chefe ",null,null,null,null,null,null,null,null,null,null,null,null,null,null,null,null,null,null,null,null,4024,"3119103"]
[3120,"CGP - Guarda Prisional ",101,"Guarda Principal ",null,null,null,null,null,null,null,null,null,null,null,null,null,null,null,null,null,null,null,null,4025,"3120101"]
[3120,"CGP - Guarda Prisional ",102,"Guarda ",null,null,null,null,null,null,null,null,null,null,null,null,null,null,null,null,null,null,null,null,4026,"3120102"]
[3120,"CGP - Guarda Prisional ",103,"Guarda instruendo ",null,null,null,null,null,null,null,null,null,null,null,null,null,null,null,null,null,null,null,null,4027,"3120103"]
[3121,"Tripulante de Embarcações Salva-vidas do ISN",101,"Patrão de salva-vidas",null,null,null,null,null,null,null,null,null,null,null,null,null,null,null,null,null,null,null,null,4028,"3121101"]
[3121,"Tripulante de Embarcações Salva-vidas do ISN",102,"Sota-patrão de salva-vidas",null,null,null,null,null,null,null,null,null,null,null,null,null,null,null,null,null,null,null,null,4029,"3121102"]
[3121,"Tripulante de Embarcações Salva-vidas do ISN",103,"Marinheiro de salva-vidas",null,null,null,null,null,null,null,null,null,null,null,null,null,null,null,null,null,null,null,null,4030,"3121103"]
[3122,"Forças Armadas - Militar (Marinha)",101,"Oficial",null,null,null,null,null,null,null,null,null,null,null,null,null,null,null,null,null,null,null,null,4031,"3122101"]
[3122,"Forças Armadas - Militar (Marinha)",102,"Sargento",null,null,null,null,null,null,null,null,null,null,null,null,null,null,null,null,null,null,null,null,4032,"3122102"]
[3122,"Forças Armadas - Militar (Marinha)",103,"Praça",null,null,null,null,null,null,null,null,null,null,null,null,null,null,null,null,null,null,null,null,4033,"3122103"]
[3123,"Forças Armadas - Militar (Exército)",101,"Oficial",null,null,null,null,null,null,null,null,null,null,null,null,null,null,null,null,null,null,null,null,4034,"3123101"]
[3123,"Forças Armadas - Militar (Exército)",102,"Sargento",null,null,null,null,null,null,null,null,null,null,null,null,null,null,null,null,null,null,null,null,4035,"3123102"]
[3123,"Forças Armadas - Militar (Exército)",103,"Praça",null,null,null,null,null,null,null,null,null,null,null,null,null,null,null,null,null,null,null,null,4036,{"$f":"A195&C195","v":"3123103"}]
[3124,"Forças Armadas - Militar (Força Aérea)",101,"Oficial",null,null,null,null,null,null,null,null,null,null,null,null,null,null,null,null,null,null,null,null,4037,"3124101"]
[3124,"Forças Armadas - Militar (Força Aérea)",102,"Sargento",null,null,null,null,null,null,null,null,null,null,null,null,null,null,null,null,null,null,null,null,4038,"3124102"]
[3124,"Forças Armadas - Militar (Força Aérea)",103,"Praça",null,null,null,null,null,null,null,null,null,null,null,null,null,null,null,null,null,null,null,null,4039,"3124103"]
[3125,"Rocheiro (RAM)",101,"Rocheiro",null,null,null,null,null,null,null,null,null,null,null,null,null,null,null,null,null,null,null,null,4040,"3125101"]
[3126,"Técnico de espaços verdes (RAM)",101,"Técnico de espaços verdes encarregado",null,null,null,null,null,null,null,null,null,null,null,null,null,null,null,null,null,null,null,null,4041,"3126101"]
[3126,"Técnico de espaços verdes (RAM)",102,"Técnico de espaços verdes",null,null,null,null,null,null,null,null,null,null,null,null,null,null,null,null,null,null,null,null,4042,"3126102"]
[3127,"Sapador florestal (RAM)",101,"Sapador florestal",null,null,null,null,null,null,null,null,null,null,null,null,null,null,null,null,null,null,null,null,4043,"3127101"]
[3128,"Inspeção da ASAE",101,"Inspetor",null,null,null,null,null,null,null,null,null,null,null,null,null,null,null,null,null,null,null,null,4044,"3128101"]
[3129,"Conservador de registos",101,"Conservador de registos",null,null,null,null,null,null,null,null,null,null,null,null,null,null,null,null,null,null,null,null,4045,"3129101"]
[3130,"Oficial de registos",101,"Oficial de registos especialista",null,null,null,null,null,null,null,null,null,null,null,null,null,null,null,null,null,null,null,null,4046,"3130101"]
[3130,"Oficial de registos",102,"Oficial de registos",null,null,null,null,null,null,null,null,null,null,null,null,null,null,null,null,null,null,null,null,4047,"3130102"]
[3131,"Inspeção veterinária da DGAV",101,"Inspetor ",null,null,null,null,null,null,null,null,null,null,null,null,null,null,null,null,null,null,null,null,4048,"3131101"]
[3132,"Inspeção das pescas da DGRM",101,"Inspetor",null,null,null,null,null,null,null,null,null,null,null,null,null,null,null,null,null,null,null,null,4049,"3132101"]
[3133,"Inspeção de navios e segurança marítima da DGRM",101,"Inspetor",null,null,null,null,null,null,null,null,null,null,null,null,null,null,null,null,null,null,null,null,4050,"3133101"]
[3134,"Fiscalização",101,"Fiscal coordenador",null,null,null,null,null,null,null,null,null,null,null,null,null,null,null,null,null,null,null,null,4051,"3134101"]
[3134,"Fiscalização",102,"Fiscal",null,null,null,null,null,null,null,null,null,null,null,null,null,null,null,null,null,null,null,null,4052,"3134102"]
[3135,"Inspeção de pescas (RAM)",101,"Inspetor",null,null,null,null,null,null,null,null,null,null,null,null,null,null,null,null,null,null,null,null,4053,"3135101"]
[3136,"Inspeção de agricultura (RAM)",101,"Inspetor",null,null,null,null,null,null,null,null,null,null,null,null,null,null,null,null,null,null,null,null,4054,"3136101"]
[3137,"Investigação criminal (PJ)",101,"Coordenador superior de investigação criminal",null,null,null,null,null,null,null,null,null,null,null,null,null,null,null,null,null,null,null,null,4055,"3137101"]
[3137,"Investigação criminal (PJ)",102,"Coordenador de investigação criminal",null,null,null,null,null,null,null,null,null,null,null,null,null,null,null,null,null,null,null,null,4056,"3137102"]
[3137,"Investigação criminal (PJ)",103,"Inspetor-Chefe",null,null,null,null,null,null,null,null,null,null,null,null,null,null,null,null,null,null,null,null,4057,"3137103"]
[3137,"Investigação criminal (PJ)",104,"Inspetor",null,null,null,null,null,null,null,null,null,null,null,null,null,null,null,null,null,null,null,null,4058,"3137104"]
[3137,"Investigação criminal (PJ)",105,"Inspetor estagiário",null,null,null,null,null,null,null,null,null,null,null,null,null,null,null,null,null,null,null,null,4059,"3137105"]
[3138,"Apoio à investigação criminal - Especialista de polícia científica (PJ)",101,"Especialista de polícia científica",null,null,null,null,null,null,null,null,null,null,null,null,null,null,null,null,null,null,null,null,4060,"3138101"]
[3139,"Apoio à investigação criminal - Segurança (PJ)",101,"Segurança",null,null,null,null,null,null,null,null,null,null,null,null,null,null,null,null,null,null,null,null,4061,"3139101"]
[3140,"Gestão e inspeção tributária e aduaneira (AT)",101,"Gestor tributário e aduaneiro",null,null,null,null,null,null,null,null,null,null,null,null,null,null,null,null,null,null,null,null,4062,"3140101"]
[3141,"Inspeção e auditoria tributária e aduaneira (AT)",101,"Inspetor tributário e aduaneiro",null,null,null,null,null,null,null,null,null,null,null,null,null,null,null,null,null,null,null,null,4063,"3141101"]
[4001,"Administração Hospitalar ",101,"Administrador do 1º Grau",null,null,null,null,null,null,null,null,null,null,null,null,null,null,null,null,null,null,null,null,4064,"4001101"]
[4001,"Administração Hospitalar ",102,"Administrador do 2º Grau",null,null,null,null,null,null,null,null,null,null,null,null,null,null,null,null,null,null,null,null,4065,"4001102"]
[4001,"Administração Hospitalar ",103,"Administrador do 3º Grau",null,null,null,null,null,null,null,null,null,null,null,null,null,null,null,null,null,null,null,null,4066,"4001103"]
[4001,"Administração Hospitalar ",104,"Administrador do 4º Grau",null,null,null,null,null,null,null,null,null,null,null,null,null,null,null,null,null,null,null,null,4067,"4001104"]
[4002,"Administração Prisional",101,"Administrador Prisional do 1º Grau",null,null,null,null,null,null,null,null,null,null,null,null,null,null,null,null,null,null,null,null,4068,"4002101"]
[4002,"Administração Prisional",102,"Administrador Prisional do 2º Grau",null,null,null,null,null,null,null,null,null,null,null,null,null,null,null,null,null,null,null,null,4069,"4002102"]
[4002,"Administração Prisional",103,"Administrador Prisional do 3º Grau",null,null,null,null,null,null,null,null,null,null,null,null,null,null,null,null,null,null,null,null,4070,"4002103"]
[4002,"Administração Prisional",104,"Administrador Prisional do 4º Grau",null,null,null,null,null,null,null,null,null,null,null,null,null,null,null,null,null,null,null,null,4071,"4002104"]
[4003,"Administrativo (IGFCSS)",101,"Administrativo (IGFCSS)",null,null,null,null,null,null,null,null,null,null,null,null,null,null,null,null,null,null,null,null,4072,"4003101"]
[4004,"Agente de Exploração (administrações portuárias)",101,"Agente de Exploração (administrações portuárias)",null,null,null,null,null,null,null,null,null,null,null,null,null,null,null,null,null,null,null,null,4073,"4004101"]
[4005,"Agente de Fiscalização (IVDP, IP)",101,"Agente de Fiscalização (IVDP, IP)",null,null,null,null,null,null,null,null,null,null,null,null,null,null,null,null,null,null,null,null,4074,"4005101"]
[4006,"Assessor (Provedoria de Justiça)",101,"Assessor (Provedoria de Justiça)",null,null,null,null,null,null,null,null,null,null,null,null,null,null,null,null,null,null,null,null,4075,"4006101"]
[4007,"Assessoria da Provedoria de Justiça (inclui técnicos superiores)",101,"Assessoria da Provedoria de Justiça (inclui técnicos superiores)",null,null,null,null,null,null,null,null,null,null,null,null,null,null,null,null,null,null,null,null,4076,"4007101"]
[4008,"Assistente (ex-Serviços Médico-Sociais)",101,"Assistente (ex-Serviços Médico-Sociais)",null,null,null,null,null,null,null,null,null,null,null,null,null,null,null,null,null,null,null,null,4077,"4008101"]
[4009,"Assistente Administrativo",101,"Assistente Administrativo",null,null,null,null,null,null,null,null,null,null,null,null,null,null,null,null,null,null,null,null,4078,"4009101"]
[4010,"Assistente de Investigação",101,"Assistente de Investigação",null,null,null,null,null,null,null,null,null,null,null,null,null,null,null,null,null,null,null,null,4079,"4010101"]
[4011,"Assistente Operacional/ Marítimos",101,"Assistente Operacional/ Marítimos",null,null,null,null,null,null,null,null,null,null,null,null,null,null,null,null,null,null,null,null,4080,"4011101"]
[4012,"Assistente técnico",101,"Assistente técnico",null,null,null,null,null,null,null,null,null,null,null,null,null,null,null,null,null,null,null,null,4081,"4012101"]
[4013,"Auditor Chefe (Tribunal de Contas)",101,"Auditor Chefe (Tribunal de Contas)",null,null,null,null,null,null,null,null,null,null,null,null,null,null,null,null,null,null,null,null,4082,"4013101"]
[4014,"Auditor Coordenador (Tribunal de Contas)",101,"Auditor Coordenador (Tribunal de Contas)",null,null,null,null,null,null,null,null,null,null,null,null,null,null,null,null,null,null,null,null,4083,"4014101"]
[4015,"Auditor/Consultor (Tribunal de Contas)",101,"Auditor/Consultor (Tribunal de Contas)",null,null,null,null,null,null,null,null,null,null,null,null,null,null,null,null,null,null,null,null,4084,"4015101"]
[4016,"Auxiliar Administrativo (IEFP)",101,"Auxiliar Administrativo (IEFP)",null,null,null,null,null,null,null,null,null,null,null,null,null,null,null,null,null,null,null,null,4085,"4016101"]
[4017,"Auxiliar de estomatologia",101,"Auxiliar de estomatologia",null,null,null,null,null,null,null,null,null,null,null,null,null,null,null,null,null,null,null,null,4086,"4017101"]
[4018,"Auxiliar de Serviços",101,"Auxiliar de Serviços",null,null,null,null,null,null,null,null,null,null,null,null,null,null,null,null,null,null,null,null,4087,"4018101"]
[4019,"Auxiliar de Serviços Gerais",101,"Auxiliar de Serviços Gerais",null,null,null,null,null,null,null,null,null,null,null,null,null,null,null,null,null,null,null,null,4088,"4019101"]
[4020,"Auxiliar Técnico de Educação (DGRSP)",101,"Auxiliar Técnico de Educação (DGRSP)",null,null,null,null,null,null,null,null,null,null,null,null,null,null,null,null,null,null,null,null,4089,"4020101"]
[4021,"Bombeiros Sapadores",101,"Chefe-Principal",null,null,null,null,null,null,null,null,null,null,null,null,null,null,null,null,null,null,null,null,4090,"4021101"]
[4021,"Bombeiros Sapadores",102,"Chefe de 1ª Classe",null,null,null,null,null,null,null,null,null,null,null,null,null,null,null,null,null,null,null,null,4091,"4021102"]
[4021,"Bombeiros Sapadores",103,"Chefe de 2ª Classe",null,null,null,null,null,null,null,null,null,null,null,null,null,null,null,null,null,null,null,null,4092,"4021103"]
[4021,"Bombeiros Sapadores",104,"Subchefe-Principal",null,null,null,null,null,null,null,null,null,null,null,null,null,null,null,null,null,null,null,null,4093,"4021104"]
[4021,"Bombeiros Sapadores",105,"Subchefe de 1ª Classe",null,null,null,null,null,null,null,null,null,null,null,null,null,null,null,null,null,null,null,null,4094,"4021105"]
[4021,"Bombeiros Sapadores",106,"Subchefe de 2ª Classe",null,null,null,null,null,null,null,null,null,null,null,null,null,null,null,null,null,null,null,null,4095,"4021106"]
[4021,"Bombeiros Sapadores",107,"Bombeiro Sapador",null,null,null,null,null,null,null,null,null,null,null,null,null,null,null,null,null,null,null,null,4096,"4021107"]
[4022,"Conselheiro de Orientação Profissional (IEFP)",101,"Conselheiro de Orientação Profissional (IEFP)",null,null,null,null,null,null,null,null,null,null,null,null,null,null,null,null,null,null,null,null,4097,"4022101"]
[4023,"Consultor (CEGER)",101,"Não aplicável",null,null,null,null,null,null,null,null,null,null,null,null,null,null,null,null,null,null,null,null,4098,"4023101"]
[4024,"Consultor de informática",101,"Não aplicável",null,null,null,null,null,null,null,null,null,null,null,null,null,null,null,null,null,null,null,null,4099,"4024101"]
[4025,"Coordenador de projeto de informática",101,"Não aplicável",null,null,null,null,null,null,null,null,null,null,null,null,null,null,null,null,null,null,null,null,4100,{"$f":"A259&C259","v":"4025101"}]
[4026,"Coordenador técnico de informática ",101,"Não aplicável",null,null,null,null,null,null,null,null,null,null,null,null,null,null,null,null,null,null,null,null,4101,"4026101"]
[4027,"Cozinheiro (IEFP)",101,"Cozinheiro (IEFP)",null,null,null,null,null,null,null,null,null,null,null,null,null,null,null,null,null,null,null,null,4102,"4027101"]
[4028,"Desenhador (IEFP)",101,"Desenhador (IEFP)",null,null,null,null,null,null,null,null,null,null,null,null,null,null,null,null,null,null,null,null,4103,"4028101"]
[4029,"Diplomática",101,"Embaixador",null,null,null,null,null,null,null,null,null,null,null,null,null,null,null,null,null,null,null,null,4104,"4029101"]
[4029,"Diplomática",102,"Ministro plenipotenciário",null,null,null,null,null,null,null,null,null,null,null,null,null,null,null,null,null,null,null,null,4105,"4029102"]
[4029,"Diplomática",103,"Conselheiro de embaixada",null,null,null,null,null,null,null,null,null,null,null,null,null,null,null,null,null,null,null,null,4106,"4029103"]
[4029,"Diplomática",104,"Secretário de embaixada",null,null,null,null,null,null,null,null,null,null,null,null,null,null,null,null,null,null,null,null,4107,"4029104"]
[4029,"Diplomática",105,"Adido de embaixada",null,null,null,null,null,null,null,null,null,null,null,null,null,null,null,null,null,null,null,null,4108,"4029105"]
[4030,"Eletricista (administrações portuárias)",101,"Eletricista (administrações portuárias)",null,null,null,null,null,null,null,null,null,null,null,null,null,null,null,null,null,null,null,null,4109,"4030101"]
[4031,"Encarregado (IEFP)",101,"Encarregado (IEFP)",null,null,null,null,null,null,null,null,null,null,null,null,null,null,null,null,null,null,null,null,4110,"4031101"]
[4032,"Enfermeiro do Trabalho (IEFP)",101,"Enfermeiro do Trabalho (IEFP)",null,null,null,null,null,null,null,null,null,null,null,null,null,null,null,null,null,null,null,null,4111,"4032101"]
[4033,"Especialista de Informática",101,"Especialista de Informática Grau 3 Nível 2",null,null,null,null,null,null,null,null,null,null,null,null,null,null,null,null,null,null,null,null,4112,"4033101"]
[4033,"Especialista de Informática",102,"Especialista de Informática Grau 3 Nível 1",null,null,null,null,null,null,null,null,null,null,null,null,null,null,null,null,null,null,null,null,4113,"4033102"]
[4033,"Especialista de Informática",103,"Especialista de Informática Grau 2 Nível 2",null,null,null,null,null,null,null,null,null,null,null,null,null,null,null,null,null,null,null,null,4114,"4033103"]
[4033,"Especialista de Informática",104,"Especialista de Informática Grau 2 Nível 1",null,null,null,null,null,null,null,null,null,null,null,null,null,null,null,null,null,null,null,null,5001,"4033104"]
[4033,"Especialista de Informática",105,"Especialista de Informática Grau 1 Nível 3",null,null,null,null,null,null,null,null,null,null,null,null,null,null,null,null,null,null,null,null,5002,"4033105"]
[4033,"Especialista de Informática",106,"Especialista de Informática Grau 1 Nível 2",null,null,null,null,null,null,null,null,null,null,null,null,null,null,null,null,null,null,null,null,5003,"4033106"]
[4033,"Especialista de Informática",107,"Especialista de Informática Grau 1 Nível 1",null,null,null,null,null,null,null,null,null,null,null,null,null,null,null,null,null,null,null,null,5004,"4033107"]
[4033,"Especialista de Informática",108,"Estagiário com Licenciatura",null,null,null,null,null,null,null,null,null,null,null,null,null,null,null,null,null,null,null,null,5005,"4033108"]
[4033,"Especialista de Informática",109,"Estagiário com Curso Superior que não confere o grau de Licenciatura",null,null,null,null,null,null,null,null,null,null,null,null,null,null,null,null,null,null,null,null,5006,"4033109"]
[4034,"Especialista Superior de Medicina Legal",101,"Assessor Principal de Medicina Legal",null,null,null,null,null,null,null,null,null,null,null,null,null,null,null,null,null,null,null,null,5007,"4034101"]
[4034,"Especialista Superior de Medicina Legal",102,"Assessor de Medicina Legal",null,null,null,null,null,null,null,null,null,null,null,null,null,null,null,null,null,null,null,null,5008,"4034102"]
[4034,"Especialista Superior de Medicina Legal",103,"Especialista Superior de Medicina Legal",null,null,null,null,null,null,null,null,null,null,null,null,null,null,null,null,null,null,null,null,5009,"4034103"]
[4034,"Especialista Superior de Medicina Legal",104,"Especialista Superior de 1ª Classe de Medicina Legal",null,null,null,null,null,null,null,null,null,null,null,null,null,null,null,null,null,null,null,null,5010,"4034104"]
[4034,"Especialista Superior de Medicina Legal",105,"Especialista Superior de 2ª Classe de Medicina Legal",null,null,null,null,null,null,null,null,null,null,null,null,null,null,null,null,null,null,null,null,5011,"4034105"]
[4034,"Especialista Superior de Medicina Legal",106,"Estagiário",null,null,null,null,null,null,null,null,null,null,null,null,null,null,null,null,null,null,null,null,5012,"4034106"]
[4035,"Feitor (ISS)",101,"Feitor (ISS)",null,null,null,null,null,null,null,null,null,null,null,null,null,null,null,null,null,null,null,null,5013,"4035101"]
[4036,"Fiel de Armazém (IEFP)",101,"Fiel de Armazém (IEFP)",null,null,null,null,null,null,null,null,null,null,null,null,null,null,null,null,null,null,null,null,5014,"4036101"]
[4037,"Fiel de Depósito (administrações portuárias)",101,"Fiel de Depósito (administrações portuárias)",null,null,null,null,null,null,null,null,null,null,null,null,null,null,null,null,null,null,null,null,5015,"4037101"]
[4038,"Guarda Portuário (administrações portuárias)",101,"Guarda Portuário (administrações portuárias)",null,null,null,null,null,null,null,null,null,null,null,null,null,null,null,null,null,null,null,null,5016,"4038101"]
[4039,"Informático",101,"Informático",null,null,null,null,null,null,null,null,null,null,null,null,null,null,null,null,null,null,null,null,5017,"4039101"]
[4040,"Inspetor (IEFP)",101,"Inspetor (IEFP)",null,null,null,null,null,null,null,null,null,null,null,null,null,null,null,null,null,null,null,null,5018,"4040101"]
[4041,"Inspetor Superior (Não revista)",101,"Inspetor Superior Principal",null,null,null,null,null,null,null,null,null,null,null,null,null,null,null,null,null,null,null,null,5019,"4041101"]
[4041,"Inspetor Superior (Não revista)",102,"Inspetor Superior",null,null,null,null,null,null,null,null,null,null,null,null,null,null,null,null,null,null,null,null,5020,"4041102"]
[4041,"Inspetor Superior (Não revista)",103,"Inspetor Principal",null,null,null,null,null,null,null,null,null,null,null,null,null,null,null,null,null,null,null,null,5021,"4041103"]
[4041,"Inspetor Superior (Não revista)",104,"Inspetor",null,null,null,null,null,null,null,null,null,null,null,null,null,null,null,null,null,null,null,null,5022,"4041104"]
[4041,"Inspetor Superior (Não revista)",105,"Estagiário",null,null,null,null,null,null,null,null,null,null,null,null,null,null,null,null,null,null,null,null,5023,"4041105"]
[4042,"Inspetor Técnico",101,"Inspetor Técnico Especial. Principal",null,null,null,null,null,null,null,null,null,null,null,null,null,null,null,null,null,null,null,null,5024,"4042101"]
[4042,"Inspetor Técnico",102,"Inspetor Técnico Especialista",null,null,null,null,null,null,null,null,null,null,null,null,null,null,null,null,null,null,null,null,5025,"4042102"]
[4042,"Inspetor Técnico",103,"Inspetor Técnico Principal",null,null,null,null,null,null,null,null,null,null,null,null,null,null,null,null,null,null,null,null,5026,"4042103"]
[4042,"Inspetor Técnico",104,"Inspetor Técnico",null,null,null,null,null,null,null,null,null,null,null,null,null,null,null,null,null,null,null,null,5027,"4042104"]
[4042,"Inspetor Técnico",105,"Estagiário",null,null,null,null,null,null,null,null,null,null,null,null,null,null,null,null,null,null,null,null,5028,"4042105"]
[4043,"Investigação Científica",101,"Investigador-Coordenador",null,null,null,null,null,null,null,null,null,null,null,null,null,null,null,null,null,null,null,null,5029,"4043101"]
[4043,"Investigação Científica",102,"Investigador Principal com habilitação ou agregação",null,null,null,null,null,null,null,null,null,null,null,null,null,null,null,null,null,null,null,null,5030,"4043102"]
[4043,"Investigação Científica",103,"Investigador Principal / Investigador Auxiliar com habilitação ou agregação",null,null,null,null,null,null,null,null,null,null,null,null,null,null,null,null,null,null,null,null,5031,"4043103"]
[4043,"Investigação Científica",104,"Investigador Auxiliar",null,null,null,null,null,null,null,null,null,null,null,null,null,null,null,null,null,null,null,null,5032,"4043104"]
[4043,"Investigação Científica",105,"Assistente de Investigação",null,null,null,null,null,null,null,null,null,null,null,null,null,null,null,null,null,null,null,null,5033,"4043105"]
[4043,"Investigação Científica",106,"Estagiário de Investigação",null,null,null,null,null,null,null,null,null,null,null,null,null,null,null,null,null,null,null,null,5034,"4043106"]
[4044,"Investigação e Fiscalização (SEF)",101,"Inspetor Coordenador Superior",null,null,null,null,null,null,null,null,null,null,null,null,null,null,null,null,null,null,null,null,5035,"4044101"]
[4044,"Investigação e Fiscalização (SEF)",102,"Inspetor Coordenador",null,null,null,null,null,null,null,null,null,null,null,null,null,null,null,null,null,null,null,null,5036,"4044102"]
[4044,"Investigação e Fiscalização (SEF)",103,"Inspetor Chefe",null,null,null,null,null,null,null,null,null,null,null,null,null,null,null,null,null,null,null,null,5037,"4044103"]
[4044,"Investigação e Fiscalização (SEF)",104,"Inspetor",null,null,null,null,null,null,null,null,null,null,null,null,null,null,null,null,null,null,null,null,5038,"4044104"]
[4044,"Investigação e Fiscalização (SEF)",105,"Inspetor Estagiário",null,null,null,null,null,null,null,null,null,null,null,null,null,null,null,null,null,null,null,null,5039,"4044105"]
[4045,"Lubrificador (administrações portuárias)",101,"Lubrificador (administrações portuárias)",null,null,null,null,null,null,null,null,null,null,null,null,null,null,null,null,null,null,null,null,5040,"4045101"]
[4046,"Magistrado de Tribunal Administrativo e Fiscal",101,"Magistrado de Tribunal Administrativo e Fiscal",null,null,null,null,null,null,null,null,null,null,null,null,null,null,null,null,null,null,null,null,5041,"4046101"]
[4047,"Magistrado do Ministério Público",101,"Procurador-Geral da República",null,null,null,null,null,null,null,null,null,null,null,null,null,null,null,null,null,null,null,null,5042,"4047101"]
[4047,"Magistrado do Ministério Público",102,"Vice-Procurador-Geral da República",null,null,null,null,null,null,null,null,null,null,null,null,null,null,null,null,null,null,null,null,5043,"4047102"]
[4047,"Magistrado do Ministério Público",103,"Procurador-Geral-Adjunto c/ 5 anos",null,null,null,null,null,null,null,null,null,null,null,null,null,null,null,null,null,null,null,null,5044,"4047103"]
[4047,"Magistrado do Ministério Público",104,"Procurador-Geral-Adjunto",null,null,null,null,null,null,null,null,null,null,null,null,null,null,null,null,null,null,null,null,5045,"4047104"]
[4047,"Magistrado do Ministério Público",105,"Procurador da República",null,null,null,null,null,null,null,null,null,null,null,null,null,null,null,null,null,null,null,null,5046,"4047105"]
[4047,"Magistrado do Ministério Público",106,"Delegado/Procurador Adjunto",null,null,null,null,null,null,null,null,null,null,null,null,null,null,null,null,null,null,null,null,5047,"4047106"]
[4048,"Magistrado Judicial",101,"Presidente Supremo Tribunal Justiça",null,null,null,null,null,null,null,null,null,null,null,null,null,null,null,null,null,null,null,null,5048,"4048101"]
[4048,"Magistrado Judicial",102,"Juíz Conselheiro",null,null,null,null,null,null,null,null,null,null,null,null,null,null,null,null,null,null,null,null,5049,"4048102"]
[4048,"Magistrado Judicial",103,"Juíz Desembargador c/ 5 anos",null,null,null,null,null,null,null,null,null,null,null,null,null,null,null,null,null,null,null,null,5050,{"$f":"A323&C323","v":"4048103"}]
[4048,"Magistrado Judicial",104,"Juíz Desembargador",null,null,null,null,null,null,null,null,null,null,null,null,null,null,null,null,null,null,null,null,5051,"4048104"]
[4048,"Magistrado Judicial",105,"Juíz Tribunal de Círculo/ Equiparado",null,null,null,null,null,null,null,null,null,null,null,null,null,null,null,null,null,null,null,null,5052,"4048105"]
[4048,"Magistrado Judicial",106,"Juíz de Direito",null,null,null,null,null,null,null,null,null,null,null,null,null,null,null,null,null,null,null,null,5053,"4048106"]
[4049,"Maquinista marítimo (Estabelecimentos de Ensino Superior e MPI)",101,"Maquinista Marítimo de 1ª Classe",null,null,null,null,null,null,null,null,null,null,null,null,null,null,null,null,null,null,null,null,5054,"4049101"]
[4049,"Maquinista marítimo (Estabelecimentos de Ensino Superior e MPI)",102,"Maquinista Marítimo de 2ª Classe",null,null,null,null,null,null,null,null,null,null,null,null,null,null,null,null,null,null,null,null,5055,"4049102"]
[4049,"Maquinista marítimo (Estabelecimentos de Ensino Superior e MPI)",103,"Maquinista Marítimo de 3ª Classe",null,null,null,null,null,null,null,null,null,null,null,null,null,null,null,null,null,null,null,null,5056,"4049103"]
[4050,"Marinheiro (Estabelecimentos de Ensino Superior e MPI)",101,"Marinheiro de 1ª Classe",null,null,null,null,null,null,null,null,null,null,null,null,null,null,null,null,null,null,null,null,5057,"4050101"]
[4050,"Marinheiro (Estabelecimentos de Ensino Superior e MPI)",102,"Marinheiro de 2ª Classe",null,null,null,null,null,null,null,null,null,null,null,null,null,null,null,null,null,null,null,null,5058,"4050102"]
[4051,"Marinheiro (administrações portuárias)",101,"Marinheiro (administrações portuárias)",null,null,null,null,null,null,null,null,null,null,null,null,null,null,null,null,null,null,null,null,5059,"4051101"]
[4052,"Médico assistente (ex-SMS)",101,"Médico assistente (ex-SMS)",null,null,null,null,null,null,null,null,null,null,null,null,null,null,null,null,null,null,null,null,5060,"4052101"]
[4053,"Mestre de embarcação (ARS)",101,"Mestre de embarcação (ARS)",null,null,null,null,null,null,null,null,null,null,null,null,null,null,null,null,null,null,null,null,5061,"4053101"]
[4054,"Mestre de Tráfego Fluvial (AL)",101,"Mestre de Tráfego Fluvial (AL)",null,null,null,null,null,null,null,null,null,null,null,null,null,null,null,null,null,null,null,null,5062,"4054101"]
[4055,"Mestre de Tráfego Local (administrações portuárias)",101,"Mestre de Tráfego Local (administrações portuárias)",null,null,null,null,null,null,null,null,null,null,null,null,null,null,null,null,null,null,null,null,5063,"4055101"]
[4056,"Mordomo (Presidência da República)",101,"Mordomo (Presidência da República)",null,null,null,null,null,null,null,null,null,null,null,null,null,null,null,null,null,null,null,null,5064,"4056101"]
[4057,"Motorista de embarcações salva-vidas",101,"Motorista de embarcações salva-vidas",null,null,null,null,null,null,null,null,null,null,null,null,null,null,null,null,null,null,null,null,5065,"4057101"]
[4058,"Motorista de Ligeiros (IEFP)",101,"Motorista de Ligeiros (IEFP)",null,null,null,null,null,null,null,null,null,null,null,null,null,null,null,null,null,null,null,null,5066,"4058101"]
[4059,"Motorista de Pesados (IEFP)",101,"Motorista de Pesados (IEFP)",null,null,null,null,null,null,null,null,null,null,null,null,null,null,null,null,null,null,null,null,5067,"4059101"]
[4060,"Motorista prático de tráfego fluvial (AL)",101,"Motorista prático de tráfego fluvial (AL)",null,null,null,null,null,null,null,null,null,null,null,null,null,null,null,null,null,null,null,null,5068,"4060101"]
[4061,"Oficial Cortador Especializado (DGRM)",101,"Oficial Cortador Especializado (DGRM)",null,null,null,null,null,null,null,null,null,null,null,null,null,null,null,null,null,null,null,null,5069,"4061101"]
[4062,"Oficial de justiça",101,"Secretário de Tribunal Superior",null,null,null,null,null,null,null,null,null,null,null,null,null,null,null,null,null,null,null,null,5070,"4062101"]
[4062,"Oficial de justiça",102,"Inspetor do Conselho de Oficiais de Justiça",null,null,null,null,null,null,null,null,null,null,null,null,null,null,null,null,null,null,null,null,5071,"4062102"]
[4062,"Oficial de justiça",103,"Secretário de Justiça",null,null,null,null,null,null,null,null,null,null,null,null,null,null,null,null,null,null,null,null,5072,"4062103"]
[4062,"Oficial de justiça",104,"Escrivão de Direito",null,null,null,null,null,null,null,null,null,null,null,null,null,null,null,null,null,null,null,null,5073,"4062104"]
[4062,"Oficial de justiça",105,"Escrivão Adjunto",null,null,null,null,null,null,null,null,null,null,null,null,null,null,null,null,null,null,null,null,5074,"4062105"]
[4062,"Oficial de justiça",106,"Escrivão Auxiliar Definitivo",null,null,null,null,null,null,null,null,null,null,null,null,null,null,null,null,null,null,null,null,5075,"4062106"]
[4062,"Oficial de justiça",107,"Escrivão Auxiliar Provisório",null,null,null,null,null,null,null,null,null,null,null,null,null,null,null,null,null,null,null,null,5076,"4062107"]
[4062,"Oficial de justiça",108,"Escrivão Estagiário",null,null,null,null,null,null,null,null,null,null,null,null,null,null,null,null,null,null,null,null,5077,"4062108"]
[4062,"Oficial de justiça",109,"Técnico de Justiça Principal",null,null,null,null,null,null,null,null,null,null,null,null,null,null,null,null,null,null,null,null,5078,"4062109"]
[4062,"Oficial de justiça",110,"Técnico de Justiça Adjunto",null,null,null,null,null,null,null,null,null,null,null,null,null,null,null,null,null,null,null,null,5079,"4062110"]
[4062,"Oficial de justiça",111,"Técnico de Justiça Auxiliar Definitivo",null,null,null,null,null,null,null,null,null,null,null,null,null,null,null,null,null,null,null,null,5080,"4062111"]
[4062,"Oficial de justiça",112,"Técnico de Justiça Auxiliar Provisório",null,null,null,null,null,null,null,null,null,null,null,null,null,null,null,null,null,null,null,null,5081,"4062112"]
[4062,"Oficial de justiça",113,"Técnico de Justiça Estagiário",null,null,null,null,null,null,null,null,null,null,null,null,null,null,null,null,null,null,null,null,5082,"4062113"]
[4063,"Operador de Cais (administrações portuárias)",101,"Operador de Cais (administrações portuárias)",null,null,null,null,null,null,null,null,null,null,null,null,null,null,null,null,null,null,null,null,7001,"4063101"]
[4064,"Operador de Equipamento Portuário (administrações portuárias)",101,"Operador de Equipamento Portuário (administrações portuárias)",null,null,null,null,null,null,null,null,null,null,null,null,null,null,null,null,null,null,null,null,7002,"4064101"]
[4065,"Operador de Sistemas (IEFP)",101,"Operador de Sistemas (IEFP)",null,null,null,null,null,null,null,null,null,null,null,null,null,null,null,null,null,null,null,null,7003,"4065101"]
[4066,"Pedreiro (administrações portuárias)",101,"Pedreiro (administrações portuárias)",null,null,null,null,null,null,null,null,null,null,null,null,null,null,null,null,null,null,null,null,7004,"4066101"]
[4067,"Pessoal da ex Direção de Finanças do Funchal",101,"Pessoal da ex Direção de Finanças do Funchal",null,null,null,null,null,null,null,null,null,null,null,null,null,null,null,null,null,null,null,null,7005,"4067101"]
[4068,"Pessoal de Apoio Geral",101,"Pessoal de Apoio Geral",null,null,null,null,null,null,null,null,null,null,null,null,null,null,null,null,null,null,null,null,7006,"4068101"]
[4069,"Pessoal de Vigilância e Segurança (SEF)",101,"Chefe de Vigilância e Segurança",null,null,null,null,null,null,null,null,null,null,null,null,null,null,null,null,null,null,null,null,7007,"4069101"]
[4069,"Pessoal de Vigilância e Segurança (SEF)",102,"Vigilante e Segurança de Nível 1",null,null,null,null,null,null,null,null,null,null,null,null,null,null,null,null,null,null,null,null,7008,"4069102"]
[4069,"Pessoal de Vigilância e Segurança (SEF)",103,"Vigilante e Segurança de Nível 2",null,null,null,null,null,null,null,null,null,null,null,null,null,null,null,null,null,null,null,null,7009,"4069103"]
[4069,"Pessoal de Vigilância e Segurança (SEF)",104,"Vigilante e Segurança de Nível 3",null,null,null,null,null,null,null,null,null,null,null,null,null,null,null,null,null,null,null,null,7010,"4069104"]
[4070,"Pessoal militarizado da Polícia Marítima ",101,"Pessoal militarizado da Polícia Marítima ",null,null,null,null,null,null,null,null,null,null,null,null,null,null,null,null,null,null,null,null,7011,"4070101"]
[4071,"Sapador Florestal",101,"Sapador Florestal",null,null,null,null,null,null,null,null,null,null,null,null,null,null,null,null,null,null,null,null,7012,"4071101"]
[4072,"Consultor Jurídico",101,"Consultor Jurídico",null,null,null,null,null,null,null,null,null,null,null,null,null,null,null,null,null,null,null,null,7013,"4072101"]
[4073,"Técnico Auxiliar",101,"Técnico Auxiliar",null,null,null,null,null,null,null,null,null,null,null,null,null,null,null,null,null,null,null,null,7014,"4073101"]
[4074,"Serralheiro Civil (administrações portuárias)",101,"Serralheiro Civil (administrações portuárias)",null,null,null,null,null,null,null,null,null,null,null,null,null,null,null,null,null,null,null,null,7015,"4074101"]
[4075,"Serralheiro Mecânico (administrações portuárias)",101,"Serralheiro Mecânico (administrações portuárias)",null,null,null,null,null,null,null,null,null,null,null,null,null,null,null,null,null,null,null,null,7016,"4075101"]
[4076,"Técnico (administrações portuárias)",101,"Técnico (administrações portuárias)",null,null,null,null,null,null,null,null,null,null,null,null,null,null,null,null,null,null,null,null,7017,"4076101"]
[4077,"Técnico (IEFP)",101,"Técnico (IEFP)",null,null,null,null,null,null,null,null,null,null,null,null,null,null,null,null,null,null,null,null,7018,"4077101"]
[4078,"Técnico (IGFCSS)",101,"Técnico (IGFCSS)",null,null,null,null,null,null,null,null,null,null,null,null,null,null,null,null,null,null,null,null,7019,"4078101"]
[4079,"Técnico Administrativo",101,"Técnico Administrativo",null,null,null,null,null,null,null,null,null,null,null,null,null,null,null,null,null,null,null,null,9999,"4079101"]
[4080,"Técnico Administrativo (IEFP)",101,"Técnico Administrativo (IEFP)",null,null,null,null,null,null,null,null,null,null,null,null,null,null,null,null,null,null,null,null,null,"4080101"]
[4081,"Técnico Ajudante de Medicina Legal",101,"Técnico-Ajudante Principal de Medicina Legal",null,null,null,null,null,null,null,null,null,null,null,null,null,null,null,null,null,null,null,null,null,"4081101"]
[4081,"Técnico Ajudante de Medicina Legal",102,"Técnico-Ajudante de 1ª Classe de Medicina Legal",null,null,null,null,null,null,null,null,null,null,null,null,null,null,null,null,null,null,null,null,null,"4081102"]
[4081,"Técnico Ajudante de Medicina Legal",103,"Técnico-Ajudante de 2ª Classe de Medicina Legal",null,null,null,null,null,null,null,null,null,null,null,null,null,null,null,null,null,null,null,null,null,"4081103"]
[4082,"Técnico Auxiliar (administrações portuárias)",101,"Técnico Auxiliar (administrações portuárias)",null,null,null,null,null,null,null,null,null,null,null,null,null,null,null,null,null,null,null,null,null,"4082101"]
[4083,"Técnico de Análise e Programação (IEFP)",101,"Técnico de Análise e Programação (IEFP)",null,null,null,null,null,null,null,null,null,null,null,null,null,null,null,null,null,null,null,null,null,"4083101"]
[4084,"Técnico de Ensino Profissional (DGRSP)",101,"Técnico de Ensino Profissional (DGRSP)",null,null,null,null,null,null,null,null,null,null,null,null,null,null,null,null,null,null,null,null,null,"4084101"]
[4085,"Técnico de Formação (IEFP)",101,"Técnico de Formação (IEFP)",null,null,null,null,null,null,null,null,null,null,null,null,null,null,null,null,null,null,null,null,null,"4085101"]
[4086,"Técnico de Informática",101,"Técnico de Informática Grau 3 Nível 2",null,null,null,null,null,null,null,null,null,null,null,null,null,null,null,null,null,null,null,null,null,"4086101"]
[4086,"Técnico de Informática",102,"Técnico de Informática Grau 3 Nível 1",null,null,null,null,null,null,null,null,null,null,null,null,null,null,null,null,null,null,null,null,null,"4086102"]
[4086,"Técnico de Informática",103,"Técnico de Informática Grau 2 Nível 2",null,null,null,null,null,null,null,null,null,null,null,null,null,null,null,null,null,null,null,null,null,"4086103"]
[4086,"Técnico de Informática",104,"Técnico de Informática Grau 2 Nível 1",null,null,null,null,null,null,null,null,null,null,null,null,null,null,null,null,null,null,null,null,null,{"$f":"A387&C387","v":"4086104"}]
[4086,"Técnico de Informática",105,"Técnico de Informática Grau 1 Nível 3",null,null,null,null,null,null,null,null,null,null,null,null,null,null,null,null,null,null,null,null,null,"4086105"]
[4086,"Técnico de Informática",106,"Técnico de Informática Grau 1 Nível 2",null,null,null,null,null,null,null,null,null,null,null,null,null,null,null,null,null,null,null,null,null,"4086106"]
[4086,"Técnico de Informática",107,"Técnico de Informática Grau 1 Nível 1",null,null,null,null,null,null,null,null,null,null,null,null,null,null,null,null,null,null,null,null,null,"4086107"]
[4086,"Técnico de Informática",108,"Técnico de Informática Estagiário",null,null,null,null,null,null,null,null,null,null,null,null,null,null,null,null,null,null,null,null,null,"4086108"]
[4086,"Técnico de Informática",109,"Técnico de Informática Adjunto Nível 3",null,null,null,null,null,null,null,null,null,null,null,null,null,null,null,null,null,null,null,null,null,"4086109"]
[4086,"Técnico de Informática",110,"Técnico de Informática Adjunto Nível 2",null,null,null,null,null,null,null,null,null,null,null,null,null,null,null,null,null,null,null,null,null,"4086110"]
[4086,"Técnico de Informática",111,"Técnico de Informática Adjunto Nível 1",null,null,null,null,null,null,null,null,null,null,null,null,null,null,null,null,null,null,null,null,null,"4086111"]
[4086,"Técnico de Informática",112,"Técnico de Informática Adjunto Estagiário",null,null,null,null,null,null,null,null,null,null,null,null,null,null,null,null,null,null,null,null,null,"4086112"]
[4087,"Técnico de Orientação Escolar e Social",101,"Técnico de Orientação Escolar e Social",null,null,null,null,null,null,null,null,null,null,null,null,null,null,null,null,null,null,null,null,null,"4087101"]
[4088,"Técnico de Sistemas (IEFP)",101,"Técnico de Sistemas (IEFP)",null,null,null,null,null,null,null,null,null,null,null,null,null,null,null,null,null,null,null,null,null,"4088101"]
[4089,"Técnico Profissional (INE)",101,"Técnico Profissional (INE)",null,null,null,null,null,null,null,null,null,null,null,null,null,null,null,null,null,null,null,null,null,"4089101"]
[4090,"Técnico Profissional de Reinserção Social",101,"Técnico Profissional Especialista Principal",null,null,null,null,null,null,null,null,null,null,null,null,null,null,null,null,null,null,null,null,null,"4090101"]
[4090,"Técnico Profissional de Reinserção Social",102,"Técnico Profissional Especialista",null,null,null,null,null,null,null,null,null,null,null,null,null,null,null,null,null,null,null,null,null,"4090102"]
[4090,"Técnico Profissional de Reinserção Social",103,"Técnico Profissional Principal",null,null,null,null,null,null,null,null,null,null,null,null,null,null,null,null,null,null,null,null,null,"4090103"]
[4090,"Técnico Profissional de Reinserção Social",104,"Técnico Profissional de 1ª classe",null,null,null,null,null,null,null,null,null,null,null,null,null,null,null,null,null,null,null,null,null,"4090104"]
[4090,"Técnico Profissional de Reinserção Social",105,"Técnico Profissional de 2ª classe",null,null,null,null,null,null,null,null,null,null,null,null,null,null,null,null,null,null,null,null,null,"4090105"]
[4090,"Técnico Profissional de Reinserção Social",106,"Estagiário",null,null,null,null,null,null,null,null,null,null,null,null,null,null,null,null,null,null,null,null,null,"4090106"]
[4091,"Técnico Superior (IEFP)",101,"Técnico Superior (IEFP)",null,null,null,null,null,null,null,null,null,null,null,null,null,null,null,null,null,null,null,null,null,"4091101"]
[4092,"Técnico Superior de Emprego (IEFP)",101,"Técnico Superior de Emprego (IEFP)",null,null,null,null,null,null,null,null,null,null,null,null,null,null,null,null,null,null,null,null,null,"4092101"]
[4093,"Técnico Superior de Formação (IEFP)",101,"Técnico Superior de Formação (IEFP)",null,null,null,null,null,null,null,null,null,null,null,null,null,null,null,null,null,null,null,null,null,"4093101"]
[4094,"Técnico Superior de Informações (SIS/SIED)",101,"Técnico Superior de Informações (SIS/SIED)",null,null,null,null,null,null,null,null,null,null,null,null,null,null,null,null,null,null,null,null,null,"4094101"]
[4095,"Técnico Superior de Reeducação",101,"Assessor Principal",null,null,null,null,null,null,null,null,null,null,null,null,null,null,null,null,null,null,null,null,null,"4095101"]
[4095,"Técnico Superior de Reeducação",102,"Assessor",null,null,null,null,null,null,null,null,null,null,null,null,null,null,null,null,null,null,null,null,null,"4095102"]
[4095,"Técnico Superior de Reeducação",103,"Técnico Superior Principal",null,null,null,null,null,null,null,null,null,null,null,null,null,null,null,null,null,null,null,null,null,"4095103"]
[4095,"Técnico Superior de Reeducação",104,"Técnico Superior de 1ª Classe",null,null,null,null,null,null,null,null,null,null,null,null,null,null,null,null,null,null,null,null,null,"4095104"]
[4095,"Técnico Superior de Reeducação",105,"Técnico Superior de 2ª Classe",null,null,null,null,null,null,null,null,null,null,null,null,null,null,null,null,null,null,null,null,null,"4095105"]
[4095,"Técnico Superior de Reeducação",106,"Estagiário",null,null,null,null,null,null,null,null,null,null,null,null,null,null,null,null,null,null,null,null,null,"4095106"]
[4096,"Técnico Superior de Reinserção Social",101,"Assessor Principal de Reinserção Social",null,null,null,null,null,null,null,null,null,null,null,null,null,null,null,null,null,null,null,null,null,"4096101"]
[4096,"Técnico Superior de Reinserção Social",102,"Assessor de Reinserção Social",null,null,null,null,null,null,null,null,null,null,null,null,null,null,null,null,null,null,null,null,null,"4096102"]
[4096,"Técnico Superior de Reinserção Social",103,"Técnico Superior Principal de Reinserção Social",null,null,null,null,null,null,null,null,null,null,null,null,null,null,null,null,null,null,null,null,null,"4096103"]
[4096,"Técnico Superior de Reinserção Social",104,"Técnico Superior de 1ª Classe de Reinserção Social",null,null,null,null,null,null,null,null,null,null,null,null,null,null,null,null,null,null,null,null,null,"4096104"]
[4096,"Técnico Superior de Reinserção Social",105,"Técnico Superior de 2ª Classe de Reinserção Social",null,null,null,null,null,null,null,null,null,null,null,null,null,null,null,null,null,null,null,null,null,"4096105"]
[4096,"Técnico Superior de Reinserção Social",106,"Estagiário",null,null,null,null,null,null,null,null,null,null,null,null,null,null,null,null,null,null,null,null,null,"4096106"]
[4097,"Técnico Superior de Saúde",101,"Assessor Superior",null,null,null,null,null,null,null,null,null,null,null,null,null,null,null,null,null,null,null,null,null,"4097101"]
[4097,"Técnico Superior de Saúde",102,"Assessor",null,null,null,null,null,null,null,null,null,null,null,null,null,null,null,null,null,null,null,null,null,"4097102"]
[4097,"Técnico Superior de Saúde",103,"Assistente Principal",null,null,null,null,null,null,null,null,null,null,null,null,null,null,null,null,null,null,null,null,null,"4097103"]
[4097,"Técnico Superior de Saúde",104,"Assistente",null,null,null,null,null,null,null,null,null,null,null,null,null,null,null,null,null,null,null,null,null,"4097104"]
[4097,"Técnico Superior de Saúde",105,"Estagiário (3º e 4º Ano)",null,null,null,null,null,null,null,null,null,null,null,null,null,null,null,null,null,null,null,null,null,"4097105"]
[4097,"Técnico Superior de Saúde",106,"Estagiário (1º e 2º Ano)",null,null,null,null,null,null,null,null,null,null,null,null,null,null,null,null,null,null,null,null,null,"4097106"]
[4098,"Técnico Verificador (Tribunal de Contas)",101,"Técnico Verificador Especialista Principal",null,null,null,null,null,null,null,null,null,null,null,null,null,null,null,null,null,null,null,null,null,"4098101"]
[4098,"Técnico Verificador (Tribunal de Contas)",102,"Técnico Verificador Especialista",null,null,null,null,null,null,null,null,null,null,null,null,null,null,null,null,null,null,null,null,null,"4098102"]
[4098,"Técnico Verificador (Tribunal de Contas)",103,"Técnico Verificador Principal",null,null,null,null,null,null,null,null,null,null,null,null,null,null,null,null,null,null,null,null,null,"4098103"]
[4098,"Técnico Verificador (Tribunal de Contas)",104,"Técnico verificador de 1ª classe",null,null,null,null,null,null,null,null,null,null,null,null,null,null,null,null,null,null,null,null,null,"4098104"]
[4098,"Técnico Verificador (Tribunal de Contas)",105,"Técnico verificador de 2ª classe",null,null,null,null,null,null,null,null,null,null,null,null,null,null,null,null,null,null,null,null,null,"4098105"]
[4099,"Técnico Verificador Superior (Tribunal de Contas)",101,"Técnico Verificador Assessor Principal",null,null,null,null,null,null,null,null,null,null,null,null,null,null,null,null,null,null,null,null,null,"4099101"]
[4099,"Técnico Verificador Superior (Tribunal de Contas)",102,"Técnico Verificador Assessor",null,null,null,null,null,null,null,null,null,null,null,null,null,null,null,null,null,null,null,null,null,"4099102"]
[4099,"Técnico Verificador Superior (Tribunal de Contas)",103,"Técnico Verificador Superior Principal",null,null,null,null,null,null,null,null,null,null,null,null,null,null,null,null,null,null,null,null,null,"4099103"]
[4099,"Técnico Verificador Superior (Tribunal de Contas)",104,"Técnico Verificador Superior 1º Classe",null,null,null,null,null,null,null,null,null,null,null,null,null,null,null,null,null,null,null,null,null,"4099104"]
[4099,"Técnico Verificador Superior (Tribunal de Contas)",105,"Técnico Verificador Superior 2º Classe",null,null,null,null,null,null,null,null,null,null,null,null,null,null,null,null,null,null,null,null,null,"4099105"]
[4099,"Técnico Verificador Superior (Tribunal de Contas)",106,"Estagiário",null,null,null,null,null,null,null,null,null,null,null,null,null,null,null,null,null,null,null,null,null,"4099106"]
[4100,"Telefonista (IEFP)",101,"Telefonista (IEFP)",null,null,null,null,null,null,null,null,null,null,null,null,null,null,null,null,null,null,null,null,null,"4100101"]
[4101,"Trabalhador altamente qualificado (IEFP)",101,"Trabalhador altamente qualificado (IEFP)",null,null,null,null,null,null,null,null,null,null,null,null,null,null,null,null,null,null,null,null,null,"4101101"]
[4102,"Trabalhador especializado (IEFP)",101,"Trabalhador especializado (IEFP)",null,null,null,null,null,null,null,null,null,null,null,null,null,null,null,null,null,null,null,null,null,"4102101"]
[4103,"Trabalhador indiferenciado (IEFP)",101,"Trabalhador indiferenciado (IEFP)",null,null,null,null,null,null,null,null,null,null,null,null,null,null,null,null,null,null,null,null,null,"4103101"]
[4104,"Trabalhador qualificado (IEFP)",101,"Trabalhador qualificado (IEFP)",null,null,null,null,null,null,null,null,null,null,null,null,null,null,null,null,null,null,null,null,null,"4104101"]
[4105,"Vigilância e Segurança (SEF)",101,"Chefe de Vigilância e Segurança",null,null,null,null,null,null,null,null,null,null,null,null,null,null,null,null,null,null,null,null,null,"4105101"]
[4105,"Vigilância e Segurança (SEF)",102,"Vigilante e Segurança de Nível 1",null,null,null,null,null,null,null,null,null,null,null,null,null,null,null,null,null,null,null,null,null,"4105102"]
[4105,"Vigilância e Segurança (SEF)",103,"Vigilante e Segurança de Nível 2",null,null,null,null,null,null,null,null,null,null,null,null,null,null,null,null,null,null,null,null,null,"4105103"]
[4105,"Vigilância e Segurança (SEF)",104,"Vigilante e Segurança de Nível 3",null,null,null,null,null,null,null,null,null,null,null,null,null,null,null,null,null,null,null,null,null,"4105104"]
[4106,"Vigilante da Natureza",101,"Vigilante da Natureza Espec. Principal",null,null,null,null,null,null,null,null,null,null,null,null,null,null,null,null,null,null,null,null,null,"4106101"]
[4106,"Vigilante da Natureza",102,"Vigilante da Natureza Especialista",null,null,null,null,null,null,null,null,null,null,null,null,null,null,null,null,null,null,null,null,null,"4106102"]
[4106,"Vigilante da Natureza",103,"Vigilante da Natureza Principal",null,null,null,null,null,null,null,null,null,null,null,null,null,null,null,null,null,null,null,null,null,"4106103"]
[4106,"Vigilante da Natureza",104,"Vigilante da Natureza de 1ª Classe",null,null,null,null,null,null,null,null,null,null,null,null,null,null,null,null,null,null,null,null,null,"4106104"]
[4106,"Vigilante da Natureza",105,"Vigilante da Natureza de 2ª Classe",null,null,null,null,null,null,null,null,null,null,null,null,null,null,null,null,null,null,null,null,null,{"$f":"A451&C451","v":"4106105"}]
[4106,"Vigilante da Natureza",106,"Estagiário",null,null,null,null,null,null,null,null,null,null,null,null,null,null,null,null,null,null,null,null,null,"4106106"]
[4107,"Viveirista",101,"Viveirista Principal",null,null,null,null,null,null,null,null,null,null,null,null,null,null,null,null,null,null,null,null,null,"4107101"]
[4107,"Viveirista",102,"Viveirista ",null,null,null,null,null,null,null,null,null,null,null,null,null,null,null,null,null,null,null,null,null,"4107102"]
[4108,"Inspetor Superior do Trabalho",101,"Inspetor superior principal",null,null,null,null,null,null,null,null,null,null,null,null,null,null,null,null,null,null,null,null,null,"4108101"]
[4108,"Inspetor Superior do Trabalho",102,"Inspetor superior",null,null,null,null,null,null,null,null,null,null,null,null,null,null,null,null,null,null,null,null,null,"4108102"]
[4108,"Inspetor Superior do Trabalho",103,"Inspetor principal",null,null,null,null,null,null,null,null,null,null,null,null,null,null,null,null,null,null,null,null,null,"4108103"]
[4108,"Inspetor Superior do Trabalho",104,"Inspetor",null,null,null,null,null,null,null,null,null,null,null,null,null,null,null,null,null,null,null,null,null,"4108104"]
[4108,"Inspetor Superior do Trabalho",105,"Estagiário",null,null,null,null,null,null,null,null,null,null,null,null,null,null,null,null,null,null,null,null,null,"4108105"]
[4109,"Quadro do Pessoal Militarizado da Marinha",101,"Quadro do Pessoal Militarizado da Marinha",null,null,null,null,null,null,null,null,null,null,null,null,null,null,null,null,null,null,null,null,null,"4109101"]
[4110,"Outras carreiras das administrações portuárias",101,"Outras carreiras das administrações portuárias",null,null,null,null,null,null,null,null,null,null,null,null,null,null,null,null,null,null,null,null,null,"4110101"]
[4111,"Consultor Coordenador (CEGER)",101,"Não aplicável",null,null,null,null,null,null,null,null,null,null,null,null,null,null,null,null,null,null,null,null,null,"4111101"]
[4112,"Técnico de apoio (CEGER)",101,"Não aplicável",null,null,null,null,null,null,null,null,null,null,null,null,null,null,null,null,null,null,null,null,null,"4112101"]
[4113,"Polícia Municipal",101,"Graduado-Coordenador",null,null,null,null,null,null,null,null,null,null,null,null,null,null,null,null,null,null,null,null,null,"4113101"]
[4113,"Polícia Municipal",102,"Agente Graduado Principal",null,null,null,null,null,null,null,null,null,null,null,null,null,null,null,null,null,null,null,null,null,"4113102"]
[4113,"Polícia Municipal",103,"Agente Graduado",null,null,null,null,null,null,null,null,null,null,null,null,null,null,null,null,null,null,null,null,null,"4113103"]
[4113,"Polícia Municipal",104,"Agente Municipal de 1ª classe",null,null,null,null,null,null,null,null,null,null,null,null,null,null,null,null,null,null,null,null,null,"4113104"]
[4113,"Polícia Municipal",105,"Agente Municipal de 2ª classe",null,null,null,null,null,null,null,null,null,null,null,null,null,null,null,null,null,null,null,null,null,"4113105"]
[4113,"Polícia Municipal",106,"Estagiário",null,null,null,null,null,null,null,null,null,null,null,null,null,null,null,null,null,null,null,null,null,"4113106"]
[4114,"Marinheiro de Tráfego Fluvial",101,"Marinheiro de Tráfego Fluvial",null,null,null,null,null,null,null,null,null,null,null,null,null,null,null,null,null,null,null,null,null,"4114101"]
[5001,"Agente de Verificação Técnica",101,"Agente de Verificação Técnica",null,null,null,null,null,null,null,null,null,null,null,null,null,null,null,null,null,null,null,null,null,"5001101"]
[5002,"Assistente Religioso",101,"Assistente Religioso",null,null,null,null,null,null,null,null,null,null,null,null,null,null,null,null,null,null,null,null,null,"5002101"]
[5003,"Capelão hospitalar",101,"Não aplicável",null,null,null,null,null,null,null,null,null,null,null,null,null,null,null,null,null,null,null,null,null,"5003101"]
[5004,"Chefe de Armazém",101,"Chefe de Armazém",null,null,null,null,null,null,null,null,null,null,null,null,null,null,null,null,null,null,null,null,null,"5004101"]
[5005,"Chefe de Serviços de Administração Escolar",101,"Chefe de Serviços de Administração Escolar",null,null,null,null,null,null,null,null,null,null,null,null,null,null,null,null,null,null,null,null,null,"5005101"]
[5006,"Contramestre (Arsenal do Alfeite)",101,"Contramestre (Arsenal do Alfeite)",null,null,null,null,null,null,null,null,null,null,null,null,null,null,null,null,null,null,null,null,null,"5006101"]
[5007,"Encarregado de brigada de serviços de higiene ou limpeza",101,"Encarregado de brigada de serviços de higiene ou limpeza",null,null,null,null,null,null,null,null,null,null,null,null,null,null,null,null,null,null,null,null,null,"5007101"]
[5008,"Encarregado de movimento (chefe de tráfego)",101,"Encarregado de movimento (chefe de tráfego)",null,null,null,null,null,null,null,null,null,null,null,null,null,null,null,null,null,null,null,null,null,"5008101"]
[5009,"Encarregado de Pessoal Auxiliar",101,"Encarregado de Pessoal Auxiliar",null,null,null,null,null,null,null,null,null,null,null,null,null,null,null,null,null,null,null,null,null,"5009101"]
[5010,"Encarregado de Serviços Gerais",101,"Encarregado de Serviços Gerais",null,null,null,null,null,null,null,null,null,null,null,null,null,null,null,null,null,null,null,null,null,"5010101"]
[5011,"Encarregado de Sector",101,"Encarregado de Sector",null,null,null,null,null,null,null,null,null,null,null,null,null,null,null,null,null,null,null,null,null,"5011101"]
[5012,"Enfermeiro de 3ª classe",101,"Enfermeiro de 3ª classe",null,null,null,null,null,null,null,null,null,null,null,null,null,null,null,null,null,null,null,null,null,"5012101"]
[5013,"Inspetor Adjunto",101,"Inspector-Adjunto Especial Principal",null,null,null,null,null,null,null,null,null,null,null,null,null,null,null,null,null,null,null,null,null,"5013101"]
[5013,"Inspetor Adjunto",102,"Inspector-Adjunto Especialista",null,null,null,null,null,null,null,null,null,null,null,null,null,null,null,null,null,null,null,null,null,"5013102"]
[5013,"Inspetor Adjunto",103,"Inspector-Adjunto Principal",null,null,null,null,null,null,null,null,null,null,null,null,null,null,null,null,null,null,null,null,null,"5013103"]
[5013,"Inspetor Adjunto",104,"Inspector-Adjunto",null,null,null,null,null,null,null,null,null,null,null,null,null,null,null,null,null,null,null,null,null,"5013104"]
[5013,"Inspetor Adjunto",105,"Estagiário",null,null,null,null,null,null,null,null,null,null,null,null,null,null,null,null,null,null,null,null,null,"5013105"]
[5014,"Maquinista Teatral-Chefe (AL)",101,"Maquinista Teatral-Chefe (AL)",null,null,null,null,null,null,null,null,null,null,null,null,null,null,null,null,null,null,null,null,null,"5014101"]
[5015,"Médico de clínica geral ou de valência",101,"Médico de clínica geral ou de valência",null,null,null,null,null,null,null,null,null,null,null,null,null,null,null,null,null,null,null,null,null,"5015101"]
[5016,"Médico Escolar",101,"Médico Escolar",null,null,null,null,null,null,null,null,null,null,null,null,null,null,null,null,null,null,null,null,null,"5016101"]
[5017,"Operário (Arsenal do Alfeite)",101,"Operário (Arsenal do Alfeite)",null,null,null,null,null,null,null,null,null,null,null,null,null,null,null,null,null,null,null,null,null,"5017101"]
[5018,"Parteira",101,"Parteira",null,null,null,null,null,null,null,null,null,null,null,null,null,null,null,null,null,null,null,null,null,"5018101"]
[5019,"Sonoplasta-Chefe",101,"Sonoplasta-Chefe",null,null,null,null,null,null,null,null,null,null,null,null,null,null,null,null,null,null,null,null,null,"5019101"]
[5020,"Subinspetor",101,"Subinspetor",null,null,null,null,null,null,null,null,null,null,null,null,null,null,null,null,null,null,null,null,null,"5020101"]
[5021,"Técnico (Cultura)",101,"Técnico Especialista Principal",null,null,null,null,null,null,null,null,null,null,null,null,null,null,null,null,null,null,null,null,null,"5021101"]
[5021,"Técnico (Cultura)",102,"Técnico de 1ª Classe",null,null,null,null,null,null,null,null,null,null,null,null,null,null,null,null,null,null,null,null,null,"5021102"]
[5021,"Técnico (Cultura)",103,"Técnico de 2ª Classe",null,null,null,null,null,null,null,null,null,null,null,null,null,null,null,null,null,null,null,null,null,"5021103"]
[5022,"Técnico de Apoio Fabril (Arsenal do Alfeite)",101,"Técnico de Apoio Fabril Especialista",null,null,null,null,null,null,null,null,null,null,null,null,null,null,null,null,null,null,null,null,null,"5022101"]
[5022,"Técnico de Apoio Fabril (Arsenal do Alfeite)",102,"Técnico de Apoio Fabril Principal",null,null,null,null,null,null,null,null,null,null,null,null,null,null,null,null,null,null,null,null,null,"5022102"]
[5022,"Técnico de Apoio Fabril (Arsenal do Alfeite)",103,"Técnico de Apoio Fabril",null,null,null,null,null,null,null,null,null,null,null,null,null,null,null,null,null,null,null,null,null,"5022103"]
[5023,"Técnico de Crédito Público (IGCP)",101,"Subdirector de crédito público",null,null,null,null,null,null,null,null,null,null,null,null,null,null,null,null,null,null,null,null,null,"5023101"]
[5023,"Técnico de Crédito Público (IGCP)",102,"Secretário-coordenador de crédito público",null,null,null,null,null,null,null,null,null,null,null,null,null,null,null,null,null,null,null,null,null,"5023102"]
[5023,"Técnico de Crédito Público (IGCP)",103,"Secretário de crédito público principal",null,null,null,null,null,null,null,null,null,null,null,null,null,null,null,null,null,null,null,null,null,"5023103"]
[5023,"Técnico de Crédito Público (IGCP)",104,"Secretário de crédito público de 1ª classe",null,null,null,null,null,null,null,null,null,null,null,null,null,null,null,null,null,null,null,null,null,"5023104"]
[5023,"Técnico de Crédito Público (IGCP)",105,"Secretário de crédito público de 2ª classe",null,null,null,null,null,null,null,null,null,null,null,null,null,null,null,null,null,null,null,null,null,"5023105"]
[5023,"Técnico de Crédito Público (IGCP)",106,"Secretário de crédito público estagiário",null,null,null,null,null,null,null,null,null,null,null,null,null,null,null,null,null,null,null,null,null,"5023106"]
[5024,"Técnico de Verificação de Produtos de Pesca",101,"Verificador-Chefe",null,null,null,null,null,null,null,null,null,null,null,null,null,null,null,null,null,null,null,null,null,"5024101"]
[5024,"Técnico de Verificação de Produtos de Pesca",102,"Verificador Principal",null,null,null,null,null,null,null,null,null,null,null,null,null,null,null,null,null,null,null,null,null,"5024102"]
[5024,"Técnico de Verificação de Produtos de Pesca",103,"Verificador de 1ª Classe",null,null,null,null,null,null,null,null,null,null,null,null,null,null,null,null,null,null,null,null,null,"5024103"]
[5024,"Técnico de Verificação de Produtos de Pesca",104,"Verificador de 2ª Classe",null,null,null,null,null,null,null,null,null,null,null,null,null,null,null,null,null,null,null,null,null,"5024104"]
[5024,"Técnico de Verificação de Produtos de Pesca",105,"Verificador Auxiliar de 1ª Classe",null,null,null,null,null,null,null,null,null,null,null,null,null,null,null,null,null,null,null,null,null,"5024105"]
[5024,"Técnico de Verificação de Produtos de Pesca",106,"Verificador Auxiliar de 2ª Classe",null,null,null,null,null,null,null,null,null,null,null,null,null,null,null,null,null,null,null,null,null,"5024106"]
[5025,"Técnico Industrial (Arsenal do Alfeite)",101,"Técnico Industrial Principal",null,null,null,null,null,null,null,null,null,null,null,null,null,null,null,null,null,null,null,null,null,"5025101"]
[5025,"Técnico Industrial (Arsenal do Alfeite)",102,"Técnico Industrial",null,null,null,null,null,null,null,null,null,null,null,null,null,null,null,null,null,null,null,null,null,"5025102"]
[5026,"Encarregado de Parque de Viaturas ",101,"Encarregado de Parque de Viaturas ",null,null,null,null,null,null,null,null,null,null,null,null,null,null,null,null,null,null,null,null,null,{"$f":"A515&C515","v":"5026101"}]
[5027,"Encarregado de Serviços Domésticos",101,"Encarregado de Serviços Domésticos",null,null,null,null,null,null,null,null,null,null,null,null,null,null,null,null,null,null,null,null,null,"5027101"]
[5028,"Observador Geofísico",101,"Observador Especialista de 1ª classe",null,null,null,null,null,null,null,null,null,null,null,null,null,null,null,null,null,null,null,null,null,"5028101"]
[5028,"Observador Geofísico",102,"Observador Especialista",null,null,null,null,null,null,null,null,null,null,null,null,null,null,null,null,null,null,null,null,null,"5028102"]
[5028,"Observador Geofísico",103,"Observador de 1ª classe",null,null,null,null,null,null,null,null,null,null,null,null,null,null,null,null,null,null,null,null,null,"5028103"]
[5028,"Observador Geofísico",104,"Observador de 2ª classe ",null,null,null,null,null,null,null,null,null,null,null,null,null,null,null,null,null,null,null,null,null,"5028104"]
[5028,"Observador Geofísico",105,"Estagiário",null,null,null,null,null,null,null,null,null,null,null,null,null,null,null,null,null,null,null,null,null,"5028105"]
[5029,"Observador Meteorológico",101,"Observador Especialista de 1ª classe",null,null,null,null,null,null,null,null,null,null,null,null,null,null,null,null,null,null,null,null,null,"5029101"]
[5029,"Observador Meteorológico",102,"Observador Especialista",null,null,null,null,null,null,null,null,null,null,null,null,null,null,null,null,null,null,null,null,null,"5029102"]
[5029,"Observador Meteorológico",103,"Observador de 1ª classe",null,null,null,null,null,null,null,null,null,null,null,null,null,null,null,null,null,null,null,null,null,"5029103"]
[5029,"Observador Meteorológico",104,"Observador de 2ª classe ",null,null,null,null,null,null,null,null,null,null,null,null,null,null,null,null,null,null,null,null,null,"5029104"]
[5029,"Observador Meteorológico",105,"Estagiário",null,null,null,null,null,null,null,null,null,null,null,null,null,null,null,null,null,null,null,null,null,"5029105"]
[5030,"Técnico de Fotografia e Radiografia para a Conservação (DGPC)",101,"Técnico Especialista Principal",null,null,null,null,null,null,null,null,null,null,null,null,null,null,null,null,null,null,null,null,null,"5030101"]
[5030,"Técnico de Fotografia e Radiografia para a Conservação (DGPC)",102,"Técnico Especialista",null,null,null,null,null,null,null,null,null,null,null,null,null,null,null,null,null,null,null,null,null,"5030102"]
[5030,"Técnico de Fotografia e Radiografia para a Conservação (DGPC)",103,"Técnico Principal",null,null,null,null,null,null,null,null,null,null,null,null,null,null,null,null,null,null,null,null,null,"5030103"]
[5030,"Técnico de Fotografia e Radiografia para a Conservação (DGPC)",104,"Técnico de 1ª Classe",null,null,null,null,null,null,null,null,null,null,null,null,null,null,null,null,null,null,null,null,null,"5030104"]
[5030,"Técnico de Fotografia e Radiografia para a Conservação (DGPC)",105,"Técnico de 2ª Classe",null,null,null,null,null,null,null,null,null,null,null,null,null,null,null,null,null,null,null,null,null,"5030105"]
[5030,"Técnico de Fotografia e Radiografia para a Conservação (DGPC)",106,"Estagiário",null,null,null,null,null,null,null,null,null,null,null,null,null,null,null,null,null,null,null,null,null,"5030106"]
[5031,"Encarregado de Guardaria (DGPC)",101,"Encarregado de Guardaria (DGPC)",null,null,null,null,null,null,null,null,null,null,null,null,null,null,null,null,null,null,null,null,null,"5031101"]
[5032,"Capataz Agrícola (educação não superior)",101,"Capataz Agrícola (educação não superior)",null,null,null,null,null,null,null,null,null,null,null,null,null,null,null,null,null,null,null,null,null,"5032101"]
[5033,"Odontologista (SNS)",101,"Odontologista (SNS)",null,null,null,null,null,null,null,null,null,null,null,null,null,null,null,null,null,null,null,null,null,"5033101"]
[5034,"Tesoureiro-Chefe (Lisboa / Porto) (AL)",101,"Tesoureiro-Chefe (Lisboa / Porto) (AL)",null,null,null,null,null,null,null,null,null,null,null,null,null,null,null,null,null,null,null,null,null,"5034101"]
[5035,"Chefe de Serviços de Limpeza (AL)",101,"Chefe de Serviços de Limpeza (AL)",null,null,null,null,null,null,null,null,null,null,null,null,null,null,null,null,null,null,null,null,null,"5035101"]
[5036,"Chefe de Transportes Mecânicos (AL)",101,"Chefe de Transportes Mecânicos (AL)",null,null,null,null,null,null,null,null,null,null,null,null,null,null,null,null,null,null,null,null,null,"5036101"]
[5037,"Pessoal Auxiliar (AL)",101,"Pessoal Auxiliar (AL)",null,null,null,null,null,null,null,null,null,null,null,null,null,null,null,null,null,null,null,null,null,"5037101"]
[5038,"Encarregado de Brigada de Limpa-Colectores (AL)",101,"Encarregado",null,null,null,null,null,null,null,null,null,null,null,null,null,null,null,null,null,null,null,null,null,"5038101"]
[5039,"Chefe de Serviço de Fiscalização (AL)",101,"Chefe de Serviço de Fiscalização (AL)",null,null,null,null,null,null,null,null,null,null,null,null,null,null,null,null,null,null,null,null,null,"5039101"]
[5040,"Ajudante de Notariado (Lisboa) (AL)",101,"Ajudante de Notariado (Lisboa) (AL)",null,null,null,null,null,null,null,null,null,null,null,null,null,null,null,null,null,null,null,null,null,"5040101"]
[5041,"Chefe de Polícia Florestal (Lisboa) (AL)",101,"Chefe de Polícia Florestal (Lisboa) (AL)",null,null,null,null,null,null,null,null,null,null,null,null,null,null,null,null,null,null,null,null,null,"5041101"]
[5042,"Subchefe de Polícia Florestal (Lisboa) (AL)",101,"Subchefe de Polícia Florestal (Lisboa) (AL)",null,null,null,null,null,null,null,null,null,null,null,null,null,null,null,null,null,null,null,null,null,"5042101"]
[5043,"Encarregado de Internato (AL)",101,"Encarregado de Internato (AL)",null,null,null,null,null,null,null,null,null,null,null,null,null,null,null,null,null,null,null,null,null,"5043101"]
[5044,"Técnico de Património (DGPC)",101,"Subdirector de Gestão Patrimonial",null,null,null,null,null,null,null,null,null,null,null,null,null,null,null,null,null,null,null,null,null,"5044101"]
[5044,"Técnico de Património (DGPC)",102,"Perito de Gestão Patrimonial de 1ª Classe",null,null,null,null,null,null,null,null,null,null,null,null,null,null,null,null,null,null,null,null,null,"5044102"]
[5044,"Técnico de Património (DGPC)",103,"Perito de Gestão Patrimonial de 2ª Classe",null,null,null,null,null,null,null,null,null,null,null,null,null,null,null,null,null,null,null,null,null,"5044103"]
[5044,"Técnico de Património (DGPC)",104,"Técnico de Gestão Patrimonial de 1ª Classe",null,null,null,null,null,null,null,null,null,null,null,null,null,null,null,null,null,null,null,null,null,"5044104"]
[5044,"Técnico de Património (DGPC)",105,"Técnico de Gestão Patrimonial de 2ª Classe",null,null,null,null,null,null,null,null,null,null,null,null,null,null,null,null,null,null,null,null,null,"5044105"]
[5044,"Técnico de Património (DGPC)",106,"Auxiliar de Gestão Patrimonial",null,null,null,null,null,null,null,null,null,null,null,null,null,null,null,null,null,null,null,null,null,"5044106"]
[5044,"Técnico de Património (DGPC)",107,"Estagiário",null,null,null,null,null,null,null,null,null,null,null,null,null,null,null,null,null,null,null,null,null,"5044107"]
[5045,"Inspetor Técnico do Trabalho",101,"Inspetor técnico especialista principal",null,null,null,null,null,null,null,null,null,null,null,null,null,null,null,null,null,null,null,null,null,"5045101"]
[5045,"Inspetor Técnico do Trabalho",102,"Inspetor técnico especialista",null,null,null,null,null,null,null,null,null,null,null,null,null,null,null,null,null,null,null,null,null,"5045102"]
[5045,"Inspetor Técnico do Trabalho",103,"Inspetor técnico principal",null,null,null,null,null,null,null,null,null,null,null,null,null,null,null,null,null,null,null,null,null,"5045103"]
[5046,"Inspetor-adjunto do Trabalho",101,"Inspetor-adjunto especialista principal",null,null,null,null,null,null,null,null,null,null,null,null,null,null,null,null,null,null,null,null,null,"5046101"]
[5046,"Inspetor-adjunto do Trabalho",102,"Inspetor-adjunto especialista",null,null,null,null,null,null,null,null,null,null,null,null,null,null,null,null,null,null,null,null,null,"5046102"]
[5047,"Ajudante Técnico Farmácia (LMPQF)",101,"Ajudante Técnico Farmácia (LMPQF)",null,null,null,null,null,null,null,null,null,null,null,null,null,null,null,null,null,null,null,null,null,"5047101"]
[5048,"Educadora de Infância (OGFE) ",101,"Educadora de Infância (OGFE) ",null,null,null,null,null,null,null,null,null,null,null,null,null,null,null,null,null,null,null,null,null,"5048101"]
[5049,"Técnico Comercial (OGFE)",101,"Técnico Comercial (OGFE)",null,null,null,null,null,null,null,null,null,null,null,null,null,null,null,null,null,null,null,null,null,"5049101"]
[5050,"Técnico Físico (OGFE)",101,"Técnico Físico (OGFE)",null,null,null,null,null,null,null,null,null,null,null,null,null,null,null,null,null,null,null,null,null,"5050101"]
[5051,"Técnico Químico Auxiliar (OGFE)",101,"Técnico Químico Auxiliar (OGFE)",null,null,null,null,null,null,null,null,null,null,null,null,null,null,null,null,null,null,null,null,null,"5051101"]
[5052,"Controlador de Qualidade (OGFE)",101,"Controlador de Qualidade (OGFE)",null,null,null,null,null,null,null,null,null,null,null,null,null,null,null,null,null,null,null,null,null,"5052101"]
[5053,"Especialista de Informática (OGFE)",101,"Especialista de Informática (OGFE)",null,null,null,null,null,null,null,null,null,null,null,null,null,null,null,null,null,null,null,null,null,"5053101"]
[5054,"Técnico de Informática (OGFE)",101,"Técnico de Informática (OGFE)",null,null,null,null,null,null,null,null,null,null,null,null,null,null,null,null,null,null,null,null,null,"5054101"]
[5055,"Operador Chefe (OGFE)",101,"Operador Chefe (OGFE)",null,null,null,null,null,null,null,null,null,null,null,null,null,null,null,null,null,null,null,null,null,"5055101"]
[5056,"Operador Principal (OGFE)",101,"Operador Principal (OGFE)",null,null,null,null,null,null,null,null,null,null,null,null,null,null,null,null,null,null,null,null,null,"5056101"]
[5057,"Programador de Aplicações (OGFE)",101,"Programador de Aplicações (OGFE)",null,null,null,null,null,null,null,null,null,null,null,null,null,null,null,null,null,null,null,null,null,"5057101"]
[5058,"Programador (OGME)",101,"Programador (OGME)",null,null,null,null,null,null,null,null,null,null,null,null,null,null,null,null,null,null,null,null,null,"5058101"]
[5059,"Prospetor de Mercado (MM)",101,"Prospetor de Mercado (MM)",null,null,null,null,null,null,null,null,null,null,null,null,null,null,null,null,null,null,null,null,null,"5059101"]
[5060,"Analista Sistema (MM)",101,"Analista Sistema (MM)",null,null,null,null,null,null,null,null,null,null,null,null,null,null,null,null,null,null,null,null,null,"5060101"]
[5061,"Operador de Consola (MM)",101,"Operador de Consola (MM)",null,null,null,null,null,null,null,null,null,null,null,null,null,null,null,null,null,null,null,null,null,"5061101"]
[5062,"Programador de Sistemas (MM)",101,"Programador de Sistemas (MM)",null,null,null,null,null,null,null,null,null,null,null,null,null,null,null,null,null,null,null,null,null,"5062101"]
[5063,"Técnico Equiparado (MM)",101,"Técnico Equiparado (MM)",null,null,null,null,null,null,null,null,null,null,null,null,null,null,null,null,null,null,null,null,null,"5063101"]
[5064,"Encarregado de Residência (LNEC)",101,"Encarregado de Residência (LNEC)",null,null,null,null,null,null,null,null,null,null,null,null,null,null,null,null,null,null,null,null,null,"5064101"]
[5065,"Apoio à Investigação Criminal (PJ) - Especialista superior",101,"Especialista superior",null,null,null,null,null,null,null,null,null,null,null,null,null,null,null,null,null,null,null,null,null,"5065101"]
[5065,"Apoio à Investigação Criminal (PJ) - Especialista superior",102,"Especialista superior estagiário",null,null,null,null,null,null,null,null,null,null,null,null,null,null,null,null,null,null,null,null,null,"5065102"]
[5066,"Apoio à Investigação Criminal (PJ) - Especialista",101,"Especialista",null,null,null,null,null,null,null,null,null,null,null,null,null,null,null,null,null,null,null,null,null,"5066101"]
[5066,"Apoio à Investigação Criminal (PJ) - Especialista",102,"Especialista estagiário",null,null,null,null,null,null,null,null,null,null,null,null,null,null,null,null,null,null,null,null,null,{"$f":"A579&C579","v":"5066102"}]
[5067,"Apoio à Investigação Criminal (PJ) - Especialista adjunto",101,"Especialista adjunto",null,null,null,null,null,null,null,null,null,null,null,null,null,null,null,null,null,null,null,null,null,"5067101"]
[5067,"Apoio à Investigação Criminal (PJ) - Especialista adjunto",102,"Especialista adjunto estagiário",null,null,null,null,null,null,null,null,null,null,null,null,null,null,null,null,null,null,null,null,null,"5067102"]
[5068,"Apoio à Investigação Criminal (PJ) - Especialista auxiliar",101,"Especialista auxiliar",null,null,null,null,null,null,null,null,null,null,null,null,null,null,null,null,null,null,null,null,null,"5068101"]
[5068,"Apoio à Investigação Criminal (PJ) - Especialista auxiliar",102,"Especialista auxiliar estagiário",null,null,null,null,null,null,null,null,null,null,null,null,null,null,null,null,null,null,null,null,null,"5068102"]
[5069,"Capelão ",101,"Capelão ",null,null,null,null,null,null,null,null,null,null,null,null,null,null,null,null,null,null,null,null,null,"5069101"]
[5070,"Chefe de mesa",101,"Chefe de mesa",null,null,null,null,null,null,null,null,null,null,null,null,null,null,null,null,null,null,null,null,null,"5070101"]
[5071,"Analista Aduaneiro Auxiliar de Laboratório (AT)",101,"Técnico-Adjunto Especialista de 1ª classe",null,null,null,null,null,null,null,null,null,null,null,null,null,null,null,null,null,null,null,null,null,"5071101"]
[5071,"Analista Aduaneiro Auxiliar de Laboratório (AT)",102,"Técnico-Adjunto Especialista",null,null,null,null,null,null,null,null,null,null,null,null,null,null,null,null,null,null,null,null,null,"5071102"]
[5071,"Analista Aduaneiro Auxiliar de Laboratório (AT)",103,"Técnico-Adjunto Principal",null,null,null,null,null,null,null,null,null,null,null,null,null,null,null,null,null,null,null,null,null,"5071103"]
[5071,"Analista Aduaneiro Auxiliar de Laboratório (AT)",104,"Técnico-Adjunto de 1ª Classe",null,null,null,null,null,null,null,null,null,null,null,null,null,null,null,null,null,null,null,null,null,"5071104"]
[5071,"Analista Aduaneiro Auxiliar de Laboratório (AT)",105,"Técnico-Adjunto de 2ª Classe",null,null,null,null,null,null,null,null,null,null,null,null,null,null,null,null,null,null,null,null,null,"5071105"]
[5071,"Analista Aduaneiro Auxiliar de Laboratório (AT)",106,"Estagiário",null,null,null,null,null,null,null,null,null,null,null,null,null,null,null,null,null,null,null,null,null,"5071106"]
[5072,"Fiscal de Obras",101,"Fiscal de Obras",null,null,null,null,null,null,null,null,null,null,null,null,null,null,null,null,null,null,null,null,null,"5072101"]
[5073,"Fiscal de Obras Públicas",101,"Fiscal de Obras Públicas",null,null,null,null,null,null,null,null,null,null,null,null,null,null,null,null,null,null,null,null,null,"5073101"]
[5074,"Investigação Criminal (PJ)",101,"Agente Motorista",null,null,null,null,null,null,null,null,null,null,null,null,null,null,null,null,null,null,null,null,null,"5074101"]
[5075,"Investigação Tributária",101,"Investigação Tributária",null,null,null,null,null,null,null,null,null,null,null,null,null,null,null,null,null,null,null,null,null,"5075101"]
[5076,"Secretário Aduaneiro",101,"Secretário Aduaneiro Especialista de 1ª classe ",null,null,null,null,null,null,null,null,null,null,null,null,null,null,null,null,null,null,null,null,null,"5076101"]
[5076,"Secretário Aduaneiro",102,"Secretário Aduaneiro Especialista",null,null,null,null,null,null,null,null,null,null,null,null,null,null,null,null,null,null,null,null,null,"5076102"]
[5076,"Secretário Aduaneiro",103,"Secretário Aduaneiro Principal",null,null,null,null,null,null,null,null,null,null,null,null,null,null,null,null,null,null,null,null,null,"5076103"]
[5076,"Secretário Aduaneiro",104,"Secretário Aduaneiro de 1ª Classe",null,null,null,null,null,null,null,null,null,null,null,null,null,null,null,null,null,null,null,null,null,"5076104"]
[5076,"Secretário Aduaneiro",105,"Secretário Aduaneiro de 2ª Classe",null,null,null,null,null,null,null,null,null,null,null,null,null,null,null,null,null,null,null,null,null,"5076105"]
[5076,"Secretário Aduaneiro",106,"Estagiário",null,null,null,null,null,null,null,null,null,null,null,null,null,null,null,null,null,null,null,null,null,"5076106"]
[5077,"Técnico de Administração Tributária Adjunto",101,"Técnico de Administração Tributária-Adjunto Nível 3",null,null,null,null,null,null,null,null,null,null,null,null,null,null,null,null,null,null,null,null,null,"5077101"]
[5077,"Técnico de Administração Tributária Adjunto",102,"Técnico de Administração Tributária-Adjunto Nível 2",null,null,null,null,null,null,null,null,null,null,null,null,null,null,null,null,null,null,null,null,null,"5077102"]
[5077,"Técnico de Administração Tributária Adjunto",103,"Técnico de Administração Tributária-Adjunto Nível 1",null,null,null,null,null,null,null,null,null,null,null,null,null,null,null,null,null,null,null,null,null,"5077103"]
[5077,"Técnico de Administração Tributária Adjunto",104,"Técnico de Administração Tributária-Adjunto Estagiário",null,null,null,null,null,null,null,null,null,null,null,null,null,null,null,null,null,null,null,null,null,"5077104"]
[5078,"Verificador Auxiliar Aduaneiro",101,"Verificador Auxiliar Especialista",null,null,null,null,null,null,null,null,null,null,null,null,null,null,null,null,null,null,null,null,null,"5078101"]
[5078,"Verificador Auxiliar Aduaneiro",102,"Verificador Auxiliar Principal",null,null,null,null,null,null,null,null,null,null,null,null,null,null,null,null,null,null,null,null,null,"5078102"]
[5078,"Verificador Auxiliar Aduaneiro",103,"Verificador Auxiliar de 1ª Classe",null,null,null,null,null,null,null,null,null,null,null,null,null,null,null,null,null,null,null,null,null,"5078103"]
[5078,"Verificador Auxiliar Aduaneiro",104,"Verificador Auxiliar de 2ª Classe",null,null,null,null,null,null,null,null,null,null,null,null,null,null,null,null,null,null,null,null,null,"5078104"]
[5079,"Fiscal de Leituras e Cobranças",101,"Fiscal de Leituras e Cobranças",null,null,null,null,null,null,null,null,null,null,null,null,null,null,null,null,null,null,null,null,null,"5079101"]
[5080,"Fiscal de Serviços de Água e ou Saneamento ou de Serviços de Higiene e Limpeza",101,"Fiscal de Serviços de Água e ou Saneamento ou de Serviços de Higiene e Limpeza",null,null,null,null,null,null,null,null,null,null,null,null,null,null,null,null,null,null,null,null,null,"5080101"]
[5081,"Investigador tributário economista",101,"Investigador tributário economista",null,null,null,null,null,null,null,null,null,null,null,null,null,null,null,null,null,null,null,null,null,"5081101"]
[5082,"Investigador tributário jurista",101,"Investigador tributário jurista",null,null,null,null,null,null,null,null,null,null,null,null,null,null,null,null,null,null,null,null,null,"5082101"]
[7001,"Gabinetes membros Governo - TS",101,"Gabinetes membros Governo - TS",null,null,null,null,null,null,null,null,null,null,null,null,null,null,null,null,null,null,null,null,null,"7001101"]
[7002,"Gabinetes membros Governo - AT",101,"Gabinetes membros Governo - AT",null,null,null,null,null,null,null,null,null,null,null,null,null,null,null,null,null,null,null,null,null,"7002101"]
[7003,"Gabinetes membros Governo - AO",101,"Gabinetes membros Governo - AO",null,null,null,null,null,null,null,null,null,null,null,null,null,null,null,null,null,null,null,null,null,"7003101"]
[7004,"Gabinetes membros Governo - RLEG",101,"Gabinetes membros Governo - RLEG",null,null,null,null,null,null,null,null,null,null,null,null,null,null,null,null,null,null,null,null,null,"7004101"]
[7005,"Chanceler",101,"Chanceler",null,null,null,null,null,null,null,null,null,null,null,null,null,null,null,null,null,null,null,null,null,"7005101"]
[7006,"Juíz de paz",101,"Juíz de paz",null,null,null,null,null,null,null,null,null,null,null,null,null,null,null,null,null,null,null,null,null,"7006101"]
[7007,"Vigilante escolar",101,"Vigilante escolar",null,null,null,null,null,null,null,null,null,null,null,null,null,null,null,null,null,null,null,null,null,"7007101"]
[7008,"Secretário técnico",101,"Secretário técnico",null,null,null,null,null,null,null,null,null,null,null,null,null,null,null,null,null,null,null,null,null,"7008101"]
[7009,"Auditor Fiscal (ANPC)",101,"Auditor Fiscal (ANPC)",null,null,null,null,null,null,null,null,null,null,null,null,null,null,null,null,null,null,null,null,null,"7009101"]
[7010,"Inspetor Continuidade Aeronave",101,"Inspetor Continuidade Aeronave",null,null,null,null,null,null,null,null,null,null,null,null,null,null,null,null,null,null,null,null,null,"7010101"]
[7011,"Mestre (Arsenal do Alfeite)",101,"Mestre (Arsenal do Alfeite)",null,null,null,null,null,null,null,null,null,null,null,null,null,null,null,null,null,null,null,null,null,"7011101"]
[7012,"Diretor Executivo (ACES)",101,"Diretor Executivo (ACES)",null,null,null,null,null,null,null,null,null,null,null,null,null,null,null,null,null,null,null,null,null,"7012101"]
[7013,"Assistente administrativo (Arsenal do Alfeite)",101,"Assistente administrativo (Arsenal do Alfeite)",null,null,null,null,null,null,null,null,null,null,null,null,null,null,null,null,null,null,null,null,null,"7013101"]
[7014,"Apoio técnico (II, IP)",101,"Apoio técnico (II, IP)",null,null,null,null,null,null,null,null,null,null,null,null,null,null,null,null,null,null,null,null,null,"7014101"]
[7015,"Oficiais de Registo e Notariado ",101,"Chefe de secção",null,null,null,null,null,null,null,null,null,null,null,null,null,null,null,null,null,null,null,null,null,"7015101"]
[7016,"Adjunto de Exploração (administrações portuárias)",101,"Adjunto de Exploração (administrações portuárias)",null,null,null,null,null,null,null,null,null,null,null,null,null,null,null,null,null,null,null,null,null,"7016101"]
[7017,"Adjunto Técnico (administrações portuárias)",101,"Adjunto Técnico (administrações portuárias)",null,null,null,null,null,null,null,null,null,null,null,null,null,null,null,null,null,null,null,null,null,"7017101"]
[7018,"Cantoneiro de Limpeza (administrações portuárias)",101,"Cantoneiro de Limpeza (administrações portuárias)",null,null,null,null,null,null,null,null,null,null,null,null,null,null,null,null,null,null,null,null,null,"7018101"]
[7019,"Apoio à Investigação Criminal (PJ)",101,"Chefe de área",null,null,null,null,null,null,null,null,null,null,null,null,null,null,null,null,null,null,null,null,null,"7019101"]
[7019,"Apoio à Investigação Criminal (PJ)",102,"Chefe de Sector",null,null,null,null,null,null,null,null,null,null,null,null,null,null,null,null,null,null,null,null,null,"7019102"]
[7019,"Apoio à Investigação Criminal (PJ)",103,"Chefe de Núcleo",null,null,null,null,null,null,null,null,null,null,null,null,null,null,null,null,null,null,null,null,null,"7019103"]
[9999,"Outras carreiras ",999,"Outras categorias",null,null,null,null,null,null,null,null,null,null,null,null,null,null,null,null,null,null,null,null,null,"9999999"]

{"sheet":"Carreiras CIT","index":10,"n_rows":411,"n_cols":4,"rows_kept":411,"cut":false,"hidden":false,"merged":[]}
["Código Carreira CIT","Designação","Código da Categoria","Designação da Categoria"]
[1001,"Aderecista",111,"Aderecista"]
[1002,"Adjunto de direção",112,"Adjunto de direção"]
[1003,"Administração hospitalar",113,"Administrador geral"]
[1003,"Administração hospitalar",114,"Administrador hospitalar de 1.ª classe"]
[1003,"Administração hospitalar",115,"Administrador hospitalar de 2.ª classe"]
[1003,"Administração hospitalar",116,"Administrador hospitalar de 3.ª classe"]
[1004,"Administrador",117,"Administrador"]
[1005,"Administrativo",118,"Assistente administrativo"]
[1005,"Administrativo",119,"Assistente administrativo coordenador"]
[1005,"Administrativo",120,"Assistente administrativo estagiário"]
[1005,"Administrativo",121,"Assistente administrativo principal"]
[1005,"Administrativo",122,"Técnico júnior"]
[1006,"Agente de vias portuárias",123,"Agente de vias portuárias"]
[1007,"Ajudante de manobrador motorizado de tráfego",124,"Ajudante de manobrador motorizado de tráfego"]
[1008,"Ajudante de motorista marítimo",125,"Ajudante de motorista marítimo"]
[1009,"Assistente administrativo do coro/orquestra",126,"Assistente administrativo do coro/orquestra"]
[1010,"Assistente de camarim",127,"Assistente de camarim"]
[1011,"Assistente de comunicação e imagem",128,"Assistente de comunicação e imagem"]
[1012,"Assistente de conteúdos de internet",129,"Assistente de conteúdos de internet"]
[1013,"Assistente de dador",130,"Assistente de dador"]
[1014,"Assistente de direção de cena",131,"Assistente de direção de cena"]
[1015,"Assistente de direção, promoção e media",132,"Assistente de direção, promoção e media"]
[1016,"Assistente de produção",133,"Assistente de produção"]
[1017,"Assistente de produção e produtor executivo WEB",134,"Assistente de produção e produtor executivo WEB"]
[1018,"Assistente de som e audiovisuais",135,"Assistente de som e audiovisuais"]
[1019,"Assistente diretor de Marketing",136,"Assistente diretor de Marketing"]
[1020,"Assistente espiritual / religioso",137,"Assistente espiritual / religioso"]
[1021,"Assistente financeiro",138,"Assistente financeiro"]
[1022,"Assistente operacional",139,"Auxiliar de ação médica"]
[1022,"Assistente operacional",140,"Auxiliar de apoio e vigilância"]
[1022,"Assistente operacional",141,"Assistente operacional"]
[1022,"Assistente operacional",142,"Encarregado geral operacional"]
[1022,"Assistente operacional",143,"Encarregado operacional"]
[1022,"Assistente operacional",144,"Supervisor"]
[1023,"Assistente organizativo do coro/orquestra",145,"Assistente organizativo do coro/orquestra"]
[1024,"Assistente técnico",146,"Assistente técnico"]
[1024,"Assistente técnico",147,"Coordenador técnico"]
[1025,"Ator",148,"Ator"]
[1026,"Auditor interno",149,"Auditor interno"]
[1027,"Auxiliar",150,"Auxiliar"]
[1027,"Auxiliar",151,"Auxiliar principal"]
[1028,"Auxíliar de saúde",152,"Auxíliar de saúde"]
[1029,"Auxiliar de serviços",153,"Auxiliar de serviços"]
[1030,"Bailarino",154,"Bailarino Corifeu                  "]
[1030,"Bailarino",155,"Bailarino corpo de baile     "]
[1030,"Bailarino",156,"Bailarino estagiário     "]
[1030,"Bailarino",157,"Bailarino principal \"A\""]
[1030,"Bailarino",158,"Bailarino principal \"B\""]
[1030,"Bailarino",159,"Bailarino principal \"C\"  "]
[1030,"Bailarino",160,"Bailarino principal solista"]
[1031,"Bilheteiro                 ",161,"Bilheteiro"]
[1032,"Cabo varanda                    ",162,"Cabo varanda                    "]
[1033,"Calceteiro",163,"Calceteiro"]
[1034,"Caldeireiro",164,"Caldeireiro"]
[1035,"Capelão",165,"Capelão"]
[1035,"Capelão",166,"Capelão coordenador"]
[1036,"Carpinteiro",167,"Carpinteiro"]
[1037,"Chefe contra regra                ",168,"Chefe contra regra                "]
[1038,"Chefe de iluminação                       ",169,"Chefe de iluminação                       "]
[1039,"Chefe de maquinistas                        ",170,"Chefe de maquinistas                        "]
[1040,"Chefe de som e audiovisuais     ",171,"Chefe de som e audiovisuais     "]
[1041,"Chefe de som e video                    ",172,"Chefe de som e video                    "]
[1042,"Chief Operating Officer",173,"Chief Operating Officer"]
[1043,"Circulação",174,"Inspetor de circulação"]
[1043,"Circulação",175,"Controlador de circulação"]
[1043,"Circulação",176,"Guarda de passagem de nível"]
[1043,"Circulação",177,"Operador de circulação"]
[1043,"Circulação",178,"Operador de manobras"]
[1044,"Communication Manager",179,"Communication Manager"]
[1045,"Conferente",180,"Conferente"]
[1046,"Consultor",181,"Consultor"]
[1047,"Consultor de informática",182,"Consultor de informática"]
[1048,"Consultor principal",183,"Consultor principal"]
[1049,"Contra regra                   ",184,"Contra regra                   "]
[1050,"Controlador de tráfego aéreo",185,"Controlador de tráfego aéreo"]
[1051,"Coordenador adjunto da direção técnica",186,"Coordenador adjunto da direção técnica"]
[1052,"Coordenador artístico executivo",187,"Coordenador artístico executivo"]
[1053,"Coordenador da direção de cena",188,"Coordenador da direção de cena"]
[1054,"Coordenador da direção de comunicação e imagem",189,"Coordenador da direção de comunicação e imagem"]
[1055,"Coordenador da direção de manutenção",190,"Coordenador da direção de manutenção"]
[1056,"Coordenador da equipa da bilheteira",191,"Coordenador da equipa da bilheteira"]
[1057,"Coordenador de arquivo histórico",192,"Coordenador de arquivo histórico"]
[1058,"Coordenador de atelier de costura    ",193,"Coordenador de atelier de costura    "]
[1059,"Coordenador de coro            ",194,"Coordenador de coro            "]
[1060,"Coordenador de equipa",195,"Coordenador de equipa"]
[1061,"Coordenador de guarda roupa",196,"Coordenador de guarda roupa"]
[1062,"Coordenador de programação",197,"Coordenador de programação"]
[1063,"Coordenador do setor de iluminação",198,"Coordenador do setor de iluminação"]
[1064,"Coordenador do setor de recursos humanos",199,"Coordenador do setor de recursos humanos"]
[1065,"Coordenador do setor de som/audiovisual",200,"Coordenador do setor de som/audiovisual"]
[1066,"Coordenador financeiro     ",201,"Coordenador financeiro     "]
[1067,"Coordenador musical",202,"Coordenador musical"]
[1068,"Coralista",203,"Coralista"]
[1069,"Costureira                           ",204,"Costureira                           "]
[1070,"Cozinheiro",205,"Cozinheiro"]
[1071,"Diretor",206,"Diretor"]
[1072,"Diretor artístico",207,"Diretor artístico"]
[1073,"Diretor clínico",208,"Diretor clínico"]
[1074,"Diretor de cena",209,"Diretor de cena"]
[1075,"Diretor de comunicação e imagem",210,"Diretor de comunicação e imagem"]
[1076,"Diretor de documentação e património",211,"Diretor de documentação e património"]
[1077,"Diretor de manutenção",212,"Diretor de manutenção"]
[1078,"Diretor de produção",213,"Diretor de produção"]
[1079,"Diretor de relações externas e frente de casa",214,"Diretor de relações externas e frente de casa"]
[1080,"Diretor executivo",215,"Diretor executivo"]
[1081,"Diretor técnico",216,"Diretor técnico"]
[1082,"Dirigente intermédio de 1º grau",217,"Dirigente intermédio de 1º grau"]
[1083,"Dirigente intermédio de 2º grau",218,"Dirigente intermédio de 2º grau"]
[1084,"Dirigente intermédio de 3º grau e seguintes",219,"Dirigente intermédio de 3º grau e seguintes"]
[1085,"Dirigente superior de 1.º grau",220,"Dirigente superior de 1.º grau"]
[1086,"Dirigente superior de 2.º grau",221,"Dirigente superior de 2.º grau"]
[1087,"Docente do ensino superior politécnico",222,"Professor coordenador principal"]
[1087,"Docente do ensino superior politécnico",223,"Professor coordenador"]
[1087,"Docente do ensino superior politécnico",224,"Professor adjunto"]
[1087,"Docente do ensino superior politécnico",225,"Professor coordenador convidado"]
[1087,"Docente do ensino superior politécnico",226,"Professor adjunto convidado"]
[1087,"Docente do ensino superior politécnico",227,"Professor visitante"]
[1087,"Docente do ensino superior politécnico",228,"Assistente convidado"]
[1087,"Docente do ensino superior politécnico",229,"Monitor"]
[1088,"Docente universitária",230,"Professor catedrático"]
[1088,"Docente universitária",231,"Professor associado"]
[1088,"Docente universitária",232,"Professor auxiliar"]
[1088,"Docente universitária",233,"Professor convidado"]
[1088,"Docente universitária",234,"Assistente convidado"]
[1088,"Docente universitária",235,"Leitor"]
[1088,"Docente universitária",236,"Monitor"]
[1089,"Documentalista",237,"Documentalista"]
[1090,"Educadores de Infância e Professores dos Ensinos Básico e Secundário",238,"Professor"]
[1091,"Eletricista               ",239,"Eletricista               "]
[1092,"Encarregado de orquestra                ",240,"Encarregado de orquestra                "]
[1093,"Encarregado geral",241,"Encarregado geral"]
[1094,"Enfermagem",242,"Enfermeiro"]
[1094,"Enfermagem",243,"Enfermeiro chefe"]
[1094,"Enfermagem",244,"Enfermeiro especialista"]
[1094,"Enfermagem",245,"Enfermeiro gestor"]
[1094,"Enfermagem",246,"Enfermeiro graduado"]
[1094,"Enfermagem",247,"Enfermeiro principal"]
[1094,"Enfermagem",248,"Enfermeiro supervisor"]
[1095,"Enfermeiro de 3ª classe",249,"Enfermeiro de 3ª classe"]
[1096,"Enfermeiro diretor",250,"Enfermeiro diretor"]
[1097,"Engenheiro de sistemas e tecnologias de informação",251,"Engenheiro de sistemas e tecnologias de informação"]
[1098,"Ensaiador                   ",252,"Ensaiador                   "]
[1099,"Ensino pré-escolar",253,"Educador de infância"]
[1100,"Especialista",254,"Especialista"]
[1100,"Especialista",255,"Especialista júnior"]
[1100,"Especialista",256,"Especialista principal"]
[1100,"Especialista",257,"Especialista sénior"]
[1101,"Especialista de concorrência",258,"Especialista de concorrência principal"]
[1101,"Especialista de concorrência",259,"Especialista de concorrência sénior"]
[1101,"Especialista de concorrência",260,"Especialista de concorrência"]
[1102,"Especialista de informática",261,"Especialista de informática"]
[1102,"Especialista de informática",262,"Especialista de informática grau 1 nível 1"]
[1102,"Especialista de informática",263,"Especialista de informática grau 1 nível 2"]
[1102,"Especialista de informática",264,"Especialista de informática grau 1 nível 3"]
[1102,"Especialista de informática",265,"Especialista de informática grau 2 nível 1"]
[1102,"Especialista de informática",266,"Especialista de Informática grau 2 nível 2"]
[1102,"Especialista de informática",267,"Especialista de informática grau 3 nível 1"]
[1102,"Especialista de informática",268,"Especialista de informática grau 3 nível 2"]
[1103,"Farmacêutica",269,"Farmacêutica assessor "]
[1103,"Farmacêutica",270,"Farmacêutica assessor sénior"]
[1103,"Farmacêutica",271,"Farmacêutica assistente"]
[1104,"Ferreiro-forjador",272,"Ferreiro-forjador"]
[1105,"Fiel de armazém",273,"Fiel de armazém"]
[1105,"Fiel de armazém",274,"Fiel de armazém estagiário"]
[1105,"Fiel de armazém",275,"Fiel de armazém principal"]
[1106,"Fiel de depósito",276,"Fiel de depósito"]
[1107,"Fiscal de obras",277,"Fiscal de obras"]
[1108,"Fiscal técnico de obras e apetrechamento portuários",278,"Fiscal técnico de obras e apetrechamento portuários"]
[1109,"Fundidor",279,"Fundidor"]
[1110,"Guarda portuário",280,"Guarda portuário"]
[1111,"Inspetor",281,"Inspetor júnior"]
[1111,"Inspetor",282,"Inspetor sénior"]
[1111,"Inspetor",283,"Inspetor técnico"]
[1112,"Instrumentista",284,"Concertino adjunto              "]
[1112,"Instrumentista",285,"Concertino assistente          "]
[1112,"Instrumentista",286,"Concertino principal              "]
[1112,"Instrumentista",287,"Coordenador Naipe         "]
[1112,"Instrumentista",288,"Coordenador Naipe adjunto       "]
[1112,"Instrumentista",289,"Coordenador Naipe assistente         "]
[1112,"Instrumentista",290,"Solista \"A\"                             "]
[1112,"Instrumentista",291,"Solista \"B\"                             "]
[1112,"Instrumentista",292,"Tutti                                  "]
[1113,"Investigador",293,"Estagiário de investigação"]
[1113,"Investigador",294,"Investigador auxiliar"]
[1114,"IT MANAGER",295,"IT MANAGER"]
[1115,"Jurista",296,"Jurista"]
[1116,"Lubrificador",297,"Lubrificador"]
[1117,"Maestro assistente",298,"Maestro assistente"]
[1118,"Maestro correpetidor                   ",299,"Maestro correpetidor                   "]
[1119,"Maestro titular do coro           ",300,"Maestro titular de coro            "]
[1120,"Manutenção",301,"Coordenador eletrónica"]
[1120,"Manutenção",302,"Inspetor obras"]
[1120,"Manutenção",303,"Inspetor via"]
[1120,"Manutenção",304,"Mestre"]
[1120,"Manutenção",305,"Oficial canalizador"]
[1120,"Manutenção",306,"Oficial carpinteiro"]
[1120,"Manutenção",307,"Oficial eletricista"]
[1120,"Manutenção",308,"Oficial eletromecânico"]
[1120,"Manutenção",309,"Oficial estofador"]
[1120,"Manutenção",310,"Oficial ferramenteiro"]
[1120,"Manutenção",311,"Oficial pedreiro"]
[1120,"Manutenção",312,"Oficial pintor"]
[1120,"Manutenção",313,"Oficial serralheiro mecânico"]
[1120,"Manutenção",314,"Oficial soldador"]
[1120,"Manutenção",315,"Oficial torneiro mecânico"]
[1120,"Manutenção",316,"Oficial via"]
[1120,"Manutenção",317,"Técnico de eletrónica"]
[1121,"Maquinista                      ",318,"Maquinista                             "]
[1122,"Marinheiro",319,"Marinheiro"]
[1123,"Mecânico",320,"Mecânico"]
[1124,"Médica",321,"Assistente"]
[1124,"Médica",322,"Assistente de medicina geral e familiar"]
[1124,"Médica",323,"Assistente de saúde pública"]
[1124,"Médica",324,"Assistente graduado"]
[1124,"Médica",325,"Assistente graduado sénior"]
[1124,"Médica",326,"Clínico geral"]
[1124,"Médica",327,"Interno"]
[1125,"Médico Assistente (Ex-Serviços Médico-Sociais)",328,"Médico Assistente (Ex-Serviços Médico-Sociais)"]
[1126,"Mestre de bailado             ",329,"Mestre de bailado          "]
[1127,"Motorista",330,"Motorista"]
[1127,"Motorista",331,"Motorista principal"]
[1128,"Office Manager",332,"Office Manager"]
[1129,"Oficial da marinha mercante",333,"Oficial da marinha mercante I"]
[1129,"Oficial da marinha mercante",334,"Oficial da marinha mercante II"]
[1130,"Operações e comercial",335,"Agente de tráfego"]
[1130,"Operações e comercial",336,"Coordenador operacional"]
[1130,"Operações e comercial",337,"Encarregado comercial"]
[1130,"Operações e comercial",338,"Encarregado de movimento"]
[1130,"Operações e comercial",339,"Encarregado de sala de comando de energia"]
[1130,"Operações e comercial",340,"Encarregado de tração"]
[1130,"Operações e comercial",341,"Fiscal"]
[1130,"Operações e comercial",342,"Inspetor comercial"]
[1130,"Operações e comercial",343,"Inspetor de movimento"]
[1130,"Operações e comercial",344,"Inspetor de sala de comando de energia"]
[1130,"Operações e comercial",345,"Inspetor de tração"]
[1130,"Operações e comercial",346,"Maquinista"]
[1130,"Operações e comercial",347,"Maquinista de manobras"]
[1130,"Operações e comercial",348,"Operador comercial"]
[1130,"Operações e comercial",349,"Operador de linha"]
[1131,"Operador de cais",350,"Operador de cais"]
[1132,"Operador de computador",351,"Operador de computador"]
[1133,"Operador de equipamento portuário",352,"Operador de equipamento portuário"]
[1134,"Operador de gruas flutuantes",353,"Operador de gruas flutuantes"]
[1135,"Operador de offset e reprografia",354,"Operador de offset e reprografia"]
[1136,"Operador de radar e telecomunicações",355,"Operador de radar e telecomunicações"]
[1137,"Operador de sistema",356,"Operador de sistema"]
[1138,"Pianista correpetidor            ",357,"Pianista correpetidor            "]
[1139,"Piloto",358,"Piloto sénior"]
[1139,"Piloto",359,"Piloto júnior"]
[1139,"Piloto",360,"Piloto provisório"]
[1139,"Piloto",361,"Piloto estagiário"]
[1140,"Pintor",362,"Pintor"]
[1141,"Presidente do conselho de administração",363,"Presidente do conselho de administração"]
[1142,"Presidente do conselho fiscal",364,"Presidente do conselho fiscal"]
[1143,"Program Coordinator",365,"Program Coordinator"]
[1144,"Program Manager",366,"Program Manager"]
[1145,"Programador",367,"Programador"]
[1146,"Rececionista                          ",368,"Rececionista                    "]
[1147,"Responsável de bilheteira           ",369,"Responsável de bilheteira           "]
[1148,"Responsável de projetos especiais               ",370,"Responsável de projetos especiais               "]
[1149,"Secretária                          ",371,"Secretária                          "]
[1150,"Secretária do coro             ",372,"Secretária do coro             "]
[1151,"Secretária principal  ",373,"Secretária principal"]
[1152,"Secretariado",374,"Assistente administrativo"]
[1152,"Secretariado",375,"Assistente administrativo principal"]
[1153,"Secretário-geral",376,"Secretário-geral"]
[1154,"Serralheiro civil",377,"Serralheiro civil"]
[1155,"Serralheiro mecânico",378,"Serralheiro mecânico"]
[1156,"Soldador",379,"Soldador"]
[1157,"Sub-diretor",380,"Sub-diretor"]
[1158,"Técnica",381,"Técnico"]
[1158,"Técnica",382,"Técnico júnior"]
[1158,"Técnica",383,"Técnico principal"]
[1159,"Técnica e apoio",384,"Coordenador administrativo"]
[1159,"Técnica e apoio",385,"Coordenador de desenho"]
[1159,"Técnica e apoio",386,"Coordenador de serviços"]
[1159,"Técnica e apoio",387,"Desenhador"]
[1159,"Técnica e apoio",388,"Projetista"]
[1159,"Técnica e apoio",389,"Secretário de administração"]
[1159,"Técnica e apoio",390,"Técnico Administrativo"]
[1159,"Técnica e apoio",391,"Técnico Auxiliar"]
[1159,"Técnica e apoio",392,"Técnico Principal"]
[1160,"Técnico",393,"Coordenador"]
[1160,"Técnico",394,"Especialista"]
[1160,"Técnico",395,"Especialista principal"]
[1160,"Técnico",396,"Técnico"]
[1160,"Técnico",397,"Técnico administrativo"]
[1160,"Técnico",398,"Técnico de bilheteira"]
[1160,"Técnico",399,"Técnico de camarim"]
[1160,"Técnico",400,"Técnico de comunicação"]
[1160,"Técnico",401,"Técnico de direção de cena"]
[1160,"Técnico",402,"Técnico de documentação"]
[1160,"Técnico",403,"Técnico de guarda-roupa"]
[1160,"Técnico",404,"Técnico de iluminação"]
[1160,"Técnico",405,"Técnico de limpeza"]
[1160,"Técnico",406,"Técnico de manutenção"]
[1160,"Técnico",407,"Técnico de maquinaria/mecânica de cena"]
[1160,"Técnico",408,"Técnico de produção"]
[1160,"Técnico",409,"Técnico de relações externas"]
[1160,"Técnico",410,"Técnico de som / audiovisual"]
[1160,"Técnico",411,"Técnico ponto-anotador"]
[1160,"Técnico",412,"Técnico rececionista"]
[1161,"Técnico (gestor de compras)",413,"Técnico (gestor de compras)"]
[1162,"Técnico adjunto",414,"Técnico adjunto administrativo"]
[1162,"Técnico adjunto",415,"Técnico adjunto de bilheteira"]
[1162,"Técnico adjunto",416,"Técnico adjunto de camarim"]
[1162,"Técnico adjunto",417,"Técnico adjunto de comunicação"]
[1162,"Técnico adjunto",418,"Técnico adjunto de direção de cena"]
[1162,"Técnico adjunto",419,"Técnico adjunto de documentação"]
[1162,"Técnico adjunto",420,"Técnico adjunto de guarda-roupa"]
[1162,"Técnico adjunto",421,"Técnico adjunto de iluminação"]
[1162,"Técnico adjunto",422,"Técnico adjunto de manutenção"]
[1162,"Técnico adjunto",423,"Técnico adjunto de maquinaria/Mecânica de cena"]
[1162,"Técnico adjunto",424,"Técnico adjunto de produção"]
[1162,"Técnico adjunto",425,"Técnico adjunto de relações externas"]
[1162,"Técnico adjunto",426,"Técnico adjunto de som/audiovisual"]
[1162,"Técnico adjunto",427,"Técnico adjunto ponto - anotador"]
[1163,"Técnico administrativo",428,"Técnico administrativo"]
[1163,"Técnico administrativo",429,"Técnico administrativo I"]
[1163,"Técnico administrativo",430,"Técnico administrativo II"]
[1163,"Técnico administrativo",431,"Técnico administrativo júnior"]
[1163,"Técnico administrativo",432,"Técnico administrativo sénior"]
[1164,"Técnico auxiliar",433,"Técnico auxiliar administrativo"]
[1164,"Técnico auxiliar",434,"Técnico auxiliar de bilheteira"]
[1164,"Técnico auxiliar",435,"Técnico auxiliar de camarim"]
[1164,"Técnico auxiliar",436,"Técnico auxiliar de comunicação"]
[1164,"Técnico auxiliar",437,"Técnico auxiliar de direção de cena"]
[1164,"Técnico auxiliar",438,"Técnico auxiliar de documentação"]
[1164,"Técnico auxiliar",439,"Técnico auxiliar de guarda-roupa"]
[1164,"Técnico auxiliar",440,"Técnico auxiliar de iluminação"]
[1164,"Técnico auxiliar",441,"Técnico auxiliar de limpeza"]
[1164,"Técnico auxiliar",442,"Técnico auxiliar de manutenção"]
[1164,"Técnico auxiliar",443,"Técnico auxiliar de maquinaria/mecânica de cena"]
[1164,"Técnico auxiliar",444,"Técnico auxiliar de produção"]
[1164,"Técnico auxiliar",445,"Técnico auxiliar de relações externas"]
[1164,"Técnico auxiliar",446,"Técnico auxiliar de som/audiovisual"]
[1164,"Técnico auxiliar",447,"Técnico auxiliar motorista"]
[1164,"Técnico auxiliar",448,"Técnico auxiliar ponto-anotador"]
[1164,"Técnico auxiliar",449,"Técnico auxiliar rececionista"]
[1165,"Técnico auxíliar",450,"Técnico auxiliar de coro/orquestra      "]
[1166,"Técnico de gabinete de pesquisa e documentação musical  ",451,"Técnico de gabinete de pesquisa e documentação musical  "]
[1167,"Técnico de iluminação             ",452,"Técnico de iluminação             "]
[1168,"Técnico de informação e comunicações aeronáuticas",453,"Técnico de informação e comunicações aeronáuticas"]
[1169,"Técnico de informática",454,"Técnico de informática "]
[1169,"Técnico de informática",455,"Técnico de Informática Adjunto Estagiário"]
[1169,"Técnico de informática",456,"Técnico de Informática Adjunto Nível 1"]
[1169,"Técnico de informática",457,"Técnico de Informática Adjunto Nível 2"]
[1169,"Técnico de informática",458,"Técnico de Informática Adjunto Nível 3"]
[1169,"Técnico de informática",459,"Técnico de informática estagiário"]
[1169,"Técnico de informática",460,"Técnico de Informática Grau 1 Nível 1"]
[1169,"Técnico de informática",461,"Técnico de Informática Grau 1 Nível 2"]
[1169,"Técnico de Informática",462,"Técnico de Informática Grau 1 Nível 3"]
[1169,"Técnico de informática",463,"Técnico de Informática Grau 2 Nível 1"]
[1169,"Técnico de informática",464,"Técnico de Informática Grau 2 Nível 2"]
[1169,"Técnico de informática",465,"Técnico de Informática Grau 3 Nível 1"]
[1169,"Técnico de informática",466,"Técnico de Informática Grau 3 Nível 2"]
[1170,"Técnico de manutenção              ",467,"Técnico de manutenção              "]
[1171,"Técnico de som e audiovisuais         ",468,"Técnico de som e audiovisuais         "]
[1172,"Técnico de telecomunicações aeronáuticas",469,"Técnico de telecomunicações aeronáuticas"]
[1173,"Técnico especializado",470,"Técnico especialista I"]
[1173,"Técnico especializado",471,"Técnico especialista II"]
[1174,"Técnico informático",472,"Técnico de apoio sistemas"]
[1174,"Técnico informático",473,"Técnico de apoio sistemas estagiário"]
[1174,"Técnico informático",474,"Técnico de apoio sistemas principal"]
[1174,"Técnico informático",475,"Técnico de apoio utilizador"]
[1174,"Técnico informático",476,"Técnico de apoio utilizador estagiário"]
[1174,"Técnico informático",477,"Técnico de apoio utilizador principal"]
[1175,"Técnico profissional",478,"Técnico profissional"]
[1175,"Técnico profissional",479,"Técnico profissional especialista"]
[1175,"Técnico profissional",480,"Técnico profissional estagiário"]
[1175,"Técnico profissional",481,"Técnico profissional principal"]
[1176,"Técnico qualificado",482,"Técnico qualificado I"]
[1176,"Técnico qualificado",483,"Técnico qualificado II"]
[1177,"Técnico superior",484,"Assessor"]
[1177,"Técnico superior",485,"Assessor principal"]
[1177,"Técnico superior",486,"Auditor"]
[1177,"Técnico superior",487,"Diretor Coordenador"]
[1177,"Técnico superior",488,"Diretor de Gabinete"]
[1177,"Técnico superior",489,"Técnico superior"]
[1177,"Técnico superior",490,"Técnico superior assistente"]
[1177,"Técnico superior",491,"Técnico superior de recursos humanos                "]
[1177,"Técnico superior",492,"Técnico superior de serviço social"]
[1177,"Técnico superior",493,"Técnico superior especialista I"]
[1177,"Técnico superior",494,"Técnico superior especialista II"]
[1177,"Técnico superior",495,"Técnico superior estagiário"]
[1177,"Técnico superior",496,"Técnico superior principal"]
[1178,"Técnico Superior das áreas de Diagnóstico e Terapêutica",497,"Técnico superior das áreas de Diagnóstico e Terapêutica especialista principal"]
[1178,"Técnico Superior das áreas de Diagnóstico e Terapêutica",498,"Técnico superior das áreas de Diagnóstico e Terapêutica"]
[1178,"Técnico Superior das áreas de Diagnóstico e Terapêutica",499,"Técnico superior das áreas de Diagnóstico e Terapêutica especialista"]
[1179,"Técnico superior de saúde",500,"Assessor"]
[1179,"Técnico superior de saúde",501,"Assessor superior"]
[1179,"Técnico superior de saúde",502,"Assistente"]
[1179,"Técnico superior de saúde",503,"Assistente principal"]
[1179,"Técnico superior de saúde",504,"Estagiário (1º e 2º Ano)"]
[1179,"Técnico superior de saúde",505,"Estagiário (3º e 4º Ano)"]
[1180,"Técnico superior diretor",506,"Não aplicável"]
[1181,"Telefonista",507,"Telefonista"]
[1181,"Telefonista",508,"Telefonista principal"]
[1182,"Telefonista / Rececionista                     ",509,"Telefonista / Rececionista                     "]
[1183,"Tesoureiro",510,"Tesoureiro"]
[1184,"Topógrafo",511,"Topógrafo"]
[1185,"Torneiro mecânico",512,"Torneiro mecânico"]
[1186,"Trabalhador de limpeza",513,"Trabalhador de limpeza"]
[1187,"Tráfego e Manutenção",514,"Acabador"]
[1188,"Vigia telefonista",515,"Vigia telefonista"]
[1189,"Vogal",516,"Vogal"]
[1190,"Vogal do conselho de administração",517,"Vogal do conselho de administração"]
[1191,"Vogal do conselho fiscal",518,"Vogal do conselho fiscal"]
[1192,"Vogal executivo",519,"Vogal executivo"]
[9999,"Outras carreiras ",999,"Outras categorias"]

{"sheet":"Vínculos VEP","index":11,"n_rows":9,"n_cols":3,"rows_kept":9,"cut":false,"hidden":false,"merged":[]}
["Código do Vínculo","Designação do tipo de vínculo (VEP)","Tipo de termo do vínculo"]
[10,"Cargo político/Mandato","A termo"]
[11,"Nomeação definitiva"]
[12,"Nomeação transitória","A termo"]
[21,"CTFP por tempo indeterminado"]
[22,"CTFP a termo resolutivo certo","A termo"]
[23,"CTFP a termo resolutivo incerto"]
[31,"Comissão de Serviço - dirigentes","A termo"]
[32,"Comissão de Serviço - não dirigentes","A termo"]

{"sheet":"Vínculos CIT","index":12,"n_rows":5,"n_cols":3,"rows_kept":5,"cut":false,"hidden":false,"merged":[]}
["Código do Vínculo","Designação do tipo de vínculo (CIT)","Tipo de termo do vínculo"]
[41,"CIT por tempo indeterminado"]
[42,"CIT a termo resolutivo certo","A termo"]
[43,"CIT a termo resolutivo incerto"]
[51,"CIT - Comissão de Serviço","A termo"]

{"sheet":"Suplementos VEP & CIT","index":13,"n_rows":66,"n_cols":2,"rows_kept":66,"cut":false,"hidden":false,"merged":[]}
["CodSupl","Designação suplemento"]
[100,"Abono de representação"]
[101,"Abono para falhas"]
[102,"Comparticipação na aquisição de fardamento"]
[103,"Compensação pelo desempenho (USF)"]
[104,"Despesas de representação"]
[105,"Disponibilidade permanente"]
[106,"Emolumentos pessoais"]
[107,"Exercício de cargo de gestão em instituições de ensino superior"]
[108,"Exercício de funções de coordenação"]
[109,"Exercício de funções de coordenação em USF"]
[110,"Exercício de funções de direção ou chefia"]
[111,"Exercício de funções de dirigente de ciência e tecnologia"]
[112,"Exercício de funções de orientador de formação do internato médico (USF)"]
[113,"Exercício de funções em órgãos do internato médico"]
[114,"Exercício de funções no âmbito da reinserção social"]
[115,"Fundo de Estabilização Aduaneira (FEA)"]
[116,"Fundo de Estabilização Tributária (FET)"]
[117,"Gratificação pessoal dirigente (SEF)"]
[118,"Incentivos financeiros (USF)"]
[119,"Isenção de horário de trabalho"]
[120,"Lavagem de viaturas"]
[121,"Regime de dedicação exclusiva"]
[122,"Regime de horário acrescido"]
[123,"Regime de prevenção"]
[124,"Remuneração membro da comissão permanente do Conselho Coordenador de Cartografia"]
[125,"Subsídio adicional mensal (carreira médica de clínica geral)"]
[126,"Subsídio de disponibilidade (Marinha)"]
[127,"Subsídio de fixação"]
[128,"Subsídio de função (Agência para a Competitividade e Inovação - IAPMEI)"]
[129,"Subsídio de insalubridade"]
[130,"Subsídio de inspeção pessoal CIT (Instituto da Construção e do Imobiliário, IP)"]
[131,"Subsídio de instalação"]
[132,"Subsídio de isolamento (Autoridade Tributária e Aduaneira)"]
[133,"Subsídio de monitoria (monitoragem ) - SEF"]
[134,"Subsídio de renda de casa (outro pessoal da DGRSP - diferentes carreiras)"]
[135,"Subsídio de residência"]
[136,"Subsídio de turno"]
[137,"Subsídio mensal de função por coordenação de gabinete médico-legal e forense"]
[138,"Subsídio mensal por exercício de funções nas Regiões Autónomas (pessoal de reinserção social)"]
[139,"Suplemento de colocação nos serviços internos (pessoal carreira diplomática)"]
[140,"Suplemento de comando (pessoal do corpo da guarda prisional)"]
[141,"Suplemento de condição de militarizado da Marinha"]
[142,"Suplemento de função inspetiva"]
[143,"Suplemento de mar e mergulho (IPMA)"]
[144,"Suplemento de piquete (Polícia Judiciária)"]
[145,"Suplemento de recuperação dos atrasos processuais"]
[146,"Suplemento de renda de casa (pessoal da Guarda Prisional)"]
[147,"Suplemento de risco"]
[148,"Suplemento de secretariado"]
[149,"Suplemento de segurança prisional"]
[150,"Suplemento de serviço da carreira de investigação e fiscalização do SEF"]
[151,"Suplemento Diretor de Centro de Formação  "]
[152,"Suplemento especial de serviço (pessoal do corpo da guarda prisional)"]
[153,"Suplemento por alargamento de período de funcionamento ou cobertura assistencial (USF)"]
[154,"Suplemento por atos periciais urgentes"]
[155,"Suplemento por aumento de unidades ponderadas (USF)"]
[156,"Suplemento por comissão de serviço policial "]
[157,"Suplemento por cuidados domiciliários (USF)"]
[158,"Suplemento por serviço na guarda prisional"]
[159,"Suplemento por trabalho nas lojas do cidadão"]
[160,"Trabalho suplementar"]
[161,"Suplemento recuperação atrasos processuais"]
[162,"Trabalho noturno"]
[888,"Emolumentos"]
[999,"Outros"]

{"sheet":"Instruções de Preenchimento VEP","index":14,"n_rows":53,"n_cols":3,"rows_kept":53,"cut":false,"hidden":false,"merged":[[47,0,52,0],[1,0,4,0],[6,0,10,0],[6,1,8,1],[9,1,10,1],[12,0,16,0],[12,1,14,1],[15,1,16,1],[26,1,27,1],[28,1,29,1],[31,0,32,0],[34,0,41,0],[43,0,45,0],[26,0,29,0],[22,0,24,0]]}
[null,"Campo","Descrição"]
["Identificação","NIF do trabalhador","Inserir o Número de Identificação Fiscal (NIF) do trabalhador."]
[null,"Código SIOE da Entidade que paga a remuneração","Inserir o código SIOE da entidade que paga a remuneração, mesmo que o trabalhador não pertença aos quadros da entidade, ou esteja a exercer funções noutra entidade. "]
[null,"Data de Nascimento do Trabalhador (Mês e Ano)","Inserir o Mês e Ano de nascimento do trabalhador."]
[null,"Código do vínculo de emprego público","Inserir o código do vínculo. O código deve corresponder a um tipo de vínculo existente no separador “Vínculos VEP”, que encontra no ficheiro Excel de recolha. \nAtenção: se inserir o código do vínculo \"10\", \"12\", \"22\", \"31\" ou \"32\", preencher o formulário apenas até ao campo \"Valor da Remuneração Base \", não preencher a partir do campo \"Referência à próxima alteração de posicionamento\", inclusive."]
[]
["Carreira ","Código da Carreira detida a 01/05/2020","Inserir o código da Carreira do trabalhador."]
[null,null,"O código deve corresponder a uma carreira existente no separador “Carreiras VEP”, que encontra no ficheiro de recolha. "]
[null,null,"Caso a Carreira não se encontre na tabela do separador indicado deverá inserir o código 9999 (correspondente à carreira “Outras”) e preencher o campo da coluna “Designação legal da carreira”."]
[null,"Designação legal (preencher apenas quando o código de carreira do trabalhador corresponde a “Outros”)","Inserir a designação legal da carreira em causa, por extenso."]
[null,null,"Preencher apenas quando tenha inserido o código 9999 no campo anterior (correspondente à carreira “Outras”)."]
[]
["Categoria","Código da Categoria detida a 01/05/2020","Inserir o código da Categoria do trabalhador."]
[null,null,"O código deve corresponder a uma categoria existente no separador “Carreiras VEP”, que encontra no ficheiro de recolha. "]
[null,null,"Caso a Categoria não se encontre na tabela do separador indicado deverá inserir o código 999 (correspondente à categoria “Outras categorias”) e preencher o campo da coluna “Designação legal da categoria”."]
[null,"Designação legal (preencher apenas quando o código de categoria do trabalhador corresponde a “Outros”)","Inserir a designação legal da categoria em causa, por extenso."]
[null,null,"Preencher apenas quando tenha inserido o código 999 no campo anterior (correspondente à carreira “Outras categorias”)."]
[]
["Exercício de funções em tempo completo ou parcial","_% de tempo de trabalho","Inserir a % de tempo de trabalho prestado pelo trabalhador. \nSe o trabalho for prestado a tempo completo: colocar 100%. Se o trabalho for prestado a tempo parcial: colocar a % correspondente."]
[]
["Cessação do contrato","Data prevista para a cessação do contrato","Inserir a data prevista para a cessação do contrato. \nPreencher apenas quando tenha indicado (no campo tipo de vínculo) o código \"10\", \"12\", \"22\", \"31\" ou \"32\"."]
[]
["Posição Remuneratória/Escalão/Índice","Posição Remuneratória","Inserir a posição remuneratória em que o trabalhador está colocado numa dada carreira e categoria, com referência à situação funcional em que se encontre à data de 01/05/2020. Preencher apenas quando a carreira for revista (geral ou especial). \nCaso o trabalhador aufira uma remuneração situada entre duas posições remuneratórias previstas na tabela da respetiva categoria, inserir a posição inferior completa e uma parte decimal (da posição seguinte) igual a 5 (Exemplo: entre a 1ª e a 2ª posições, inserir \"1,5\"; entre a 9ª e a 10ª posições, inserir \"9,5\").\nAtenção: não preencher este campo caso tenha havido revisão da organização da carreira mas não da respetiva estrutura remuneratória; nesse caso, deverá preencher os campos seguintes (escalão e índice)."]
[null,"Escalão","Inserir o escalão correspondente à carreira e categoria do trabalhador, com referência à situação funcional à data de 01/05/2020. \nPreencher apenas quando se trate de carreira/categoria não revista ou subsistente, ou de carreira revista mas que mantenha a anterior estrutura remuneratória (exemplo: carreira docente universitária)."]
[null,"Índice","Inserir o índice correspondente à carreira e categoria do trabalhador, com referência à situação funcional à data de 01/05/2020. \nPreencher apenas quando se trate de carreira/categoria não revista ou subsistente, ou de carreira revista mas que mantenha a anterior estrutura remuneratória."]
[]
["Valor da Remuneração Base","Referência a 01/05/2020","Inserir a remuneração base ilíquida devida, sem descontos ou retroativos, com referência à situação funcional do trabalhador à data de 01/05/2020."]
[null,null,"Não devem ser inscritas quaisquer outras componentes remuneratórias, designadamente suplementos. (Exemplos: trabalho suplementar, subsídio de turno, etc.)."]
[null,"Referência à próxima alteração de posicionamento","Inserir a remuneração base ilíquida devida, sem descontos ou retroativos, correspondente à próxima alteração de posicionamento remuneratório."]
[null,null,"Não devem ser inscritas quaisquer outras componentes remuneratórias, designadamente suplementos. (Exemplos: trabalho suplementar, subsídio de turno, etc.)."]
[]
["Data Previsível da próxima alteração de posicionamento remuneratório","Mês","Inserir o Mês em que é previsível que ocorra a próxima alteração de posicionamento remuneratório do trabalhador."]
[null,"Ano","Inserir o Ano em que é previsível que ocorra a próxima alteração de posicionamento remuneratório do trabalhador."]
[]
["Valor do acréscimo remuneratório (referência à próxima alteração de posicionamento) decorrente de Valorização Remuneratória por motivo:","Alteração Obrigatória de Posicionamento Remuneratório","Inserir o valor do acréscimo remuneratório originado pela próxima valorização remuneratória, por motivo de alteração obrigatória de posicionamento remuneratório, com referência à remuneração devida a 01/05/2020."]
[null,"Nomeação","Inserir o valor do acréscimo remuneratório originado pela próxima valorização remuneratória, por motivo de nomeação, com referência à remuneração devida a 01/05/2020."]
[null,"Promoção ","Inserir o valor do acréscimo remuneratório originado pela próxima valorização remuneratória, por motivo de promoção, com referência à remuneração devida a 01/05/2020."]
[null,"Graduação","Inserir o valor do acréscimo remuneratório originado pela próxima valorização remuneratória, por motivo de graduação, com referência à remuneração devida a 01/05/2020."]
[null,"Mudança de Nível ou Escalão ","Inserir o valor do acréscimo remuneratório originado pela próxima valorização remuneratória, por motivo de mudança de nível ou escalão, com referência à remuneração devida a 01/05/2020."]
[null,"Decurso do Tempo na Carreira","Inserir o valor do acréscimo remuneratório originado pela próxima valorização remuneratória, por motivo de progressão por decurso do tempo, com referência à remuneração devida a 01/05/2020."]
[null,"Outros Motivos ","Inserir o valor do acréscimo remuneratório originado pela próxima valorização remuneratória, por outro motivo, com referência à remuneração devida a 01/05/2020."]
[null,"Especificação de Outros Motivos ","Preencher apenas quando se verificarem acréscimos remuneratórios por outros motivos."]
[]
["Avaliação: Pontos e Tempo relevante decorrido desde a última alteração de posicionamento","Pontos detidos a 01/05/2020","A preencher quando o trabalhador tem o sistema de avaliação SIADAP, geral ou adaptado, devendo ser indicado o número de pontos detidos até à data de 01/05/2020."]
[null,"Número de Anos Decorridos","Inserir o número de anos completos decorridos desde a última alteração de posicionamento do trabalhador, considerados para efeitos da próxima alteração de posicionamento."]
[null,"Número de Meses Decorridos","Inserir o número de meses, para além dos anos completos, decorridos desde a última alteração de posicionamento do trabalhador, considerados para efeitos da próxima alteração de posicionamento."]
[]
["Suplementos","Código do Suplemento","Inserir o código do suplemento do trabalhador. \nO código deve corresponder a um tipo de suplemento existente no separador “Suplementos”, que encontra no ficheiro de recolha. Caso o suplemento não se encontre na tabela do separador indicado, deverá inserir o código 999 (correspondente a “Outros”) e preencher o campo da coluna “Designação legal do Suplemento”."]
[null,"Designação Legal do Suplemento\n(preencher apenas quando o código do suplemento corresponde a “Outros”)","Inserir a designação legal do suplemento em causa, por extenso. \nPreencher apenas quando tenha inserido o código 999 no campo anterior (correspondente a “Outros”)."]
[null,"Valor do suplemento\n(referência a 01/05/2020)","Inserir o valor do suplemento devido, correspondente à situação funcional do trabalhador a 01/05/2020."]
[null,"Suporte Legal\n(Diploma, artigo, número e alínea)","Inserir a norma legal que prevê o suplemento (diploma com data e, quando aplicável, artigo, número e alínea)."]
[null,"Tipologia do valor\n(F - fixo / P - percentual)","Indicar se se trata de um valor fixo ou de um valor percentual da remuneração base. Não preencher quando tenha sido indicado o código 888 (correspondente a \"emolumentos\")."]
[null,"Frequência de pagamento\n(N.º de vezes por ano)","Inserir o número de vezes, por ano, que o suplemento é pago ao trabalhador."]

{"sheet":"Instruções de Preenchimento CIT","index":15,"n_rows":50,"n_cols":3,"rows_kept":50,"cut":false,"hidden":false,"merged":[[44,0,49,0],[1,0,4,0],[6,0,10,0],[6,1,8,1],[9,1,10,1],[12,0,16,0],[12,1,14,1],[15,1,16,1],[22,0,25,0],[27,0,30,0],[27,1,28,1],[29,1,30,1],[32,0,33,0],[35,0,38,0],[40,0,42,0]]}
[null,"Campo","Descrição"]
["Identificação","NIF do trabalhador","Inserir o Número de Identificação Fiscal (NIF) do trabalhador."]
[null,"Código SIOE da Entidade que paga a remuneração","Inserir o código SIOE da entidade que paga a remuneração, mesmo que o trabalhador não pertença aos quadros da entidade, ou esteja a exercer funções noutra entidade. "]
[null,"Data de Nascimento do Trabalhador (Mês e Ano)","Inserir o Mês e Ano de nascimento do trabalhador"]
[null,"Código do vínculo de emprego","Inserir o código do vínculo de emprego. O código deve corresponder a um tipo de vínculo existente no separador “Vínculos CIT”, que encontra no ficheiro Excel de recolha. \nAtenção: se inserir o código do vínculo \"42\" ou \"51\" preencher o formulário apenas até ao campo \"Valor da Remuneração Base\", não preencher a partir do campo \"Referência à próxima alteração de posicionamento\", inclusive."]
[]
["Carreira ","Código da Carreira detida a 01/05/2020","Inserir o código da Carreira do trabalhador."]
[null,null,"O código deve corresponder a uma carreira existente no separador “Carreiras CIT”, que encontra no ficheiro de recolha. "]
[null,null,"Caso a Carreira não se encontre na tabela do separador indicado deverá inserir o código 9999 (correspondente à carreira “Outras”) e preencher o campo da coluna “Designação legal da carreira”."]
[null,"Designação legal (preencher apenas quando o código de carreira do trabalhador corresponde a “Outros”)","Inserir a designação legal da carreira em causa, por extenso."]
[null,null,"Preencher apenas quando tenha inserido o código 9999 no campo anterior (correspondente à carreira “Outras”)."]
[]
["Categoria","Código da Categoria detida a 01/05/2020","Inserir o código da Categoria do trabalhador."]
[null,null,"O código deve corresponder a uma categoria existente no separador “Carreiras CIT”, que encontra no ficheiro de recolha. "]
[null,null,"Caso a Categoria não se encontre na tabela do separador indicado deverá inserir o código 999 (correspondente à categoria “Outras categorias”) e preencher o campo da coluna “Designação legal da categoria”."]
[null,"Designação legal (preencher apenas quando o código de categoria do trabalhador corresponde a “Outros”)","Inserir a designação legal da categoria em causa, por extenso."]
[null,null,"Preencher apenas quando tenha inserido o código 999 no campo anterior (correspondente à carreira “Outras categorias”)."]
[]
["Exercício de funções em tempo completo ou parcial","_% de tempo de trabalho","Inserir a % de tempo de trabalho prestado pelo trabalhador. \nSe o trabalho for prestado a tempo completo: colocar 100%. Se o trabalho for prestado a tempo parcial: colocar a % correspondente."]
[]
["Cessação do contrato","Data prevista para a cessação do contrato","Inserir a data prevista para a cessação do contrato. \nPreencher apenas quando tenha indicado (no campo tipo de vínculo de emprego) o código \"42\" ou \"51\"."]
[]
["Posição Remuneratória/Escalão/Índice","Posição Remuneratória","Inserir a posição remuneratória em que o trabalhador está colocado numa dada carreira e categoria, com referência à situação funcional em que se encontre à data de 01/05/2020.\nPreencher apenas quando aplicáveis os níveis retributivos correspondentes aos trabalhadores com contrato de trabalho em funções públicas inseridos em carreiras revistas (gerais ou especiais).\nCaso o trabalhador aufira uma remuneração situada entre duas posições remuneratórias previstas na tabela da respetiva categoria, inserir a posição inferior completa e uma parte decimal (da posição seguinte) igual a 5 (Exemplo: entre a 1ª e a 2ª posições, inserir \"1,5\"; entre a 9ª e a 10ª posições, inserir \"9,5\")."]
[null,"Escalão","Inserir o escalão correspondente à carreira e categoria do trabalhador, com referência à situação funcional à data de 01/05/2020.\nPreencher apenas quando aplicável o regime remuneratório correspondente aos trabalhadores com contrato de trabalho em funções públicas inseridos em carreira/categoria não revista ou subsistente, ou em carreira revista mas que mantenha a anterior estrutura remuneratória (exemplo: carreira docente universitária)."]
[null,"Índice","Inserir o índice correspondente à carreira e categoria do trabalhador, com referência à situação funcional à data de 01/05/2020.\nPreencher apenas quando aplicável o regime remuneratório correspondente aos trabalhadores com contrato de trabalho em funções públicas inseridos em carreira/categoria não revista ou subsistente, ou em carreira revista mas que mantenha a anterior estrutura remuneratória."]
[null,"Outros","Preencher apenas quando não for aplicável nenhum dos sistemas retributivos previstos nos campos anteriores (Posições Remuneratórias correspondentes a níveis da Tabela Remuneratória Única, ou Escalão/Índice). \nNeste caso, indicar a designação concreta do sistema retributivo aplicável ao trabalhador."]
[]
["Valor da Remuneração Base","Referência a 01/05/2020","Inserir a remuneração base ilíquida devida, sem descontos ou retroativos, com referência à situação funcional do trabalhador à data de 01/05/2020."]
[null,null,"Não devem ser inscritas quaisquer outras componentes remuneratórias, designadamente suplementos. (Exemplos: trabalho suplementar, subsídio de turno, etc.)."]
[null,"Referência à próxima alteração de posicionamento","Inserir a remuneração base ilíquida devida, sem descontos ou retroativos, correspondente à próxima alteração de posicionamento remuneratório."]
[null,null,"Não devem ser inscritas quaisquer outras componentes remuneratórias, designadamente suplementos. (Exemplos: trabalho suplementar, subsídio de turno, etc.)."]
[]
["Data Previsível da próxima alteração de posicionamento remuneratório","Mês","Inserir o Mês em que é previsível que ocorra a próxima alteração de posicionamento remuneratório do trabalhador."]
[null,"Ano","Inserir o Ano em que é previsível que ocorra a próxima alteração de posicionamento remuneratório do trabalhador."]
[]
["Valor do acréscimo remuneratório (referência à próxima alteração de posicionamento) decorrente de Valorização Remuneratória por motivo:","Decurso do Tempo na Carreira","Inserir o valor do acréscimo remuneratório originado pela próxima valorização remuneratória, por motivo de progressão por decurso do tempo, com referência à remuneração devida a 01/05/2020."]
[null,"Promoção ","Inserir o valor do acréscimo remuneratório originado pela próxima valorização remuneratória, por motivo de promoção, com referência à remuneração devida a 01/05/2020."]
[null,"Outros Motivos ","Inserir o valor do acréscimo remuneratório originado pela próxima valorização remuneratória, por outro motivo, com referência à remuneração devida a 01/05/2020."]
[null,"Especificação de Outros Motivos ","Preencher apenas quando se verificarem acréscimos remuneratórios por outros motivos."]
[]
["Avaliação: Pontos e Tempo relevante decorrido desde a última alteração de posicionamento ","Pontos detidos a 01/05/2020","A preencher quando o trabalhador tem o sistema de avaliação SIADAP, geral ou adaptado, devendo ser indicado o número de pontos detidos até à data de 01/05/2020."]
[null,"Número de Anos Decorridos","Inserir o número de anos completos decorridos desde a última alteração de posicionamento do trabalhador, considerados para efeitos da próxima alteração de posicionamento."]
[null,"Número de Meses Decorridos","Inserir o número de meses, para além dos anos completos, decorridos desde a última alteração de posicionamento do trabalhador, considerados para efeitos da próxima alteração de posicionamento."]
[]
["Suplementos","Código do Suplemento","Inserir o código do suplemento do trabalhador. \nO código deve corresponder a um tipo de suplemento existente no separador “Suplementos”, que encontra no ficheiro de recolha. Caso o suplemento não se encontre na tabela do separador indicado, deverá inserir o código 999 (correspondente a “Outros”) e preencher o campo da coluna “Designação legal do Suplemento”."]
[null,"Designação Legal do Suplemento\n(preencher apenas quando o código do suplemento corresponde a “Outros”)","Inserir a designação legal do suplemento em causa, por extenso. \nPreencher apenas quando tenha inserido o código 999 no campo anterior (correspondente a “Outros”)."]
[null,"Valor do suplemento\n(referência a 01/05/2020)","Inserir o valor do suplemento devido, correspondente à situação funcional do trabalhador a 01/05/2020."]
[null,"Suporte Legal\n(Diploma, artigo, número e alínea)","Inserir a norma legal que prevê o suplemento (diploma com data e, quando aplicável, artigo, número e alínea)."]
[null,"Tipologia do valor\n(F - fixo / P - percentual)","Indicar se se trata de um valor fixo ou de um valor percentual da remuneração base. Não preencher quando tenha sido indicado o código 888 (correspondente a \"emolumentos\")."]
[null,"Frequência de pagamento\n(N.º de vezes por ano)","Inserir o número de vezes, por ano, que o suplemento é pago ao trabalhador."]